Workbook

Sheet Cover
A1: Cover
A3: Workbook title: | B3: Cost sharing & total costs reconciliation
A4: Version: | B4: 4f
A5: Filename: | B5: Cost-sharing-&-total-costs-Reconcilation-v4f
A6: Date: | B6: July 2024
A7: Author: | B7: Ofwat
A8: Author contact information: | B8: PR24@ofwat.gov.uk
A11: Summary of workbook: | B11: The cost sharing reconciliation model calculates any adjustment for underperformance or outperformance against forecast totex at the PR19 final determinations.
B12: Separate adjustments are made for wage growth, net totex and business rates and abstraction charges.
B13: The price base of the model is 2017-18 FYA CPIH with time value of money adjustments to 2024-25 present values using
B14: the FD wholesale WACC deflated for long-term CPIH.
A16: Known limitations: | B16: This model is subject to consultation and consequently may be subject to further changes.
A18: Instructions: | B18: na
A20: Amendments: | B20: Below are details of changes to the model from the version 4a published Mar 23. The changes fix issues that have been identified and implements a change to include a bonus adjustment in the reconciliation calculations.
B22: Category | C22: Sheet(s) in current model | D22: Description of change(s) made | E22: Model link(s)
B23: Policy Implementation | C23: InpActive, Cost sharing calculations, Bioresources, Thames Tideway Tunnel | D23: The model has been amended to adjust the reconciliation adjustments for performance related pay recovery adjustments where they are not appropriate. A new input has been added which is removed from the final adjustments for each control. For applicable controls this adjustment is also removed from baseline allowances and actual totex spends when calculation cost sharing adjustments. | E23: =InpActive!$E$44 -> Performance related pay recovery mechanism adjustment - WR - Nominal (Neg)
E24: ='Cost sharing calculations'!$E$96 -> Actual net totex for cost sharing reconciliation - WR - Real
E25: ='Cost sharing calculations'!$E$101 -> Total Performance related pay recovery mechanism adjustment - WR - real
E26: ='Cost sharing calculations'!$E$106 -> Actual net totex for cost sharing reconciliation - WR - Real
E27: ='Cost sharing calculations'!$E$127 -> Net totex available for cost sharing after adjustments profiled - WR - Real
E28: ='Cost sharing calculations'!$E$180 -> Total adjustment for cost sharing after ex ante allowance & wage adjustment - WR - Real
B29: Refinement | C29: Abstraction & Rates | D29: Model previously linked to business rates row, this has been amended to link to the abstraction charges line | E29: ='Abstraction & Rates'!$F$48 -> 11.22251102
B30: Refinement | C30: Abstraction & Rates | D30: Calculation has been amended to remove fixed reference linking to the business rate lines | E30: ='Abstraction & Rates'!$F$70 -> 0
E31: ='Abstraction & Rates'!$F$74 -> 0.3478238904
B32: Refinement | C32: Cost sharing calculations | D32: Calculation has been amended to calculate customer share instead of the company share | E32: ='Cost sharing calculations'!$F$353 -> 0
E33: ='Cost sharing calculations'!$F$526 -> 0
B34: Refinement | C34: Cost sharing calculations, Bioresources | D34: Updated formulas to link to actuals instead of allowances | E34: ='Cost sharing calculations'!$E$498 -> Actuals for CMA excluded items - WWN - nominal
E35: =Bioresources!$E$67 -> Actuals for CMA excluded items - BIO - nominal
B36: Refinement | C36: Cost sharing calculations, Bioresources | D36: Updated formulas to link to allowances instead of actuals | E36: ='Cost sharing calculations'!$E$502 -> Allowance for CMA excluded items - WWN - real
E37: =Bioresources!$E$71 -> Allowance for CMA excluded items - BIO - real
B38: Refinement | C38: Bioresources | D38: Original formula referred to blank row, this has amended to look at rows above. | E38: =Bioresources!$F$91 -> -0.5138381131
E39: =Bioresources!$F$95 -> -0.190049713
B40: Refinement | C40: Cost sharing calculations, Bioresources | D40: Line originally referred to total variance for the AMP, this has been updated to look up to the annual basis. | E40: =Bioresources!$E$75 -> Variance to allowances for CMA excluded items - BIO
E41: ='Cost sharing calculations'!$E$506 -> Variance to allowances for CMA excluded items - WWN
B42: Refinement | C42: Bioresources | D42: Updated formula in cell F95 to read calculate RCV adjustment on total adjustment * (1 - PAYG rate) | E42: =Bioresources!$F$95 -> -0.190049713
A44: References: | B44: Totex allowances made in the final determinations
B45: PAYG rates from the final determinations
B46: OBR Forecast wage growth from the final determinations
B47: WACC from the final determinations
B48: Cost sharing rates and ex ante allowances from Final determinations
B49: ASHE Gross Hourly Wage index
B50: Actual CPIH index published by the ONS
A52: Error Checks: | B52: Total error check status
B53: =Check!$F$8 -> 0
A56: END OF SHEET

Sheet Documentation-->

Sheet Style Guide
A1: =RIGHT(CELL("filename", $A$1), LEN(CELL("filename", $A$1)) - SEARCH("]", CELL("filename", $A$1))) -> 
A3: SHEET TABS
H5: Light Yellow | J5: Input sheets
H7: No colour (default Excel tab colour) | J7: Calculation and documentation sheets
H9: Pale Blue | J9: Key output sheets
H11: Turquoise | J11: Quality control sheets
H13: Yellow | J13: To be completed, temporary, restructured, or deleted
A16: COLOUR
B18: Font colour only
H19: Blue font | J19: Imported from another sheet
H21: Red font | J21: Exported to another sheet (except from Input sheets)
H23: Black font | J23: Within sheet link or calculation
B25: Font + shade combinations
H26: Black font + Light Yellow shade | J26: Inputs
H28: Black font + Light Yellow shade with grey stripe | J28: Inputs that are not expected to be changed
H30: Black font + Light Grey shade on entire row | J30: Within-worksheet counter-flow
H32: Blue font + Light Grey shade on entire row | J32: Between-worksheet counter-flow
H34: Empty Cell with Light Grey shade | J34: Empty cells being deliberately referenced
B36: Other
H37: Black font + Pale Blue shade on entire row | J37: Section separator
H39: Light Turquoise shade | J39: Stored/dead/hard coded outputs
H41: Tan shade | J41: Pre-model time line actuals
H43: Yellow shade | J43: Work in progress / temporary
H45: Lime shade | J45: Values or logic to be reviewed
B47: Error checks
H48: Green shade | J48: OK
H50: Red shade | J50: Error
A52: End of sheet

Sheet ToC
A1: =RIGHT(CELL("filename", $A$1), LEN(CELL("filename", $A$1)) - SEARCH("]", CELL("filename", $A$1))) -> 
B3: ASSUMPTIONS | D3: INPUTS | F3: CALCULATIONS | H3: OUTPUTS | J3: Quality Control
B5: =Cover!A1 -> Cover | D5: =InpActive!A1 ->  | F5: =Index!A1 ->  | H5: =Outputs!A1 ->  | J5: =Check!A1 -> 
B6: Model documentation sheet | D6: Inputs sheet | F6: All the indexation related calculations are done in this sheet. | H6: Main output sheet showing total cost sharing adjustments | J6: Contains all the model integrity checks and alerts
B8: ='Style Guide'!A1 ->  | F8: =Time!A1 -> 
B9: Explanation of different formatting types | F9: The model timeline and flag calculations are done in this sheet.
B11: =A1 ->  | F11: ='Cost sharing calculations'!A1 -> 
B12: Table of contents | F12: Calculates the cost sharing adjustments to be made at PR24
F14: Abstraction & Rates
F15: Calculates the sharing adjustments for business rates and abstraction charges to be made at PR24
F17: =Bioresources!$A$1 -> 
F18: Calculates the totex reconciliation adjustments for bioresources to be made at PR24
F20: Thames Tideway Tunnel
F21: Calculates the sharing adjustments for Thames Tideway Tunnel to be made PR24
F23: Green recovery
F24: Calculates the cost sharing adjustments for green recovery to be made at PR24
A26: End of sheet

Sheet Inputs-->

Sheet F_Inputs-APR & PR19
C1: APR/PR19 cost rec inputs | E1: Run on 19 Feb 2024 12:17
A2: Acronym | B2: Reference | C2: Item description | D2: Unit | E2: Model | F2: Cyclical | L2: Price Review 2019
F4: Default for Cyclical base run | L4: Default for Price Review 2019 base run
F5: Latest | L5: Latest
F6: 2020-21 | G6: 2021-22 | H6: 2022-23 | I6: 2023-24 | J6: 2024-25 | K6: 2020-25 | L6: 2020-21 | M6: 2021-22 | N6: 2022-23 | O6: 2023-24 | P6: 2024-25 | Q6: 2020-25
A7: ANH | B7: B0143TAWR | C7: Totex (net of business rates, abstraction licence fees and grants and contributions) - Total actual totex (net of business rates, abstraction licence fees and grants and contributions) - 12 months ended 31 March 2021 - Water resources | D7: £m | E7: Cyclical Foundation | F7: 33.33 | G7: 36.60945457 | H7: 37.1294327
A8: ANH | B8: B0143TAWNP | C8: Totex (net of business rates, abstraction licence fees and grants and contributions) - Total actual totex (net of business rates, abstraction licence fees and grants and contributions) - 12 months ended 31 March 2021 - Water network plus | D8: £m | E8: Cyclical Foundation | F8: 344.248 | G8: 398.6768109 | H8: 502.026001
A9: ANH | B9: B0143TAWWNP | C9: Totex (net of business rates, abstraction licence fees and grants and contributions) - Total actual totex (net of business rates, abstraction licence fees and grants and contributions) - 12 months ended 31 March 2021 - Wastewater network plus | D9: £m | E9: Cyclical Foundation | F9: 403.058 | G9: 442.1774836 | H9: 506.2691223
A10: ANH | B10: B0143TATTTH | C10: Totex (net of business rates, abstraction licence fees and grants and contributions) - Total actual totex (net of business rates, abstraction licence fees and grants and contributions) - 12 months ended 31 March 2021 - Thames Tideway/ Havant Thicket | D10: £m | E10: Cyclical Foundation | F10: 0 | G10: 0 | H10: 0
A11: ANH | B11: B0413TGTE_WR | C11: Total green recovery programme expenditure - Totex - Expenditure in report year - Water resources | D11: £m | E11: Cyclical Foundation | G11: 0 | H11: 0
A12: ANH | B12: B0420TGTE_RW | C12: Total green recovery programme expenditure - Totex - Expenditure in report year - Water network+ Raw water transport | D12: £m | E12: Cyclical Foundation | G12: 0 | H12: 0
A13: ANH | B13: B0427TGTE_SW | C13: Total green recovery programme expenditure - Totex - Expenditure in report year - Water network+ Raw water storage | D13: £m | E13: Cyclical Foundation | G13: 0 | H13: 0
A14: ANH | B14: B0434TGTE_TW | C14: Total green recovery programme expenditure - Totex - Expenditure in report year - Water network+ Water treatment | D14: £m | E14: Cyclical Foundation | G14: 0 | H14: 0
A15: ANH | B15: B0441TGTE_DW | C15: Total green recovery programme expenditure - Totex - Expenditure in report year - Water network+ Treated water distribution | D15: £m | E15: Cyclical Foundation | G15: 0 | H15: 0
A16: ANH | B16: B0513TGTE_FOW | C16: Total green recovery programme expenditure - Totex - Expenditure in report year - Wastewater network+ Foul | D16: £m | E16: Cyclical Foundation | G16: 0 | H16: 0
A17: ANH | B17: B0520TGTE_SUW | C17: Total green recovery programme expenditure - Totex - Expenditure in report year - Wastewater network+ Surface water drainage | D17: £m | E17: Cyclical Foundation | G17: 0 | H17: 0
A18: ANH | B18: B0527TGTE_HDW | C18: Total green recovery programme expenditure - Totex - Expenditure in report year - Wastewater network+ Highway drainage | D18: £m | E18: Cyclical Foundation | G18: 0 | H18: 0
A19: ANH | B19: B0534TGTE_STW | C19: Total green recovery programme expenditure - Totex - Expenditure in report year - Wastewater network+ Sewage treatment and disposal | D19: £m | E19: Cyclical Foundation | G19: 0 | H19: 0
A20: ANH | B20: B0541TGTE_SLW | C20: Total green recovery programme expenditure - Totex - Expenditure in report year - Wastewater network+ Sludge liquor treatment | D20: £m | E20: Cyclical Foundation | G20: 0 | H20: 0
A21: ANH | B21: WS01008WR | C21: Operating expenditure - Local authority and Cumulo rates - Water resources | D21: £m | E21: Cyclical Foundation | F21: 2.545 | G21: 2.886939877 | H21: 2.376
A22: ANH | B22: BM317WN | C22: Local authority and Cumulo rates - Water Network+ | D22: £m | E22: Cyclical Foundation | F22: 37.585 | G22: 37.852372 | H22: 30.828
A23: ANH | B23: BM817WNK | C23: Local authority and Cumulo rates - Wastewater Network+ | D23: £m | E23: Cyclical Foundation | F23: 21.362 | G23: 19.9665633 | H23: 20.75397836
A24: ANH | B24: BM817SG | C24: Local authority and Cumulo rates - Sludge | D24: £m | E24: Cyclical Foundation | F24: 3.287 | G24: 3.12346506 | H24: 3.21163789
A25: ANH | B25: BM817TTT | C25: Local authority rates - TTT | D25: £m | E25: Cyclical Foundation | G25: 0
A26: ANH | B26: C_TBC_WR_PR19CA004_OFWAT | C26: Total base costs exclude enhancemnt opex - Water resources - OFWAT view | D26: £m | E26: Price Review 2019 | Q26: 194.6660001
A27: ANH | B27: C_TBC_WN_PR19CA004_OFWAT | C27: Total base costs exclude enhancemnt opex - Water network plus - OFWAT view | D27: £m | E27: Price Review 2019 | Q27: 1361.701245
A28: ANH | B28: C_TBC_WBR_PR19CA008_OFWAT | C28: Total base costs - Bioresources - OFWAT view | D28: £m | E28: Price Review 2019 | Q28: 383.3802375
A29: ANH | B29: C_TBC_WWN_PR19CA008_OFWAT | C29: Total base costs - Wastewater network plus - OFWAT view | D29: £m | E29: Price Review 2019 | Q29: 1785.812407
A30: ANH | B30: C_UBC_WR_PR19CA004_OFWAT | C30: Unmodelled base costs (Local authority and cumulo rates ) - Water resources - OFWAT view | D30: £m | E30: Price Review 2019 | Q30: 15.01787928
A31: ANH | B31: C_UBC_WN_PR19CA004_OFWAT | C31: Unmodelled base costs (Local authority and cumulo rates ) - Water network plus - OFWAT view | D31: £m | E31: Price Review 2019 | Q31: 173.7364231
A32: ANH | B32: C_UBC_WBR_PR19CA008_OFWAT | C32: Base costs - Unmodelled base costs (Local authority and cumulo rates ) - Bioresources - OFWAT view | D32: £m | E32: Price Review 2019 | Q32: 14.05712194
A33: ANH | B33: C_UBC_WWN_PR19CA008_OFWAT | C33: Base costs - Unmodelled base costs (Local authority and cumulo rates ) - Wastewater network plus - OFWAT view | D33: £m | E33: Price Review 2019 | Q33: 100.3146114
A34: ANH | B34: WS1003_WW4_WR | C34: Unmodelled base costs (Abstraction charges / discharge consent) WR | D34: £m | E34: Price Review 2019 | Q34: 46.10967993
A35: ANH | B35: WS1003_WW4_WN | C35: Unmodelled base costs (Abstraction charges / discharge consent) WN | D35: £m | E35: Price Review 2019 | Q35: 2.274785784
A36: ANH | B36: C_WWN_OUTPERFORM_001 | C36: Cost sharing rate for outperform | D36: % | E36: Price Review 2019 | Q36: 0.3496275683
A37: ANH | B37: C_WWN_UNDERPERFORM_001 | C37: Cost sharing rate for underperform | D37: % | E37: Price Review 2019 | Q37: 0.6503724317
A38: ANH | B38: B0012WR | C38: Abstraction charges/ discharge consents - Water resources | D38: £m | E38: Cyclical Foundation | F38: 9.869 | G38: 10.10863124 | H38: 10.09556575
A39: ANH | B39: B0012WN | C39: Abstraction charges/ discharge consents - Water Network+ | D39: £m | E39: Cyclical Foundation | F39: 0.507 | G39: 0.488752 | H39: 0.48298692
A40: ANH | B40: C_WR_CS_EXANTE_001 | C40: Ex-ante allowance above Ofwat forecast - Active - Water Resources | D40: £m | E40: Price Review 2019 | Q40: 0
A41: ANH | B41: C_WN_CS_EXANTE_001 | C41: Ex-ante allowance above Ofwat forecast - Active - Water Network | D41: £m | E41: Price Review 2019 | Q41: 0
A42: ANH | B42: C_WWN_CS_EXANTE_001 | C42: Ex-ante allowance above Ofwat forecast - Active - Wastewater Network | D42: £m | E42: Price Review 2019 | Q42: 0
A43: ANH | B43: C_WR_WN_OUTPERFORM_001 | C43: Cost sharing rate for outperform | D43: % | E43: Price Review 2019 | Q43: 0.3189391196
A44: ANH | B44: C_WR_WN_UNDERPERFORM_001 | C44: Cost sharing rate for underperform | D44: % | E44: Price Review 2019 | Q44: 0.6810608804
A45: WSH | B45: B0143TAWR | C45: Totex (net of business rates, abstraction licence fees and grants and contributions) - Total actual totex (net of business rates, abstraction licence fees and grants and contributions) - 12 months ended 31 March 2021 - Water resources | D45: £m | E45: Cyclical Foundation | F45: 52.355 | G45: 38.0685 | H45: 50.47
A46: WSH | B46: B0143TAWNP | C46: Totex (net of business rates, abstraction licence fees and grants and contributions) - Total actual totex (net of business rates, abstraction licence fees and grants and contributions) - 12 months ended 31 March 2021 - Water network plus | D46: £m | E46: Cyclical Foundation | F46: 234.892 | G46: 237.884196 | H46: 283.687
A47: WSH | B47: B0143TAWWNP | C47: Totex (net of business rates, abstraction licence fees and grants and contributions) - Total actual totex (net of business rates, abstraction licence fees and grants and contributions) - 12 months ended 31 March 2021 - Wastewater network plus | D47: £m | E47: Cyclical Foundation | F47: 261.916 | G47: 236.082 | H47: 266.781
A48: WSH | B48: B0143TATTTH | C48: Totex (net of business rates, abstraction licence fees and grants and contributions) - Total actual totex (net of business rates, abstraction licence fees and grants and contributions) - 12 months ended 31 March 2021 - Thames Tideway/ Havant Thicket | D48: £m | E48: Cyclical Foundation | F48: 0 | G48: 0 | H48: 0
A49: WSH | B49: B0413TGTE_WR | C49: Total green recovery programme expenditure - Totex - Expenditure in report year - Water resources | D49: £m | E49: Cyclical Foundation | G49: 0 | H49: 0
A50: WSH | B50: B0420TGTE_RW | C50: Total green recovery programme expenditure - Totex - Expenditure in report year - Water network+ Raw water transport | D50: £m | E50: Cyclical Foundation | G50: 0 | H50: 0
A51: WSH | B51: B0427TGTE_SW | C51: Total green recovery programme expenditure - Totex - Expenditure in report year - Water network+ Raw water storage | D51: £m | E51: Cyclical Foundation | G51: 0 | H51: 0
A52: WSH | B52: B0434TGTE_TW | C52: Total green recovery programme expenditure - Totex - Expenditure in report year - Water network+ Water treatment | D52: £m | E52: Cyclical Foundation | G52: 0 | H52: 0
A53: WSH | B53: B0441TGTE_DW | C53: Total green recovery programme expenditure - Totex - Expenditure in report year - Water network+ Treated water distribution | D53: £m | E53: Cyclical Foundation | G53: 0 | H53: 0
A54: WSH | B54: B0513TGTE_FOW | C54: Total green recovery programme expenditure - Totex - Expenditure in report year - Wastewater network+ Foul | D54: £m | E54: Cyclical Foundation | G54: 0 | H54: 0
A55: WSH | B55: B0520TGTE_SUW | C55: Total green recovery programme expenditure - Totex - Expenditure in report year - Wastewater network+ Surface water drainage | D55: £m | E55: Cyclical Foundation | G55: 0 | H55: 0
A56: WSH | B56: B0527TGTE_HDW | C56: Total green recovery programme expenditure - Totex - Expenditure in report year - Wastewater network+ Highway drainage | D56: £m | E56: Cyclical Foundation | G56: 0 | H56: 0
A57: WSH | B57: B0534TGTE_STW | C57: Total green recovery programme expenditure - Totex - Expenditure in report year - Wastewater network+ Sewage treatment and disposal | D57: £m | E57: Cyclical Foundation | G57: 0 | H57: 0
A58: WSH | B58: B0541TGTE_SLW | C58: Total green recovery programme expenditure - Totex - Expenditure in report year - Wastewater network+ Sludge liquor treatment | D58: £m | E58: Cyclical Foundation | G58: 0 | H58: 0
A59: WSH | B59: WS01008WR | C59: Operating expenditure - Local authority and Cumulo rates - Water resources | D59: £m | E59: Cyclical Foundation | F59: 0.764 | G59: 0.788 | H59: 2.232
A60: WSH | B60: BM317WN | C60: Local authority and Cumulo rates - Water Network+ | D60: £m | E60: Cyclical Foundation | F60: 15.228 | G60: 15.504 | H60: 13.913
A61: WSH | B61: BM817WNK | C61: Local authority and Cumulo rates - Wastewater Network+ | D61: £m | E61: Cyclical Foundation | F61: 8.153 | G61: 7.852 | H61: 8.291
A62: WSH | B62: BM817SG | C62: Local authority and Cumulo rates - Sludge | D62: £m | E62: Cyclical Foundation | F62: 0.64 | G62: 0.572 | H62: 0.64
A63: WSH | B63: BM817TTT | C63: Local authority rates - TTT | D63: £m | E63: Cyclical Foundation | G63: 0 | H63: 0
A64: WSH | B64: C_TBC_WR_PR19CA004_OFWAT | C64: Total base costs exclude enhancemnt opex - Water resources - OFWAT view | D64: £m | E64: Price Review 2019 | Q64: 159.4676905
A65: WSH | B65: C_TBC_WN_PR19CA004_OFWAT | C65: Total base costs exclude enhancemnt opex - Water network plus - OFWAT view | D65: £m | E65: Price Review 2019 | Q65: 963.4514527
A66: WSH | B66: C_TBC_WBR_PR19CA008_OFWAT | C66: Total base costs - Bioresources - OFWAT view | D66: £m | E66: Price Review 2019 | Q66: 117.5093943
A67: WSH | B67: C_TBC_WWN_PR19CA008_OFWAT | C67: Total base costs - Wastewater network plus - OFWAT view | D67: £m | E67: Price Review 2019 | Q67: 1047.898597
A68: WSH | B68: C_UBC_WR_PR19CA004_OFWAT | C68: Unmodelled base costs (Local authority and cumulo rates ) - Water resources - OFWAT view | D68: £m | E68: Price Review 2019 | Q68: 2.489537934
A69: WSH | B69: C_UBC_WN_PR19CA004_OFWAT | C69: Unmodelled base costs (Local authority and cumulo rates ) - Water network plus - OFWAT view | D69: £m | E69: Price Review 2019 | Q69: 72.02184428
A70: WSH | B70: C_UBC_WBR_PR19CA008_OFWAT | C70: Base costs - Unmodelled base costs (Local authority and cumulo rates ) - Bioresources - OFWAT view | D70: £m | E70: Price Review 2019 | Q70: 2.491575888
A71: WSH | B71: C_UBC_WWN_PR19CA008_OFWAT | C71: Base costs - Unmodelled base costs (Local authority and cumulo rates ) - Wastewater network plus - OFWAT view | D71: £m | E71: Price Review 2019 | Q71: 43.8044992
A72: WSH | B72: WS1003_WW4_WR | C72: Unmodelled base costs (Abstraction charges / discharge consent) WR | D72: £m | E72: Price Review 2019 | Q72: 39.58265052
A73: WSH | B73: WS1003_WW4_WN | C73: Unmodelled base costs (Abstraction charges / discharge consent) WN | D73: £m | E73: Price Review 2019 | Q73: 1.664895643
A74: WSH | B74: C_WWN_OUTPERFORM_001 | C74: Cost sharing rate for outperform | D74: % | E74: Price Review 2019 | Q74: 0.4150714664
A75: WSH | B75: C_WWN_UNDERPERFORM_001 | C75: Cost sharing rate for underperform | D75: % | E75: Price Review 2019 | Q75: 0.5849285336
A76: WSH | B76: B0012WR | C76: Abstraction charges/ discharge consents - Water resources | D76: £m | E76: Cyclical Foundation | F76: 9.387 | G76: 9.649 | H76: 9.662
A77: WSH | B77: B0012WN | C77: Abstraction charges/ discharge consents - Water Network+ | D77: £m | E77: Cyclical Foundation | F77: 0.259 | G77: 0.265 | H77: 0.24
A78: WSH | B78: C_WR_CS_EXANTE_001 | C78: Ex-ante allowance above Ofwat forecast - Active - Water Resources | D78: £m | E78: Price Review 2019 | Q78: 0
A79: WSH | B79: C_WN_CS_EXANTE_001 | C79: Ex-ante allowance above Ofwat forecast - Active - Water Network | D79: £m | E79: Price Review 2019 | Q79: 0
A80: WSH | B80: C_WWN_CS_EXANTE_001 | C80: Ex-ante allowance above Ofwat forecast - Active - Wastewater Network | D80: £m | E80: Price Review 2019 | Q80: 0
A81: WSH | B81: C_WR_WN_OUTPERFORM_001 | C81: Cost sharing rate for outperform | D81: % | E81: Price Review 2019 | Q81: 0.4265520002
A82: WSH | B82: C_WR_WN_UNDERPERFORM_001 | C82: Cost sharing rate for underperform | D82: % | E82: Price Review 2019 | Q82: 0.5734479998
A83: HDD | B83: B0143TAWR | C83: Totex (net of business rates, abstraction licence fees and grants and contributions) - Total actual totex (net of business rates, abstraction licence fees and grants and contributions) - 12 months ended 31 March 2021 - Water resources | D83: £m | E83: Cyclical Foundation | F83: 9.263 | G83: 3.313 | H83: 4.711251841
A84: HDD | B84: B0143TAWNP | C84: Totex (net of business rates, abstraction licence fees and grants and contributions) - Total actual totex (net of business rates, abstraction licence fees and grants and contributions) - 12 months ended 31 March 2021 - Water network plus | D84: £m | E84: Cyclical Foundation | F84: 22.002 | G84: 23.083 | H84: 29.85229113
A85: HDD | B85: B0143TAWWNP | C85: Totex (net of business rates, abstraction licence fees and grants and contributions) - Total actual totex (net of business rates, abstraction licence fees and grants and contributions) - 12 months ended 31 March 2021 - Wastewater network plus | D85: £m | E85: Cyclical Foundation | F85: 4.849 | G85: 6.257 | H85: 7.166213112
A86: HDD | B86: B0143TATTTH | C86: Totex (net of business rates, abstraction licence fees and grants and contributions) - Total actual totex (net of business rates, abstraction licence fees and grants and contributions) - 12 months ended 31 March 2021 - Thames Tideway/ Havant Thicket | D86: £m | E86: Cyclical Foundation | F86: 0 | G86: 0 | H86: 0
A87: HDD | B87: B0413TGTE_WR | C87: Total green recovery programme expenditure - Totex - Expenditure in report year - Water resources | D87: £m | E87: Cyclical Foundation | G87: 0 | H87: 0
A88: HDD | B88: B0420TGTE_RW | C88: Total green recovery programme expenditure - Totex - Expenditure in report year - Water network+ Raw water transport | D88: £m | E88: Cyclical Foundation | G88: 0 | H88: 0
A89: HDD | B89: B0427TGTE_SW | C89: Total green recovery programme expenditure - Totex - Expenditure in report year - Water network+ Raw water storage | D89: £m | E89: Cyclical Foundation | G89: 0 | H89: 0
A90: HDD | B90: B0434TGTE_TW | C90: Total green recovery programme expenditure - Totex - Expenditure in report year - Water network+ Water treatment | D90: £m | E90: Cyclical Foundation | G90: 0 | H90: 0
A91: HDD | B91: B0441TGTE_DW | C91: Total green recovery programme expenditure - Totex - Expenditure in report year - Water network+ Treated water distribution | D91: £m | E91: Cyclical Foundation | G91: 0 | H91: 0
A92: HDD | B92: B0513TGTE_FOW | C92: Total green recovery programme expenditure - Totex - Expenditure in report year - Wastewater network+ Foul | D92: £m | E92: Cyclical Foundation | G92: 0 | H92: 0
A93: HDD | B93: B0520TGTE_SUW | C93: Total green recovery programme expenditure - Totex - Expenditure in report year - Wastewater network+ Surface water drainage | D93: £m | E93: Cyclical Foundation | G93: 0 | H93: 0
A94: HDD | B94: B0527TGTE_HDW | C94: Total green recovery programme expenditure - Totex - Expenditure in report year - Wastewater network+ Highway drainage | D94: £m | E94: Cyclical Foundation | G94: 0 | H94: 0
A95: HDD | B95: B0534TGTE_STW | C95: Total green recovery programme expenditure - Totex - Expenditure in report year - Wastewater network+ Sewage treatment and disposal | D95: £m | E95: Cyclical Foundation | G95: 0 | H95: 0
A96: HDD | B96: B0541TGTE_SLW | C96: Total green recovery programme expenditure - Totex - Expenditure in report year - Wastewater network+ Sludge liquor treatment | D96: £m | E96: Cyclical Foundation | G96: 0 | H96: 0
A97: HDD | B97: WS01008WR | C97: Operating expenditure - Local authority and Cumulo rates - Water resources | D97: £m | E97: Cyclical Foundation | F97: -0.278 | G97: -0.528 | H97: 0
A98: HDD | B98: BM317WN | C98: Local authority and Cumulo rates - Water Network+ | D98: £m | E98: Cyclical Foundation | F98: -0.628 | G98: 1.819 | H98: 1.255239761
A99: HDD | B99: BM817WNK | C99: Local authority and Cumulo rates - Wastewater Network+ | D99: £m | E99: Cyclical Foundation | F99: 0.287 | G99: 0.286 | H99: 0.2645132
A100: HDD | B100: BM817SG | C100: Local authority and Cumulo rates - Sludge | D100: £m | E100: Cyclical Foundation | F100: 0 | G100: 0 | H100: 0.000124347
A101: HDD | B101: BM817TTT | C101: Local authority rates - TTT | D101: £m | E101: Cyclical Foundation | G101: 0 | H101: 0
A102: HDD | B102: C_TBC_WR_PR19CA004_OFWAT | C102: Total base costs exclude enhancemnt opex - Water resources - OFWAT view | D102: £m | E102: Price Review 2019 | Q102: 11.02661511
A103: HDD | B103: C_TBC_WN_PR19CA004_OFWAT | C103: Total base costs exclude enhancemnt opex - Water network plus - OFWAT view | D103: £m | E103: Price Review 2019 | Q103: 99.79320905
A104: HDD | B104: C_TBC_WBR_PR19CA008_OFWAT | C104: Total base costs - Bioresources - OFWAT view | D104: £m | E104: Price Review 2019 | Q104: 3.836412967
A105: HDD | B105: C_TBC_WWN_PR19CA008_OFWAT | C105: Total base costs - Wastewater network plus - OFWAT view | D105: £m | E105: Price Review 2019 | Q105: 21.38093309
A106: HDD | B106: C_UBC_WR_PR19CA004_OFWAT | C106: Unmodelled base costs (Local authority and cumulo rates ) - Water resources - OFWAT view | D106: £m | E106: Price Review 2019 | Q106: 0.7179473558
A107: HDD | B107: C_UBC_WN_PR19CA004_OFWAT | C107: Unmodelled base costs (Local authority and cumulo rates ) - Water network plus - OFWAT view | D107: £m | E107: Price Review 2019 | Q107: 7.044110163
A108: HDD | B108: C_UBC_WBR_PR19CA008_OFWAT | C108: Base costs - Unmodelled base costs (Local authority and cumulo rates ) - Bioresources - OFWAT view | D108: £m | E108: Price Review 2019 | Q108: 0.61938268
A109: HDD | B109: C_UBC_WWN_PR19CA008_OFWAT | C109: Base costs - Unmodelled base costs (Local authority and cumulo rates ) - Wastewater network plus - OFWAT view | D109: £m | E109: Price Review 2019 | Q109: 0.61938268
A110: HDD | B110: WS1003_WW4_WR | C110: Unmodelled base costs (Abstraction charges / discharge consent) WR | D110: £m | E110: Price Review 2019 | Q110: 2.26261144
A111: HDD | B111: WS1003_WW4_WN | C111: Unmodelled base costs (Abstraction charges / discharge consent) WN | D111: £m | E111: Price Review 2019 | Q111: 0
A112: HDD | B112: C_WWN_OUTPERFORM_001 | C112: Cost sharing rate for outperform | D112: % | E112: Price Review 2019 | Q112: 0.5911325572
A113: HDD | B113: C_WWN_UNDERPERFORM_001 | C113: Cost sharing rate for underperform | D113: % | E113: Price Review 2019 | Q113: 0.5
A114: HDD | B114: B0012WR | C114: Abstraction charges/ discharge consents - Water resources | D114: £m | E114: Cyclical Foundation | F114: 0.61 | G114: 0.597 | H114: 0.756071195
A115: HDD | B115: B0012WN | C115: Abstraction charges/ discharge consents - Water Network+ | D115: £m | E115: Cyclical Foundation | F115: 0.025 | G115: 0.027 | H115: 0.013413254
A116: HDD | B116: C_WR_CS_EXANTE_001 | C116: Ex-ante allowance above Ofwat forecast - Active - Water Resources | D116: £m | E116: Price Review 2019 | Q116: -0.09842887849
A117: HDD | B117: C_WN_CS_EXANTE_001 | C117: Ex-ante allowance above Ofwat forecast - Active - Water Network | D117: £m | E117: Price Review 2019 | Q117: -2.158560181
A118: HDD | B118: C_WWN_CS_EXANTE_001 | C118: Ex-ante allowance above Ofwat forecast - Active - Wastewater Network | D118: £m | E118: Price Review 2019 | Q118: -0.8949168715
A119: HDD | B119: C_WR_WN_OUTPERFORM_001 | C119: Cost sharing rate for outperform | D119: % | E119: Price Review 2019 | Q119: 0.5396005513
A120: HDD | B120: C_WR_WN_UNDERPERFORM_001 | C120: Cost sharing rate for underperform | D120: % | E120: Price Review 2019 | Q120: 0.5
A121: NES | B121: B0143TAWR | C121: Totex (net of business rates, abstraction licence fees and grants and contributions) - Total actual totex (net of business rates, abstraction licence fees and grants and contributions) - 12 months ended 31 March 2021 - Water resources | D121: £m | E121: Cyclical Foundation | F121: 32.772 | G121: 42.357 | H121: 55.223
A122: NES | B122: B0143TAWNP | C122: Totex (net of business rates, abstraction licence fees and grants and contributions) - Total actual totex (net of business rates, abstraction licence fees and grants and contributions) - 12 months ended 31 March 2021 - Water network plus | D122: £m | E122: Cyclical Foundation | F122: 229.382 | G122: 246.529 | H122: 296.458
A123: NES | B123: B0143TAWWNP | C123: Totex (net of business rates, abstraction licence fees and grants and contributions) - Total actual totex (net of business rates, abstraction licence fees and grants and contributions) - 12 months ended 31 March 2021 - Wastewater network plus | D123: £m | E123: Cyclical Foundation | F123: 162.878 | G123: 189.146 | H123: 206.304
A124: NES | B124: B0143TATTTH | C124: Totex (net of business rates, abstraction licence fees and grants and contributions) - Total actual totex (net of business rates, abstraction licence fees and grants and contributions) - 12 months ended 31 March 2021 - Thames Tideway/ Havant Thicket | D124: £m | E124: Cyclical Foundation | F124: 0 | G124: 0 | H124: 0
A125: NES | B125: B0413TGTE_WR | C125: Total green recovery programme expenditure - Totex - Expenditure in report year - Water resources | D125: £m | E125: Cyclical Foundation | G125: 0 | H125: 0
A126: NES | B126: B0420TGTE_RW | C126: Total green recovery programme expenditure - Totex - Expenditure in report year - Water network+ Raw water transport | D126: £m | E126: Cyclical Foundation | G126: 0 | H126: 0
A127: NES | B127: B0427TGTE_SW | C127: Total green recovery programme expenditure - Totex - Expenditure in report year - Water network+ Raw water storage | D127: £m | E127: Cyclical Foundation | G127: 0 | H127: 0
A128: NES | B128: B0434TGTE_TW | C128: Total green recovery programme expenditure - Totex - Expenditure in report year - Water network+ Water treatment | D128: £m | E128: Cyclical Foundation | G128: 0 | H128: 0
A129: NES | B129: B0441TGTE_DW | C129: Total green recovery programme expenditure - Totex - Expenditure in report year - Water network+ Treated water distribution | D129: £m | E129: Cyclical Foundation | G129: 0 | H129: 0
A130: NES | B130: B0513TGTE_FOW | C130: Total green recovery programme expenditure - Totex - Expenditure in report year - Wastewater network+ Foul | D130: £m | E130: Cyclical Foundation | G130: 0 | H130: 0
A131: NES | B131: B0520TGTE_SUW | C131: Total green recovery programme expenditure - Totex - Expenditure in report year - Wastewater network+ Surface water drainage | D131: £m | E131: Cyclical Foundation | G131: 0 | H131: 0
A132: NES | B132: B0527TGTE_HDW | C132: Total green recovery programme expenditure - Totex - Expenditure in report year - Wastewater network+ Highway drainage | D132: £m | E132: Cyclical Foundation | G132: 0 | H132: 0
A133: NES | B133: B0534TGTE_STW | C133: Total green recovery programme expenditure - Totex - Expenditure in report year - Wastewater network+ Sewage treatment and disposal | D133: £m | E133: Cyclical Foundation | G133: 0 | H133: 0
A134: NES | B134: B0541TGTE_SLW | C134: Total green recovery programme expenditure - Totex - Expenditure in report year - Wastewater network+ Sludge liquor treatment | D134: £m | E134: Cyclical Foundation | G134: 0 | H134: 0
A135: NES | B135: WS01008WR | C135: Operating expenditure - Local authority and Cumulo rates - Water resources | D135: £m | E135: Cyclical Foundation | F135: 4.234 | G135: 4.235 | H135: 4.222
A136: NES | B136: BM317WN | C136: Local authority and Cumulo rates - Water Network+ | D136: £m | E136: Cyclical Foundation | F136: 26.68 | G136: 26.664 | H136: 26.941
A137: NES | B137: BM817WNK | C137: Local authority and Cumulo rates - Wastewater Network+ | D137: £m | E137: Cyclical Foundation | F137: 6.95 | G137: 4.705 | H137: 7.717
A138: NES | B138: BM817SG | C138: Local authority and Cumulo rates - Sludge | D138: £m | E138: Cyclical Foundation | F138: 1.432 | G138: 0.955 | H138: 1.615
A139: NES | B139: BM817TTT | C139: Local authority rates - TTT | D139: £m | E139: Cyclical Foundation | G139: 0 | H139: 0
A140: NES | B140: C_TBC_WR_PR19CA004_OFWAT | C140: Total base costs exclude enhancemnt opex - Water resources - OFWAT view | D140: £m | E140: Price Review 2019 | Q140: 246.326124
A141: NES | B141: C_TBC_WN_PR19CA004_OFWAT | C141: Total base costs exclude enhancemnt opex - Water network plus - OFWAT view | D141: £m | E141: Price Review 2019 | Q141: 1212.857611
A142: NES | B142: C_TBC_WBR_PR19CA008_OFWAT | C142: Total base costs - Bioresources - OFWAT view | D142: £m | E142: Price Review 2019 | Q142: 71.76767616
A143: NES | B143: C_TBC_WWN_PR19CA008_OFWAT | C143: Total base costs - Wastewater network plus - OFWAT view | D143: £m | E143: Price Review 2019 | Q143: 799.9599121
A144: NES | B144: C_UBC_WR_PR19CA004_OFWAT | C144: Unmodelled base costs (Local authority and cumulo rates ) - Water resources - OFWAT view | D144: £m | E144: Price Review 2019 | Q144: 27.14724687
A145: NES | B145: C_UBC_WN_PR19CA004_OFWAT | C145: Unmodelled base costs (Local authority and cumulo rates ) - Water network plus - OFWAT view | D145: £m | E145: Price Review 2019 | Q145: 171.0580927
A146: NES | B146: C_UBC_WBR_PR19CA008_OFWAT | C146: Base costs - Unmodelled base costs (Local authority and cumulo rates ) - Bioresources - OFWAT view | D146: £m | E146: Price Review 2019 | Q146: 6.624110078
A147: NES | B147: C_UBC_WWN_PR19CA008_OFWAT | C147: Base costs - Unmodelled base costs (Local authority and cumulo rates ) - Wastewater network plus - OFWAT view | D147: £m | E147: Price Review 2019 | Q147: 32.26610937
A148: NES | B148: WS1003_WW4_WR | C148: Unmodelled base costs (Abstraction charges / discharge consent) WR | D148: £m | E148: Price Review 2019 | Q148: 131.3320312
A149: NES | B149: WS1003_WW4_WN | C149: Unmodelled base costs (Abstraction charges / discharge consent) WN | D149: £m | E149: Price Review 2019 | Q149: 1.285182602
A150: NES | B150: C_WWN_OUTPERFORM_001 | C150: Cost sharing rate for outperform | D150: % | E150: Price Review 2019 | Q150: 0.3440448377
A151: NES | B151: C_WWN_UNDERPERFORM_001 | C151: Cost sharing rate for underperform | D151: % | E151: Price Review 2019 | Q151: 0.6559551623
A152: NES | B152: B0012WR | C152: Abstraction charges/ discharge consents - Water resources | D152: £m | E152: Cyclical Foundation | F152: 43.473 | G152: 43.449 | H152: 39.565
A153: NES | B153: B0012WN | C153: Abstraction charges/ discharge consents - Water Network+ | D153: £m | E153: Cyclical Foundation | F153: 0.337 | G153: 0.334 | H153: 0.318
A154: NES | B154: C_WR_CS_EXANTE_001 | C154: Ex-ante allowance above Ofwat forecast - Active - Water Resources | D154: £m | E154: Price Review 2019 | Q154: 0
A155: NES | B155: C_WN_CS_EXANTE_001 | C155: Ex-ante allowance above Ofwat forecast - Active - Water Network | D155: £m | E155: Price Review 2019 | Q155: 0
A156: NES | B156: C_WWN_CS_EXANTE_001 | C156: Ex-ante allowance above Ofwat forecast - Active - Wastewater Network | D156: £m | E156: Price Review 2019 | Q156: 0
A157: NES | B157: C_WR_WN_OUTPERFORM_001 | C157: Cost sharing rate for outperform | D157: % | E157: Price Review 2019 | Q157: 0.4619024717
A158: NES | B158: C_WR_WN_UNDERPERFORM_001 | C158: Cost sharing rate for underperform | D158: % | E158: Price Review 2019 | Q158: 0.5380975283
A159: SVE | B159: B0143TAWR | C159: Totex (net of business rates, abstraction licence fees and grants and contributions) - Total actual totex (net of business rates, abstraction licence fees and grants and contributions) - 12 months ended 31 March 2021 - Water resources | D159: £m | E159: Cyclical Foundation | F159: 76.907 | G159: 73.455 | H159: 74.44
A160: SVE | B160: B0143TAWNP | C160: Totex (net of business rates, abstraction licence fees and grants and contributions) - Total actual totex (net of business rates, abstraction licence fees and grants and contributions) - 12 months ended 31 March 2021 - Water network plus | D160: £m | E160: Cyclical Foundation | F160: 480.9051174 | G160: 524.014 | H160: 622.941
A161: SVE | B161: B0143TAWWNP | C161: Totex (net of business rates, abstraction licence fees and grants and contributions) - Total actual totex (net of business rates, abstraction licence fees and grants and contributions) - 12 months ended 31 March 2021 - Wastewater network plus | D161: £m | E161: Cyclical Foundation | F161: 452.6289815 | G161: 506.173 | H161: 586.486
A162: SVE | B162: B0143TATTTH | C162: Totex (net of business rates, abstraction licence fees and grants and contributions) - Total actual totex (net of business rates, abstraction licence fees and grants and contributions) - 12 months ended 31 March 2021 - Thames Tideway/ Havant Thicket | D162: £m | E162: Cyclical Foundation | F162: 0 | G162: 0 | H162: 0
A163: SVE | B163: B0413TGTE_WR | C163: Total green recovery programme expenditure - Totex - Expenditure in report year - Water resources | D163: £m | E163: Cyclical Foundation | G163: 0.363 | H163: 2.227
A164: SVE | B164: B0420TGTE_RW | C164: Total green recovery programme expenditure - Totex - Expenditure in report year - Water network+ Raw water transport | D164: £m | E164: Cyclical Foundation | G164: 0 | H164: 0
A165: SVE | B165: B0427TGTE_SW | C165: Total green recovery programme expenditure - Totex - Expenditure in report year - Water network+ Raw water storage | D165: £m | E165: Cyclical Foundation | G165: 0 | H165: 0
A166: SVE | B166: B0434TGTE_TW | C166: Total green recovery programme expenditure - Totex - Expenditure in report year - Water network+ Water treatment | D166: £m | E166: Cyclical Foundation | G166: 4.134 | H166: 35.165
A167: SVE | B167: B0441TGTE_DW | C167: Total green recovery programme expenditure - Totex - Expenditure in report year - Water network+ Treated water distribution | D167: £m | E167: Cyclical Foundation | G167: 3.709 | H167: 23.029
A168: SVE | B168: B0513TGTE_FOW | C168: Total green recovery programme expenditure - Totex - Expenditure in report year - Wastewater network+ Foul | D168: £m | E168: Cyclical Foundation | G168: 0 | H168: 0.001
A169: SVE | B169: B0520TGTE_SUW | C169: Total green recovery programme expenditure - Totex - Expenditure in report year - Wastewater network+ Surface water drainage | D169: £m | E169: Cyclical Foundation | G169: 0.312 | H169: 3.796
A170: SVE | B170: B0527TGTE_HDW | C170: Total green recovery programme expenditure - Totex - Expenditure in report year - Wastewater network+ Highway drainage | D170: £m | E170: Cyclical Foundation | G170: 1.25 | H170: 5.006
A171: SVE | B171: B0534TGTE_STW | C171: Total green recovery programme expenditure - Totex - Expenditure in report year - Wastewater network+ Sewage treatment and disposal | D171: £m | E171: Cyclical Foundation | G171: 4.172 | H171: 9.973
A172: SVE | B172: B0541TGTE_SLW | C172: Total green recovery programme expenditure - Totex - Expenditure in report year - Wastewater network+ Sludge liquor treatment | D172: £m | E172: Cyclical Foundation | G172: 0 | H172: 0
A173: SVE | B173: WS01008WR | C173: Operating expenditure - Local authority and Cumulo rates - Water resources | D173: £m | E173: Cyclical Foundation | F173: 4.51 | G173: 4.971 | H173: 4.473
A174: SVE | B174: BM317WN | C174: Local authority and Cumulo rates - Water Network+ | D174: £m | E174: Cyclical Foundation | F174: 47.712 | G174: 48.098 | H174: 47.804
A175: SVE | B175: BM817WNK | C175: Local authority and Cumulo rates - Wastewater Network+ | D175: £m | E175: Cyclical Foundation | F175: 23.118 | G175: 22.84 | H175: 22.368
A176: SVE | B176: BM817SG | C176: Local authority and Cumulo rates - Sludge | D176: £m | E176: Cyclical Foundation | F176: 3.287 | G176: 2.973 | H176: 3.035
A177: SVE | B177: BM817TTT | C177: Local authority rates - TTT | D177: £m | E177: Cyclical Foundation | G177: 0 | H177: 0
A178: SVE | B178: C_TBC_WR_PR19CA004_OFWAT | C178: Total base costs exclude enhancemnt opex - Water resources - OFWAT view | D178: £m | E178: Price Review 2019 | Q178: 280.2328184
A179: SVE | B179: C_TBC_WN_PR19CA004_OFWAT | C179: Total base costs exclude enhancemnt opex - Water network plus - OFWAT view | D179: £m | E179: Price Review 2019 | Q179: 2183.109318
A180: SVE | B180: C_TBC_WBR_PR19CA008_OFWAT | C180: Total base costs - Bioresources - OFWAT view | D180: £m | E180: Price Review 2019 | Q180: 310.9508971
A181: SVE | B181: C_TBC_WWN_PR19CA008_OFWAT | C181: Total base costs - Wastewater network plus - OFWAT view | D181: £m | E181: Price Review 2019 | Q181: 2332.621571
A182: SVE | B182: C_UBC_WR_PR19CA004_OFWAT | C182: Unmodelled base costs (Local authority and cumulo rates ) - Water resources - OFWAT view | D182: £m | E182: Price Review 2019 | Q182: 21.95271565
A183: SVE | B183: C_UBC_WN_PR19CA004_OFWAT | C183: Unmodelled base costs (Local authority and cumulo rates ) - Water network plus - OFWAT view | D183: £m | E183: Price Review 2019 | Q183: 207.8768688
A184: SVE | B184: C_UBC_WBR_PR19CA008_OFWAT | C184: Base costs - Unmodelled base costs (Local authority and cumulo rates ) - Bioresources - OFWAT view | D184: £m | E184: Price Review 2019 | Q184: 21.11886329
A185: SVE | B185: C_UBC_WWN_PR19CA008_OFWAT | C185: Base costs - Unmodelled base costs (Local authority and cumulo rates ) - Wastewater network plus - OFWAT view | D185: £m | E185: Price Review 2019 | Q185: 106.8094036
A186: SVE | B186: WS1003_WW4_WR | C186: Unmodelled base costs (Abstraction charges / discharge consent) WR | D186: £m | E186: Price Review 2019 | Q186: 54.32246252
A187: SVE | B187: WS1003_WW4_WN | C187: Unmodelled base costs (Abstraction charges / discharge consent) WN | D187: £m | E187: Price Review 2019 | Q187: 0
A188: SVE | B188: C_WWN_OUTPERFORM_001 | C188: Cost sharing rate for outperform | D188: % | E188: Price Review 2019 | Q188: 0.5
A189: SVE | B189: C_WWN_UNDERPERFORM_001 | C189: Cost sharing rate for underperform | D189: % | E189: Price Review 2019 | Q189: 0.5
A190: SVE | B190: B0012WR | C190: Abstraction charges/ discharge consents - Water resources | D190: £m | E190: Cyclical Foundation | F190: 11.549 | G190: 11.569 | H190: 15.236
A191: SVE | B191: B0012WN | C191: Abstraction charges/ discharge consents - Water Network+ | D191: £m | E191: Cyclical Foundation | F191: 0.398 | G191: 0.43 | H191: 0.532
A192: SVE | B192: C_WR_CS_EXANTE_001 | C192: Ex-ante allowance above Ofwat forecast - Active - Water Resources | D192: £m | E192: Price Review 2019 | Q192: 0
A193: SVE | B193: C_WN_CS_EXANTE_001 | C193: Ex-ante allowance above Ofwat forecast - Active - Water Network | D193: £m | E193: Price Review 2019 | Q193: 0
A194: SVE | B194: C_WWN_CS_EXANTE_001 | C194: Ex-ante allowance above Ofwat forecast - Active - Wastewater Network | D194: £m | E194: Price Review 2019 | Q194: 0
A195: SVE | B195: C_WR_WN_OUTPERFORM_001 | C195: Cost sharing rate for outperform | D195: % | E195: Price Review 2019 | Q195: 0.5
A196: SVE | B196: C_WR_WN_UNDERPERFORM_001 | C196: Cost sharing rate for underperform | D196: % | E196: Price Review 2019 | Q196: 0.5
A197: SWB | B197: B0143TAWR | C197: Totex (net of business rates, abstraction licence fees and grants and contributions) - Total actual totex (net of business rates, abstraction licence fees and grants and contributions) - 12 months ended 31 March 2021 - Water resources | D197: £m | E197: Cyclical Foundation | F197: 12.06 | G197: 16.814 | H197: 45.32
A198: SWB | B198: B0143TAWNP | C198: Totex (net of business rates, abstraction licence fees and grants and contributions) - Total actual totex (net of business rates, abstraction licence fees and grants and contributions) - 12 months ended 31 March 2021 - Water network plus | D198: £m | E198: Cyclical Foundation | F198: 136.47 | G198: 151.892 | H198: 218.817
A199: SWB | B199: B0143TAWWNP | C199: Totex (net of business rates, abstraction licence fees and grants and contributions) - Total actual totex (net of business rates, abstraction licence fees and grants and contributions) - 12 months ended 31 March 2021 - Wastewater network plus | D199: £m | E199: Cyclical Foundation | F199: 145.571 | G199: 170.847 | H199: 238.239
A200: SWB | B200: B0143TATTTH | C200: Totex (net of business rates, abstraction licence fees and grants and contributions) - Total actual totex (net of business rates, abstraction licence fees and grants and contributions) - 12 months ended 31 March 2021 - Thames Tideway/ Havant Thicket | D200: £m | E200: Cyclical Foundation | F200: 0 | G200: 0 | H200: 0
A201: SWB | B201: B0413TGTE_WR | C201: Total green recovery programme expenditure - Totex - Expenditure in report year - Water resources | D201: £m | E201: Cyclical Foundation | G201: 0.926 | H201: 3.591
... 451 more rows

Sheet F_Inputs
C1: PR24 inputs for cost rec | E1: Run on 23 Apr 2024 15:43
A2: Acronym | B2: Reference | C2: Item description | D2: Unit | E2: Model | F2: 2020-21 | G2: 2021-22 | H2: 2022-23 | I2: 2023-24 | J2: 2024-25 | K2: 2025-26 | L2: 2020-25
F4: Price Review 2024 | G4: Price Review 2024 | H4: Price Review 2024 | I4: Price Review 2024 | J4: Price Review 2024 | K4: Price Review 2024 | L4: Price Review 2024
F5: Run 10 - PR24 DD Data - All Batches | G5: Run 10 - PR24 DD Data - All Batches | H5: Run 10 - PR24 DD Data - All Batches | I5: Run 10 - PR24 DD Data - All Batches | J5: Run 10 - PR24 DD Data - All Batches | K5: Run 10 - PR24 DD Data - All Batches | L5: Run 10 - PR24 DD Data - All Batches
F6: Latest | G6: Latest | H6: Latest | I6: Latest | J6: Latest | K6: Latest | L6: Latest
A7: WSX | B7: B0143TAWR_PR24 | C7: Totex (net of business rates, abstraction licence fees and grants and contributions) - Total actual totex (net of business rates, abstraction licence fees and grants and contributions) - Water resources | D7: £m | E7: Price Review 2024 | H7: 13.416 | I7: 17.673 | J7: 14.633
A8: WSX | B8: B0143TAWNP_PR24 | C8: Totex (net of business rates, abstraction licence fees and grants and contributions) - Total actual totex (net of business rates, abstraction licence fees and grants and contributions) - Water network plus | D8: £m | E8: Price Review 2024 | H8: 131.114 | I8: 133.67 | J8: 109.57
A9: WSX | B9: B0143TAWWNP_PR24 | C9: Totex (net of business rates, abstraction licence fees and grants and contributions) - Total actual totex (net of business rates, abstraction licence fees and grants and contributions) - Wastewater network plus | D9: £m | E9: Price Review 2024 | H9: 262.854 | I9: 329.504 | J9: 315.527
A10: WSX | B10: B0143TABIO_PR24 | C10: Totex (net of business rates, abstraction licence fees and grants and contributions) - Total actual totex (net of business rates, abstraction licence fees and grants and contributions) - Bioresources | D10: £m | E10: Price Review 2024 | H10: 48.214 | I10: 63.999 | J10: 51.774
A11: WSX | B11: B0143TATTTH_PR24 | C11: Totex (net of business rates, abstraction licence fees and grants and contributions) - Total actual totex (net of business rates, abstraction licence fees and grants and contributions) - Additional Control | D11: £m | E11: Price Review 2024 | H11: 0 | I11: 0 | J11: 0
A12: WSX | B12: PD9_08WR_PR24 | C12: Totex - business rates and abstraction licence fees - Actual totex - business rates - Water resources | D12: £m | E12: Price Review 2024 | H12: 0.974 | I12: 0.667 | J12: 0.642
A13: WSX | B13: PD9_08WNP_PR24 | C13: Totex - business rates and abstraction licence fees - Actual totex - business rates - Water network plus | D13: £m | E13: Price Review 2024 | H13: 14.994 | I13: 10.258 | J13: 9.871
A14: WSX | B14: PD9_08WWNP_PR24 | C14: Totex - business rates and abstraction licence fees - Actual totex - business rates - Wastewater network plus | D14: £m | E14: Price Review 2024 | H14: 7.148 | I14: 8.994 | J14: 8.654
A15: WSX | B15: PD9_08BIO_PR24 | C15: Totex - business rates and abstraction licence fees - Actual totex - business rates - Bioresources | D15: £m | E15: Price Review 2024 | H15: 1.614 | I15: 1.88 | J15: 1.809
A16: WSX | B16: PD9_08ADDN1_PR24 | C16: Totex - business rates and abstraction licence fees - Actual totex - business rates - Additional Control | D16: £m | E16: Price Review 2024 | H16: 0 | I16: 0 | J16: 0
A17: WSX | B17: PD9_10WR_PR24 | C17: Totex - business rates and abstraction licence fees - Actual totex - abstraction licence fees - Water resources | D17: £m | E17: Price Review 2024 | H17: 2.732 | I17: 2.719 | J17: 2.651
A18: WSX | B18: PD9_10WNP_PR24 | C18: Totex - business rates and abstraction licence fees - Actual totex - abstraction licence fees - Water network plus | D18: £m | E18: Price Review 2024 | H18: 0.152 | I18: 0.143 | J18: 0.14
A19: WSX | B19: PD9_10WWNP_PR24 | C19: Totex - business rates and abstraction licence fees - Actual totex - abstraction licence fees - Wastewater network plus | D19: £m | E19: Price Review 2024 | H19: 0 | I19: 0 | J19: 0
A20: WSX | B20: PD9_10BIO_PR24 | C20: Totex - business rates and abstraction licence fees - Actual totex - abstraction licence fees - Bioresources | D20: £m | E20: Price Review 2024 | H20: 0 | I20: 0 | J20: 0
A21: WSX | B21: PD9_10ADDN1_PR24 | C21: Totex - business rates and abstraction licence fees - Actual totex - abstraction licence fees - Additional Control | D21: £m | E21: Price Review 2024 | H21: 0 | I21: 0 | J21: 0
A22: WSX | B22: PD9_13WR_PR24 | C22: CMA companies only – items excluded from general cost sharing with bespoke sharing rates - Company cost sharing rates - Water resources | D22: % | E22: Price Review 2024 | H22: 0 | I22: 0 | J22: 0
A23: WSX | B23: PD9_13WNP_PR24 | C23: CMA companies only – items excluded from general cost sharing with bespoke sharing rates - Company cost sharing rates - Water network plus | D23: % | E23: Price Review 2024 | H23: 0 | I23: 0 | J23: 0
A24: WSX | B24: PD9_13WWNP_PR24 | C24: CMA companies only – items excluded from general cost sharing with bespoke sharing rates - Company cost sharing rates - Wastewater network plus | D24: % | E24: Price Review 2024 | H24: 0 | I24: 0 | J24: 0
A25: WSX | B25: PD9_13BIO_PR24 | C25: CMA companies only – items excluded from general cost sharing with bespoke sharing rates - Company cost sharing rates - Bioresources | D25: % | E25: Price Review 2024 | H25: 0 | I25: 0 | J25: 0
A26: WSX | B26: PD9_13ADDN1_PR24 | C26: CMA companies only – items excluded from general cost sharing with bespoke sharing rates - Company cost sharing rates - Additional Control | D26: % | E26: Price Review 2024 | H26: 0 | I26: 0 | J26: 0
A27: WSX | B27: B0413TGTE_WR_PR24 | C27: Green recovery programme - Total green recovery programme expenditure - Totex - Water resources - Expenditure in report year | D27: £m | E27: Price Review 2024 | H27: 0 | I27: 0 | J27: 0 | K27: 0
A28: WSX | B28: B0420TGTE_RW_PR24 | C28: Green recovery programme - Total green recovery programme expenditure - Totex - Raw water transport - Water network+ - Expenditure in report year | D28: £m | E28: Price Review 2024 | H28: 0 | I28: 0 | J28: 0 | K28: 0
A29: WSX | B29: B0427TGTE_SW_PR24 | C29: Green recovery programme - Total green recovery programme expenditure - Totex - Raw water storage - Water network+ - Expenditure in report year | D29: £m | E29: Price Review 2024 | H29: 0 | I29: 0 | J29: 0 | K29: 0
A30: WSX | B30: B0434TGTE_TW_PR24 | C30: Green recovery programme - Total green recovery programme expenditure - Totex - Water treatment - Water network+ - Expenditure in report year | D30: £m | E30: Price Review 2024 | H30: 0 | I30: 0 | J30: 0 | K30: 0
A31: WSX | B31: B0441TGTE_DW_PR24 | C31: Green recovery programme - Total green recovery programme expenditure - Totex - Treated water distribution - Water network+ - Expenditure in report year | D31: £m | E31: Price Review 2024 | H31: 0 | I31: 0 | J31: 0 | K31: 0
A32: WSX | B32: B0513TGTE_FOW_PR24 | C32: Green recovery programme - Total green recovery programme expenditure - Totex - Foul - Wastewater network+ - Expenditure in report year | D32: £m | E32: Price Review 2024 | H32: 0 | I32: 0 | J32: 0 | K32: 0
A33: WSX | B33: B0520TGTE_SUW_PR24 | C33: Green recovery programme - Total green recovery programme expenditure - Totex - Surface water drainage - Wastewater network+ - Expenditure in report year | D33: £m | E33: Price Review 2024 | H33: 0 | I33: 0 | J33: 0 | K33: 0
A34: WSX | B34: B0527TGTE_HDW_PR24 | C34: Green recovery programme - Total green recovery programme expenditure - Totex - Highway drainage - Wastewater network+ - Expenditure in report year | D34: £m | E34: Price Review 2024 | H34: 0 | I34: 0 | J34: 0 | K34: 0
A35: WSX | B35: B0534TGTE_STW_PR24 | C35: Green recovery programme - Total green recovery programme expenditure - Totex - Sewage treatment and disposal - Wastewater network+ - Expenditure in report year | D35: £m | E35: Price Review 2024 | H35: 0 | I35: 0 | J35: 0 | K35: 0
A36: WSX | B36: B0541TGTE_SLW_PR24 | C36: Green recovery programme - Total green recovery programme expenditure - Totex - Sludge liquor treatment - Wastewater network+ - Expenditure in report year | D36: £m | E36: Price Review 2024 | H36: 0 | I36: 0 | J36: 0 | K36: 0
A37: WSX | B37: B0547TGTE_SAB_PR24 | C37: Green recovery programme - Total green recovery programme expenditure - Totex - Sludge transport - Bioresources - Expenditure in report year | D37: £m | E37: Price Review 2024 | H37: 0 | I37: 0 | J37: 0 | K37: 0
A38: WSX | B38: B0554TGTE_SEB_PR24 | C38: Green recovery programme - Total green recovery programme expenditure - Totex - Sludge treatment - Bioresources - Expenditure in report year | D38: £m | E38: Price Review 2024 | H38: 0 | I38: 0 | J38: 0 | K38: 0
A39: WSX | B39: B0561TGTE_SDB_PR24 | C39: Green recovery programme - Total green recovery programme expenditure - Totex - Sludge disposal - Bioresources - Expenditure in report year | D39: £m | E39: Price Review 2024 | H39: 0 | I39: 0 | J39: 0 | K39: 0
A40: WSX | B40: BB3905AL_PR24 | C40: Consumer price index (including housing costs) - Consumer Price Index (with housing) for April | D40: nr | E40: Price Review 2024 | F40: 108.6 | G40: 110.4 | H40: 119 | I40: 128.3 | J40: 132.1917667 | K40: 134.835602
A41: WSX | B41: BB3905MY_PR24 | C41: Consumer price index (including housing costs) - Consumer Price Index (with housing) for May | D41: nr | E41: Price Review 2024 | F41: 108.6 | G41: 111 | H41: 119.7 | I41: 129.1 | J41: 132.6287333 | K41: 135.281308
A42: WSX | B42: BB3905JN_PR24 | C42: Consumer price index (including housing costs) - Consumer Price Index (with housing) for June | D42: nr | E42: Price Review 2024 | F42: 108.8 | G42: 111.4 | H42: 120.5 | I42: 129.417 | J42: 132.781842 | K42: 135.4374788
A43: WSX | B43: BB3905JL_PR24 | C43: Consumer price index (including housing costs) - Consumer Price Index (with housing) for July | D43: nr | E43: Price Review 2024 | F43: 109.2 | G43: 111.4 | H43: 121.2 | I43: 128.9568 | J43: 132.825504 | K43: 135.4820141
A44: WSX | B44: BB3905AT_PR24 | C44: Consumer price index (including housing costs) - Consumer Price Index (with housing) for August | D44: nr | E44: Price Review 2024 | F44: 108.8 | G44: 112.1 | H44: 121.8 | I44: 129.717 | J44: 133.392315 | K44: 136.0601613
A45: WSX | B45: BB3905SR_PR24 | C45: Consumer price index (including housing costs) - Consumer Price Index (with housing) for September | D45: nr | E45: Price Review 2024 | F45: 109.2 | G45: 112.4 | H45: 122.3 | I45: 130.0456667 | J45: 133.6002482 | K45: 136.2722532
A46: WSX | B46: BB3905OR_PR24 | C46: Consumer price index (including housing costs) - Consumer Price Index (with housing) for October | D46: nr | E46: Price Review 2024 | F46: 109.2 | G46: 113.4 | H46: 124.3 | I46: 130.3492667 | J46: 133.8686969 | K46: 136.5460708
A47: WSX | B47: BB3905NR_PR24 | C47: Consumer price index (including housing costs) - Consumer Price Index (with housing) for November | D47: nr | E47: Price Review 2024 | F47: 109.1 | G47: 114.1 | H47: 124.8 | I47: 130.7072 | J47: 134.1927253 | K47: 136.8765798
A48: WSX | B48: BB3905DR_PR24 | C48: Consumer price index (including housing costs) - Consumer Price Index (with housing) for December | D48: nr | E48: Price Review 2024 | F48: 109.4 | G48: 114.7 | H48: 125.3 | I48: 130.9385 | J48: 134.342901 | K48: 137.029759
A49: WSX | B49: BB3905JY_PR24 | C49: Consumer price index (including housing costs) - Consumer Price Index (with housing) for January | D49: nr | E49: Price Review 2024 | F49: 109.3 | G49: 114.6 | H49: 124.8 | I49: 130.5408 | J49: 133.151616 | K49: 135.8146483
A50: WSX | B50: BB3905FY_PR24 | C50: Consumer price index (including housing costs) - Consumer Price Index (with housing) for February | D50: nr | E50: Price Review 2024 | F50: 109.4 | G50: 115.4 | H50: 126 | I50: 131.124 | J50: 133.74648 | K50: 136.4214096
A51: WSX | B51: BB3905MH_PR24 | C51: Consumer price index (including housing costs) - Consumer Price Index (with housing) for March | D51: nr | E51: Price Review 2024 | F51: 109.7 | G51: 116.5 | H51: 126.8 | I51: 131.4916 | J51: 134.121432 | K51: 136.8038606
A52: WSX | B52: C_OPEX_SPLIT_BASE_WR_PR19CA091 | C52: PR19 Opex split profile - Base costs - WR | D52: % | E52: Price Review 2024 | F52: 0.1443457837 | G52: 0.1498328443 | H52: 0.1663601238 | I52: 0.1499139361 | J52: 0.1511681452
A53: WSX | B53: C_OPEX_SPLIT_BASE_WN_PR19CA091 | C53: PR19 Opex split profile - Base costs - WN | D53: % | E53: Price Review 2024 | F53: 0.1301196733 | G53: 0.1300208703 | H53: 0.1299125891 | I53: 0.1298375082 | J53: 0.1299562709
A54: WSX | B54: C_OPEX_SPLIT_BASE_WWN_PR19CA091 | C54: PR19 Opex split profile - Base costs - WWN | D54: % | E54: Price Review 2024 | F54: 0.09047609179 | G54: 0.09139010461 | H54: 0.09217254082 | I54: 0.09305215144 | J54: 0.09399154531
A55: WSX | B55: C_OPEX_SPLIT_BASE_BR_PR19CA091 | C55: PR19 Opex split profile - Base costs - BR | D55: % | E55: Price Review 2024 | F55: 0.1455744815 | G55: 0.146256727 | H55: 0.1469492123 | I55: 0.1476520928 | J55: 0.1479780122
A56: WSX | B56: C_OPEX_SPLIT_BASE_DMMY_PR19CA091 | C56: PR19 Opex split profile - Base costs - DMMY | D56: % | E56: Price Review 2024 | F56: 0 | G56: 0 | H56: 0 | I56: 0 | J56: 0
A57: WSX | B57: C_CAPEX_SPLIT_BASE_WR_PR19CA091 | C57: PR19 Capex Split Profile - Base costs - WR | D57: % | E57: Price Review 2024 | F57: 0.04627501657 | G57: 0.06884442968 | H57: 0.05514971161 | I57: 0.03416186722 | J57: 0.03394814172
A58: WSX | B58: C_CAPEX_SPLIT_BASE_WN_PR19CA091 | C58: PR19 Capex Split Profile - Base costs - WN | D58: % | E58: Price Review 2024 | F58: 0.06870121835 | G58: 0.06037618747 | H58: 0.09708893353 | I58: 0.06689515602 | J58: 0.05709159289
A59: WSX | B59: C_CAPEX_SPLIT_BASE_WWN_PR19CA091 | C59: PR19 Capex Split Profile - Base costs - WWN | D59: % | E59: Price Review 2024 | F59: 0.1004415686 | G59: 0.1077855175 | H59: 0.1089612382 | I59: 0.1135820105 | J59: 0.1081472313
A60: WSX | B60: C_CAPEX_SPLIT_BASE_BR_PR19CA091 | C60: PR19 Capex Split Profile - Base costs - BR | D60: % | E60: Price Review 2024 | F60: 0.05259070868 | G60: 0.04583475159 | H60: 0.06355529478 | I60: 0.04437280677 | J60: 0.05923591238
A61: WSX | B61: C_CAPEX_SPLIT_BASE_DMMY_PR19CA091 | C61: PR19 Capex Split Profile - Base costs - DMMY | D61: % | E61: Price Review 2024 | F61: 0 | G61: 0 | H61: 0 | I61: 0 | J61: 0
A62: WSX | B62: C_PR19_E_WW_WINEP_WWN | C62: PR19 - WINEP in the round for cost reconciliation - WWN | D62: £m | E62: Price Review 2024 | L62: 384.0553114
A63: WSX | B63: C_PR19_E_W_METERING_WN | C63: PR19 - metering for cost reconciliation - WN | D63: £m | E63: Price Review 2024 | L63: 10.92401635
A64: WSX | B64: C__PR24PD11_PD11_12WR_PRETVM_PR24 | C64: PR19 WINEP / NEP RCV adjustment in 2017-18 FYA (CPIH deflated) prices (WR) - Pre time value of money adjustment | D64: £m | E64: Price Review 2024 | H64: 0 | I64: 0 | J64: 0 | L64: 0
A65: WSX | B65: C__PR24PD11_PD11_12WN_PRETVM_PR24 | C65: PR19 WINEP / NEP RCV adjustment in 2017-18 FYA (CPIH deflated) prices (WN) - Pre time value of money adjustment | D65: £m | E65: Price Review 2024 | H65: 0 | I65: 0 | J65: 0 | L65: 0
A66: WSX | B66: C__PR24PD11_PD11_12WWN_PRETVM_PR24 | C66: PR19 WINEP / NEP RCV adjustment in 2017-18 FYA (CPIH deflated) prices (WWN) - Pre time value of money adjustment | D66: £m | E66: Price Review 2024 | H66: -3.5539224 | I66: -3.5539224 | J66: -3.5539224 | L66: -10.6617672
A67: WSX | B67: C__PR24PD11_PD11_12BIO_PRETVM_PR24 | C67: PR19 WINEP / NEP RCV adjustment in 2017-18 FYA (CPIH deflated) prices (BR) - Pre time value of money adjustment | D67: £m | E67: Price Review 2024 | H67: 0 | I67: 0 | J67: 0 | L67: 0
A68: WSX | B68: C__PR24PD11_PD11_12ADDN1_PRETVM_PR24 | C68: PR19 WINEP / NEP RCV adjustment in 2017-18 FYA (CPIH deflated) prices (ADDN1) - Pre time value of money adjustment | D68: £m | E68: Price Review 2024 | H68: 0 | I68: 0 | J68: 0 | L68: 0
A69: WSX | B69: C_PR24PD11_PD11_12ADDN2_PR24 | C69: PR19 WINEP / NEP RCV adjustment in 2017-18 FYA (CPIH deflated) prices (ADDN2) | D69: £m | E69: Price Review 2024
A70: WSX | B70: C_PR24PD21_01WR_PR24 | C70: Total adjusted cost allowance - WR - real | D70: £m | E70: Price Review 2024
A71: WSX | B71: C_PR24PD21_01WN_PR24 | C71: Total adjusted cost allowance - WN+ - real | D71: £m | E71: Price Review 2024
A72: WSX | B72: C_PR24PD21_01WWN_PR24 | C72: Total adjusted cost allowance - WWN+ - real | D72: £m | E72: Price Review 2024
A73: WSX | B73: C_PR24PD21_01BIO_PR24 | C73: Total adjusted cost allowance - BR - real | D73: £m | E73: Price Review 2024
A74: WSX | B74: PD9_11WR_PR24 | C74: CMA companies only – items excluded from general cost sharing with bespoke sharing rates - CMA final determination allowed totex – items with bespoke sharing rates - Water resources | D74: £m | E74: Price Review 2024 | H74: 0 | I74: 0 | J74: 0
A75: WSX | B75: PD9_11WNP_PR24 | C75: CMA companies only – items excluded from general cost sharing with bespoke sharing rates - CMA final determination allowed totex – items with bespoke sharing rates - Water network plus | D75: £m | E75: Price Review 2024 | H75: 0 | I75: 0 | J75: 0
A76: WSX | B76: PD9_11WWNP_PR24 | C76: CMA companies only – items excluded from general cost sharing with bespoke sharing rates - CMA final determination allowed totex – items with bespoke sharing rates - Wastewater network plus | D76: £m | E76: Price Review 2024 | H76: 0 | I76: 0 | J76: 0
A77: WSX | B77: PD9_11BIO_PR24 | C77: CMA companies only – items excluded from general cost sharing with bespoke sharing rates - CMA final determination allowed totex – items with bespoke sharing rates - Bioresources | D77: £m | E77: Price Review 2024 | H77: 0 | I77: 0 | J77: 0
A78: WSX | B78: PD9_11ADDN1_PR24 | C78: CMA companies only – items excluded from general cost sharing with bespoke sharing rates - CMA final determination allowed totex – items with bespoke sharing rates - Additional Control | D78: £m | E78: Price Review 2024 | H78: 0 | I78: 0 | J78: 0
A79: WSX | B79: PD9_12WR_PR24 | C79: CMA companies only – items excluded from general cost sharing with bespoke sharing rates - Actual totex – items with bespoke sharing rates - Water resources | D79: £m | E79: Price Review 2024 | H79: 0 | I79: 0 | J79: 0
A80: WSX | B80: PD9_12WNP_PR24 | C80: CMA companies only – items excluded from general cost sharing with bespoke sharing rates - Actual totex – items with bespoke sharing rates - Water network plus | D80: £m | E80: Price Review 2024 | H80: 0 | I80: 0 | J80: 0
A81: WSX | B81: PD9_12WWNP_PR24 | C81: CMA companies only – items excluded from general cost sharing with bespoke sharing rates - Actual totex – items with bespoke sharing rates - Wastewater network plus | D81: £m | E81: Price Review 2024 | H81: 0 | I81: 0 | J81: 0
A82: WSX | B82: PD9_12BIO_PR24 | C82: CMA companies only – items excluded from general cost sharing with bespoke sharing rates - Actual totex – items with bespoke sharing rates - Bioresources | D82: £m | E82: Price Review 2024 | H82: 0 | I82: 0 | J82: 0
A83: WSX | B83: PD9_12ADDN1_PR24 | C83: CMA companies only – items excluded from general cost sharing with bespoke sharing rates - Actual totex – items with bespoke sharing rates - Additional Control | D83: £m | E83: Price Review 2024 | H83: 0 | I83: 0 | J83: 0
A84: WSX | B84: C_PR19_E_WW_WINEP_BIO | C84: PR19 - WINEP in the round for cost reconciliation - BIO | D84: £m | E84: Price Review 2024 | L84: 0

Sheet Consolidated actual totex inp
A1: Company acronym | E1: WSX | G1: ='F_Inputs-APR & PR19'!F6 -> 2020-21 | H1: ='F_Inputs-APR & PR19'!G6 -> 2021-22 | I1: ='F_Inputs-APR & PR19'!H6 -> 2022-23 | J1: ='F_Inputs-APR & PR19'!I6 -> 2023-24 | K1: ='F_Inputs-APR & PR19'!J6 -> 2024-25
F2: CPIH fin year ave | G2: =AVERAGE(F_Inputs!F40:F51) -> 109.1083333 | H2: =AVERAGE(F_Inputs!G40:G51) -> 113.1166667 | I2: =AVERAGE(F_Inputs!H40:H51) -> 123.0416667 | J2: =AVERAGE(F_Inputs!I40:I51) -> 130.0573194 | K2: =AVERAGE(F_Inputs!J40:J51) -> 133.4036884
F3: Conversion factor for business plan totex from 22-23 real to nominal | I3: =I2/$I$2 -> 1 | J3: =J2/$I$2 -> 1.057018512 | K3: 1.084215551
D4: Data before override
B5: B0143TAWR | C5: B0143TAWR_PR24 | F5: Totex (net of business rates, abstraction licence fees and grants and contributions) - Total actual totex (net of business rates, abstraction licence fees and grants and contributions) - Water resources | G5: =SUMIFS('F_Inputs-APR & PR19'!F:F, 'F_Inputs-APR & PR19'!$A:$A, 'Consolidated actual totex inp'!$E$1, 'F_Inputs-APR & PR19'!$B:$B, 'Consolidated actual totex inp'!$B5) -> 9.284 | H5: =SUMIFS('F_Inputs-APR & PR19'!G:G, 'F_Inputs-APR & PR19'!$A:$A, 'Consolidated actual totex inp'!$E$1, 'F_Inputs-APR & PR19'!$B:$B, 'Consolidated actual totex inp'!$B5) -> 10.571 | I5: =SUMIFS(F_Inputs!H:H, F_Inputs!$A:$A, 'Consolidated actual totex inp'!$E$1, F_Inputs!$B:$B, 'Consolidated actual totex inp'!$C5)*'Consolidated actual totex inp'!I$3 -> 13.416 | J5: =SUMIFS(F_Inputs!I:I, F_Inputs!$A:$A, 'Consolidated actual totex inp'!$E$1, F_Inputs!$B:$B, 'Consolidated actual totex inp'!$C5)*'Consolidated actual totex inp'!J$3 -> 18.68068817 | K5: =SUMIFS(F_Inputs!J:J, F_Inputs!$A:$A, 'Consolidated actual totex inp'!$E$1, F_Inputs!$B:$B, 'Consolidated actual totex inp'!$C5)*'Consolidated actual totex inp'!K$3 -> 15.86532615
B6: B0143TAWNP | C6: B0143TAWNP_PR24 | F6: Totex (net of business rates, abstraction licence fees and grants and contributions) - Total actual totex (net of business rates, abstraction licence fees and grants and contributions) - Water network plus | G6: =SUMIFS('F_Inputs-APR & PR19'!F:F, 'F_Inputs-APR & PR19'!$A:$A, 'Consolidated actual totex inp'!$E$1, 'F_Inputs-APR & PR19'!$B:$B, 'Consolidated actual totex inp'!$B6) -> 119.906 | H6: =SUMIFS('F_Inputs-APR & PR19'!G:G, 'F_Inputs-APR & PR19'!$A:$A, 'Consolidated actual totex inp'!$E$1, 'F_Inputs-APR & PR19'!$B:$B, 'Consolidated actual totex inp'!$B6) -> 118.23 | I6: =SUMIFS(F_Inputs!H:H, F_Inputs!$A:$A, 'Consolidated actual totex inp'!$E$1, F_Inputs!$B:$B, 'Consolidated actual totex inp'!$C6)*'Consolidated actual totex inp'!I$3 -> 131.114 | J6: =SUMIFS(F_Inputs!I:I, F_Inputs!$A:$A, 'Consolidated actual totex inp'!$E$1, F_Inputs!$B:$B, 'Consolidated actual totex inp'!$C6)*'Consolidated actual totex inp'!J$3 -> 141.2916645 | K6: =SUMIFS(F_Inputs!J:J, F_Inputs!$A:$A, 'Consolidated actual totex inp'!$E$1, F_Inputs!$B:$B, 'Consolidated actual totex inp'!$C6)*'Consolidated actual totex inp'!K$3 -> 118.7974979
B7: B0143TAWWNP | C7: B0143TAWWNP_PR24 | F7: Totex (net of business rates, abstraction licence fees and grants and contributions) - Total actual totex (net of business rates, abstraction licence fees and grants and contributions) - Wastewater network plus | G7: =SUMIFS('F_Inputs-APR & PR19'!F:F, 'F_Inputs-APR & PR19'!$A:$A, 'Consolidated actual totex inp'!$E$1, 'F_Inputs-APR & PR19'!$B:$B, 'Consolidated actual totex inp'!$B7) -> 237.078 | H7: =SUMIFS('F_Inputs-APR & PR19'!G:G, 'F_Inputs-APR & PR19'!$A:$A, 'Consolidated actual totex inp'!$E$1, 'F_Inputs-APR & PR19'!$B:$B, 'Consolidated actual totex inp'!$B7) -> 235.873 | I7: =SUMIFS(F_Inputs!H:H, F_Inputs!$A:$A, 'Consolidated actual totex inp'!$E$1, F_Inputs!$B:$B, 'Consolidated actual totex inp'!$C7)*'Consolidated actual totex inp'!I$3 -> 262.854 | J7: =SUMIFS(F_Inputs!I:I, F_Inputs!$A:$A, 'Consolidated actual totex inp'!$E$1, F_Inputs!$B:$B, 'Consolidated actual totex inp'!$C7)*'Consolidated actual totex inp'!J$3 -> 348.2918279 | K7: =SUMIFS(F_Inputs!J:J, F_Inputs!$A:$A, 'Consolidated actual totex inp'!$E$1, F_Inputs!$B:$B, 'Consolidated actual totex inp'!$C7)*'Consolidated actual totex inp'!K$3 -> 342.09928
B8: B0143TATTTH | C8: B0143TATTTH_PR24 | F8: Totex (net of business rates, abstraction licence fees and grants and contributions) - Total actual totex (net of business rates, abstraction licence fees and grants and contributions) - Additional Control | G8: =SUMIFS('F_Inputs-APR & PR19'!F:F, 'F_Inputs-APR & PR19'!$A:$A, 'Consolidated actual totex inp'!$E$1, 'F_Inputs-APR & PR19'!$B:$B, 'Consolidated actual totex inp'!$B8) -> 0 | H8: =SUMIFS('F_Inputs-APR & PR19'!G:G, 'F_Inputs-APR & PR19'!$A:$A, 'Consolidated actual totex inp'!$E$1, 'F_Inputs-APR & PR19'!$B:$B, 'Consolidated actual totex inp'!$B8) -> 0 | I8: =SUMIFS(F_Inputs!H:H, F_Inputs!$A:$A, 'Consolidated actual totex inp'!$E$1, F_Inputs!$B:$B, 'Consolidated actual totex inp'!$C8)*'Consolidated actual totex inp'!I$3 -> 0 | J8: =SUMIFS(F_Inputs!I:I, F_Inputs!$A:$A, 'Consolidated actual totex inp'!$E$1, F_Inputs!$B:$B, 'Consolidated actual totex inp'!$C8)*'Consolidated actual totex inp'!J$3 -> 0 | K8: =SUMIFS(F_Inputs!J:J, F_Inputs!$A:$A, 'Consolidated actual totex inp'!$E$1, F_Inputs!$B:$B, 'Consolidated actual totex inp'!$C8)*'Consolidated actual totex inp'!K$3 -> 0
B9: WS01008WR | C9: PD9_08WR_PR24 | F9: Totex - business rates and abstraction licence fees - Actual totex - business rates - Water resources | G9: =SUMIFS('F_Inputs-APR & PR19'!F:F, 'F_Inputs-APR & PR19'!$A:$A, 'Consolidated actual totex inp'!$E$1, 'F_Inputs-APR & PR19'!$B:$B, 'Consolidated actual totex inp'!$B9) -> 0.9676407112 | H9: =SUMIFS('F_Inputs-APR & PR19'!G:G, 'F_Inputs-APR & PR19'!$A:$A, 'Consolidated actual totex inp'!$E$1, 'F_Inputs-APR & PR19'!$B:$B, 'Consolidated actual totex inp'!$B9) -> 0.961387745 | I9: =SUMIFS(F_Inputs!H:H, F_Inputs!$A:$A, 'Consolidated actual totex inp'!$E$1, F_Inputs!$B:$B, 'Consolidated actual totex inp'!$C9)*'Consolidated actual totex inp'!I$3 -> 0.974 | J9: =SUMIFS(F_Inputs!I:I, F_Inputs!$A:$A, 'Consolidated actual totex inp'!$E$1, F_Inputs!$B:$B, 'Consolidated actual totex inp'!$C9)*'Consolidated actual totex inp'!J$3 -> 0.7050313477 | K9: =SUMIFS(F_Inputs!J:J, F_Inputs!$A:$A, 'Consolidated actual totex inp'!$E$1, F_Inputs!$B:$B, 'Consolidated actual totex inp'!$C9)*'Consolidated actual totex inp'!K$3 -> 0.6960663835
B10: BM317WN | C10: PD9_08WNP_PR24 | F10: Totex - business rates and abstraction licence fees - Actual totex - business rates - Water network plus | G10: =SUMIFS('F_Inputs-APR & PR19'!F:F, 'F_Inputs-APR & PR19'!$A:$A, 'Consolidated actual totex inp'!$E$1, 'F_Inputs-APR & PR19'!$B:$B, 'Consolidated actual totex inp'!$B10) -> 15.05175258 | H10: =SUMIFS('F_Inputs-APR & PR19'!G:G, 'F_Inputs-APR & PR19'!$A:$A, 'Consolidated actual totex inp'!$E$1, 'F_Inputs-APR & PR19'!$B:$B, 'Consolidated actual totex inp'!$B10) -> 14.92980756 | I10: =SUMIFS(F_Inputs!H:H, F_Inputs!$A:$A, 'Consolidated actual totex inp'!$E$1, F_Inputs!$B:$B, 'Consolidated actual totex inp'!$C10)*'Consolidated actual totex inp'!I$3 -> 14.994 | J10: =SUMIFS(F_Inputs!I:I, F_Inputs!$A:$A, 'Consolidated actual totex inp'!$E$1, F_Inputs!$B:$B, 'Consolidated actual totex inp'!$C10)*'Consolidated actual totex inp'!J$3 -> 10.8428959 | K10: =SUMIFS(F_Inputs!J:J, F_Inputs!$A:$A, 'Consolidated actual totex inp'!$E$1, F_Inputs!$B:$B, 'Consolidated actual totex inp'!$C10)*'Consolidated actual totex inp'!K$3 -> 10.7022917
B11: BM817WNK | C11: PD9_08WWNP_PR24 | F11: Totex - business rates and abstraction licence fees - Actual totex - business rates - Wastewater network plus | G11: =SUMIFS('F_Inputs-APR & PR19'!F:F, 'F_Inputs-APR & PR19'!$A:$A, 'Consolidated actual totex inp'!$E$1, 'F_Inputs-APR & PR19'!$B:$B, 'Consolidated actual totex inp'!$B11) -> 7.150233251 | H11: =SUMIFS('F_Inputs-APR & PR19'!G:G, 'F_Inputs-APR & PR19'!$A:$A, 'Consolidated actual totex inp'!$E$1, 'F_Inputs-APR & PR19'!$B:$B, 'Consolidated actual totex inp'!$B11) -> 7.147619918 | I11: =SUMIFS(F_Inputs!H:H, F_Inputs!$A:$A, 'Consolidated actual totex inp'!$E$1, F_Inputs!$B:$B, 'Consolidated actual totex inp'!$C11)*'Consolidated actual totex inp'!I$3 -> 7.148 | J11: =SUMIFS(F_Inputs!I:I, F_Inputs!$A:$A, 'Consolidated actual totex inp'!$E$1, F_Inputs!$B:$B, 'Consolidated actual totex inp'!$C11)*'Consolidated actual totex inp'!J$3 -> 9.506824499 | K11: =SUMIFS(F_Inputs!J:J, F_Inputs!$A:$A, 'Consolidated actual totex inp'!$E$1, F_Inputs!$B:$B, 'Consolidated actual totex inp'!$C11)*'Consolidated actual totex inp'!K$3 -> 9.382801375
B12: BM817SG | C12: PD9_08BIO_PR24 | F12: Totex - business rates and abstraction licence fees - Actual totex - business rates - Bioresources | G12: =SUMIFS('F_Inputs-APR & PR19'!F:F, 'F_Inputs-APR & PR19'!$A:$A, 'Consolidated actual totex inp'!$E$1, 'F_Inputs-APR & PR19'!$B:$B, 'Consolidated actual totex inp'!$B12) -> 1.646032583 | H12: =SUMIFS('F_Inputs-APR & PR19'!G:G, 'F_Inputs-APR & PR19'!$A:$A, 'Consolidated actual totex inp'!$E$1, 'F_Inputs-APR & PR19'!$B:$B, 'Consolidated actual totex inp'!$B12) -> 1.618605869 | I12: =SUMIFS(F_Inputs!H:H, F_Inputs!$A:$A, 'Consolidated actual totex inp'!$E$1, F_Inputs!$B:$B, 'Consolidated actual totex inp'!$C12)*'Consolidated actual totex inp'!I$3 -> 1.614 | J12: =SUMIFS(F_Inputs!I:I, F_Inputs!$A:$A, 'Consolidated actual totex inp'!$E$1, F_Inputs!$B:$B, 'Consolidated actual totex inp'!$C12)*'Consolidated actual totex inp'!J$3 -> 1.987194803 | K12: =SUMIFS(F_Inputs!J:J, F_Inputs!$A:$A, 'Consolidated actual totex inp'!$E$1, F_Inputs!$B:$B, 'Consolidated actual totex inp'!$C12)*'Consolidated actual totex inp'!K$3 -> 1.961345931
B13: BM817TTT | C13: PD9_08ADDN1_PR24 | F13: Totex - business rates and abstraction licence fees - Actual totex - business rates - Additional Control | G13: =SUMIFS('F_Inputs-APR & PR19'!F:F, 'F_Inputs-APR & PR19'!$A:$A, 'Consolidated actual totex inp'!$E$1, 'F_Inputs-APR & PR19'!$B:$B, 'Consolidated actual totex inp'!$B13) -> 0 | H13: =SUMIFS('F_Inputs-APR & PR19'!G:G, 'F_Inputs-APR & PR19'!$A:$A, 'Consolidated actual totex inp'!$E$1, 'F_Inputs-APR & PR19'!$B:$B, 'Consolidated actual totex inp'!$B13) -> 0 | I13: =SUMIFS(F_Inputs!H:H, F_Inputs!$A:$A, 'Consolidated actual totex inp'!$E$1, F_Inputs!$B:$B, 'Consolidated actual totex inp'!$C13)*'Consolidated actual totex inp'!I$3 -> 0 | J13: =SUMIFS(F_Inputs!I:I, F_Inputs!$A:$A, 'Consolidated actual totex inp'!$E$1, F_Inputs!$B:$B, 'Consolidated actual totex inp'!$C13)*'Consolidated actual totex inp'!J$3 -> 0 | K13: =SUMIFS(F_Inputs!J:J, F_Inputs!$A:$A, 'Consolidated actual totex inp'!$E$1, F_Inputs!$B:$B, 'Consolidated actual totex inp'!$C13)*'Consolidated actual totex inp'!K$3 -> 0
B14: B0012WR | C14: PD9_10WR_PR24 | F14: Totex - business rates and abstraction licence fees - Actual totex - abstraction licence fees - Water resources | G14: =SUMIFS('F_Inputs-APR & PR19'!F:F, 'F_Inputs-APR & PR19'!$A:$A, 'Consolidated actual totex inp'!$E$1, 'F_Inputs-APR & PR19'!$B:$B, 'Consolidated actual totex inp'!$B14) -> 2.479462638 | H14: =SUMIFS('F_Inputs-APR & PR19'!G:G, 'F_Inputs-APR & PR19'!$A:$A, 'Consolidated actual totex inp'!$E$1, 'F_Inputs-APR & PR19'!$B:$B, 'Consolidated actual totex inp'!$B14) -> 2.583545016 | I14: =SUMIFS(F_Inputs!H:H, F_Inputs!$A:$A, 'Consolidated actual totex inp'!$E$1, F_Inputs!$B:$B, 'Consolidated actual totex inp'!$C14)*'Consolidated actual totex inp'!I$3 -> 2.732 | J14: =SUMIFS(F_Inputs!I:I, F_Inputs!$A:$A, 'Consolidated actual totex inp'!$E$1, F_Inputs!$B:$B, 'Consolidated actual totex inp'!$C14)*'Consolidated actual totex inp'!J$3 -> 2.874033335 | K14: =SUMIFS(F_Inputs!J:J, F_Inputs!$A:$A, 'Consolidated actual totex inp'!$E$1, F_Inputs!$B:$B, 'Consolidated actual totex inp'!$C14)*'Consolidated actual totex inp'!K$3 -> 2.874255425
B15: B0012WN | C15: PD9_10WNP_PR24 | F15: Totex - business rates and abstraction licence fees - Actual totex - abstraction licence fees - Water network plus | G15: =SUMIFS('F_Inputs-APR & PR19'!F:F, 'F_Inputs-APR & PR19'!$A:$A, 'Consolidated actual totex inp'!$E$1, 'F_Inputs-APR & PR19'!$B:$B, 'Consolidated actual totex inp'!$B15) -> 0.1424992303 | H15: =SUMIFS('F_Inputs-APR & PR19'!G:G, 'F_Inputs-APR & PR19'!$A:$A, 'Consolidated actual totex inp'!$E$1, 'F_Inputs-APR & PR19'!$B:$B, 'Consolidated actual totex inp'!$B15) -> 0.1429897438 | I15: =SUMIFS(F_Inputs!H:H, F_Inputs!$A:$A, 'Consolidated actual totex inp'!$E$1, F_Inputs!$B:$B, 'Consolidated actual totex inp'!$C15)*'Consolidated actual totex inp'!I$3 -> 0.152 | J15: =SUMIFS(F_Inputs!I:I, F_Inputs!$A:$A, 'Consolidated actual totex inp'!$E$1, F_Inputs!$B:$B, 'Consolidated actual totex inp'!$C15)*'Consolidated actual totex inp'!J$3 -> 0.1511536473 | K15: =SUMIFS(F_Inputs!J:J, F_Inputs!$A:$A, 'Consolidated actual totex inp'!$E$1, F_Inputs!$B:$B, 'Consolidated actual totex inp'!$C15)*'Consolidated actual totex inp'!K$3 -> 0.1517901771
B16: B0413TGTE_WR | C16: B0413TGTE_WR_PR24 | F16: Green recovery programme - Total green recovery programme expenditure - Totex - Water resources - Expenditure in report year | G16: =SUMIFS('F_Inputs-APR & PR19'!F:F, 'F_Inputs-APR & PR19'!$A:$A, 'Consolidated actual totex inp'!$E$1, 'F_Inputs-APR & PR19'!$B:$B, 'Consolidated actual totex inp'!$B16) -> 0 | H16: =SUMIFS('F_Inputs-APR & PR19'!G:G, 'F_Inputs-APR & PR19'!$A:$A, 'Consolidated actual totex inp'!$E$1, 'F_Inputs-APR & PR19'!$B:$B, 'Consolidated actual totex inp'!$B16) -> 0 | I16: =SUMIFS(F_Inputs!H:H, F_Inputs!$A:$A, 'Consolidated actual totex inp'!$E$1, F_Inputs!$B:$B, 'Consolidated actual totex inp'!$C16)*'Consolidated actual totex inp'!I$3 -> 0 | J16: =SUMIFS(F_Inputs!I:I, F_Inputs!$A:$A, 'Consolidated actual totex inp'!$E$1, F_Inputs!$B:$B, 'Consolidated actual totex inp'!$C16)*'Consolidated actual totex inp'!J$3 -> 0 | K16: =SUMIFS(F_Inputs!J:J, F_Inputs!$A:$A, 'Consolidated actual totex inp'!$E$1, F_Inputs!$B:$B, 'Consolidated actual totex inp'!$C16)*'Consolidated actual totex inp'!K$3 -> 0
B17: B0420TGTE_RW | C17: B0420TGTE_RW_PR24 | F17: Green recovery programme - Total green recovery programme expenditure - Totex - Raw water transport - Water network+ - Expenditure in report year | G17: =SUMIFS('F_Inputs-APR & PR19'!F:F, 'F_Inputs-APR & PR19'!$A:$A, 'Consolidated actual totex inp'!$E$1, 'F_Inputs-APR & PR19'!$B:$B, 'Consolidated actual totex inp'!$B17) -> 0 | H17: =SUMIFS('F_Inputs-APR & PR19'!G:G, 'F_Inputs-APR & PR19'!$A:$A, 'Consolidated actual totex inp'!$E$1, 'F_Inputs-APR & PR19'!$B:$B, 'Consolidated actual totex inp'!$B17) -> 0 | I17: =SUMIFS(F_Inputs!H:H, F_Inputs!$A:$A, 'Consolidated actual totex inp'!$E$1, F_Inputs!$B:$B, 'Consolidated actual totex inp'!$C17)*'Consolidated actual totex inp'!I$3 -> 0 | J17: =SUMIFS(F_Inputs!I:I, F_Inputs!$A:$A, 'Consolidated actual totex inp'!$E$1, F_Inputs!$B:$B, 'Consolidated actual totex inp'!$C17)*'Consolidated actual totex inp'!J$3 -> 0 | K17: =SUMIFS(F_Inputs!J:J, F_Inputs!$A:$A, 'Consolidated actual totex inp'!$E$1, F_Inputs!$B:$B, 'Consolidated actual totex inp'!$C17)*'Consolidated actual totex inp'!K$3 -> 0
B18: B0427TGTE_SW | C18: B0427TGTE_SW_PR24 | F18: Green recovery programme - Total green recovery programme expenditure - Totex - Raw water storage - Water network+ - Expenditure in report year | G18: =SUMIFS('F_Inputs-APR & PR19'!F:F, 'F_Inputs-APR & PR19'!$A:$A, 'Consolidated actual totex inp'!$E$1, 'F_Inputs-APR & PR19'!$B:$B, 'Consolidated actual totex inp'!$B18) -> 0 | H18: =SUMIFS('F_Inputs-APR & PR19'!G:G, 'F_Inputs-APR & PR19'!$A:$A, 'Consolidated actual totex inp'!$E$1, 'F_Inputs-APR & PR19'!$B:$B, 'Consolidated actual totex inp'!$B18) -> 0 | I18: =SUMIFS(F_Inputs!H:H, F_Inputs!$A:$A, 'Consolidated actual totex inp'!$E$1, F_Inputs!$B:$B, 'Consolidated actual totex inp'!$C18)*'Consolidated actual totex inp'!I$3 -> 0 | J18: =SUMIFS(F_Inputs!I:I, F_Inputs!$A:$A, 'Consolidated actual totex inp'!$E$1, F_Inputs!$B:$B, 'Consolidated actual totex inp'!$C18)*'Consolidated actual totex inp'!J$3 -> 0 | K18: =SUMIFS(F_Inputs!J:J, F_Inputs!$A:$A, 'Consolidated actual totex inp'!$E$1, F_Inputs!$B:$B, 'Consolidated actual totex inp'!$C18)*'Consolidated actual totex inp'!K$3 -> 0
B19: B0434TGTE_TW | C19: B0434TGTE_TW_PR24 | F19: Green recovery programme - Total green recovery programme expenditure - Totex - Water treatment - Water network+ - Expenditure in report year | G19: =SUMIFS('F_Inputs-APR & PR19'!F:F, 'F_Inputs-APR & PR19'!$A:$A, 'Consolidated actual totex inp'!$E$1, 'F_Inputs-APR & PR19'!$B:$B, 'Consolidated actual totex inp'!$B19) -> 0 | H19: =SUMIFS('F_Inputs-APR & PR19'!G:G, 'F_Inputs-APR & PR19'!$A:$A, 'Consolidated actual totex inp'!$E$1, 'F_Inputs-APR & PR19'!$B:$B, 'Consolidated actual totex inp'!$B19) -> 0 | I19: =SUMIFS(F_Inputs!H:H, F_Inputs!$A:$A, 'Consolidated actual totex inp'!$E$1, F_Inputs!$B:$B, 'Consolidated actual totex inp'!$C19)*'Consolidated actual totex inp'!I$3 -> 0 | J19: =SUMIFS(F_Inputs!I:I, F_Inputs!$A:$A, 'Consolidated actual totex inp'!$E$1, F_Inputs!$B:$B, 'Consolidated actual totex inp'!$C19)*'Consolidated actual totex inp'!J$3 -> 0 | K19: =SUMIFS(F_Inputs!J:J, F_Inputs!$A:$A, 'Consolidated actual totex inp'!$E$1, F_Inputs!$B:$B, 'Consolidated actual totex inp'!$C19)*'Consolidated actual totex inp'!K$3 -> 0
B20: B0441TGTE_DW | C20: B0441TGTE_DW_PR24 | F20: Green recovery programme - Total green recovery programme expenditure - Totex - Treated water distribution - Water network+ - Expenditure in report year | G20: =SUMIFS('F_Inputs-APR & PR19'!F:F, 'F_Inputs-APR & PR19'!$A:$A, 'Consolidated actual totex inp'!$E$1, 'F_Inputs-APR & PR19'!$B:$B, 'Consolidated actual totex inp'!$B20) -> 0 | H20: =SUMIFS('F_Inputs-APR & PR19'!G:G, 'F_Inputs-APR & PR19'!$A:$A, 'Consolidated actual totex inp'!$E$1, 'F_Inputs-APR & PR19'!$B:$B, 'Consolidated actual totex inp'!$B20) -> 0 | I20: =SUMIFS(F_Inputs!H:H, F_Inputs!$A:$A, 'Consolidated actual totex inp'!$E$1, F_Inputs!$B:$B, 'Consolidated actual totex inp'!$C20)*'Consolidated actual totex inp'!I$3 -> 0 | J20: =SUMIFS(F_Inputs!I:I, F_Inputs!$A:$A, 'Consolidated actual totex inp'!$E$1, F_Inputs!$B:$B, 'Consolidated actual totex inp'!$C20)*'Consolidated actual totex inp'!J$3 -> 0 | K20: =SUMIFS(F_Inputs!J:J, F_Inputs!$A:$A, 'Consolidated actual totex inp'!$E$1, F_Inputs!$B:$B, 'Consolidated actual totex inp'!$C20)*'Consolidated actual totex inp'!K$3 -> 0
B21: B0513TGTE_FOW | C21: B0513TGTE_FOW_PR24 | F21: Green recovery programme - Total green recovery programme expenditure - Totex - Foul - Wastewater network+ - Expenditure in report year | G21: =SUMIFS('F_Inputs-APR & PR19'!F:F, 'F_Inputs-APR & PR19'!$A:$A, 'Consolidated actual totex inp'!$E$1, 'F_Inputs-APR & PR19'!$B:$B, 'Consolidated actual totex inp'!$B21) -> 0 | H21: =SUMIFS('F_Inputs-APR & PR19'!G:G, 'F_Inputs-APR & PR19'!$A:$A, 'Consolidated actual totex inp'!$E$1, 'F_Inputs-APR & PR19'!$B:$B, 'Consolidated actual totex inp'!$B21) -> 0 | I21: =SUMIFS(F_Inputs!H:H, F_Inputs!$A:$A, 'Consolidated actual totex inp'!$E$1, F_Inputs!$B:$B, 'Consolidated actual totex inp'!$C21)*'Consolidated actual totex inp'!I$3 -> 0 | J21: =SUMIFS(F_Inputs!I:I, F_Inputs!$A:$A, 'Consolidated actual totex inp'!$E$1, F_Inputs!$B:$B, 'Consolidated actual totex inp'!$C21)*'Consolidated actual totex inp'!J$3 -> 0 | K21: =SUMIFS(F_Inputs!J:J, F_Inputs!$A:$A, 'Consolidated actual totex inp'!$E$1, F_Inputs!$B:$B, 'Consolidated actual totex inp'!$C21)*'Consolidated actual totex inp'!K$3 -> 0
B22: B0520TGTE_SUW | C22: B0520TGTE_SUW_PR24 | F22: Green recovery programme - Total green recovery programme expenditure - Totex - Surface water drainage - Wastewater network+ - Expenditure in report year | G22: =SUMIFS('F_Inputs-APR & PR19'!F:F, 'F_Inputs-APR & PR19'!$A:$A, 'Consolidated actual totex inp'!$E$1, 'F_Inputs-APR & PR19'!$B:$B, 'Consolidated actual totex inp'!$B22) -> 0 | H22: =SUMIFS('F_Inputs-APR & PR19'!G:G, 'F_Inputs-APR & PR19'!$A:$A, 'Consolidated actual totex inp'!$E$1, 'F_Inputs-APR & PR19'!$B:$B, 'Consolidated actual totex inp'!$B22) -> 0 | I22: =SUMIFS(F_Inputs!H:H, F_Inputs!$A:$A, 'Consolidated actual totex inp'!$E$1, F_Inputs!$B:$B, 'Consolidated actual totex inp'!$C22)*'Consolidated actual totex inp'!I$3 -> 0 | J22: =SUMIFS(F_Inputs!I:I, F_Inputs!$A:$A, 'Consolidated actual totex inp'!$E$1, F_Inputs!$B:$B, 'Consolidated actual totex inp'!$C22)*'Consolidated actual totex inp'!J$3 -> 0 | K22: =SUMIFS(F_Inputs!J:J, F_Inputs!$A:$A, 'Consolidated actual totex inp'!$E$1, F_Inputs!$B:$B, 'Consolidated actual totex inp'!$C22)*'Consolidated actual totex inp'!K$3 -> 0
B23: B0527TGTE_HDW | C23: B0527TGTE_HDW_PR24 | F23: Green recovery programme - Total green recovery programme expenditure - Totex - Highway drainage - Wastewater network+ - Expenditure in report year | G23: =SUMIFS('F_Inputs-APR & PR19'!F:F, 'F_Inputs-APR & PR19'!$A:$A, 'Consolidated actual totex inp'!$E$1, 'F_Inputs-APR & PR19'!$B:$B, 'Consolidated actual totex inp'!$B23) -> 0 | H23: =SUMIFS('F_Inputs-APR & PR19'!G:G, 'F_Inputs-APR & PR19'!$A:$A, 'Consolidated actual totex inp'!$E$1, 'F_Inputs-APR & PR19'!$B:$B, 'Consolidated actual totex inp'!$B23) -> 0 | I23: =SUMIFS(F_Inputs!H:H, F_Inputs!$A:$A, 'Consolidated actual totex inp'!$E$1, F_Inputs!$B:$B, 'Consolidated actual totex inp'!$C23)*'Consolidated actual totex inp'!I$3 -> 0 | J23: =SUMIFS(F_Inputs!I:I, F_Inputs!$A:$A, 'Consolidated actual totex inp'!$E$1, F_Inputs!$B:$B, 'Consolidated actual totex inp'!$C23)*'Consolidated actual totex inp'!J$3 -> 0 | K23: =SUMIFS(F_Inputs!J:J, F_Inputs!$A:$A, 'Consolidated actual totex inp'!$E$1, F_Inputs!$B:$B, 'Consolidated actual totex inp'!$C23)*'Consolidated actual totex inp'!K$3 -> 0
B24: B0534TGTE_STW | C24: B0534TGTE_STW_PR24 | F24: Green recovery programme - Total green recovery programme expenditure - Totex - Sewage treatment and disposal - Wastewater network+ - Expenditure in report year | G24: =SUMIFS('F_Inputs-APR & PR19'!F:F, 'F_Inputs-APR & PR19'!$A:$A, 'Consolidated actual totex inp'!$E$1, 'F_Inputs-APR & PR19'!$B:$B, 'Consolidated actual totex inp'!$B24) -> 0 | H24: =SUMIFS('F_Inputs-APR & PR19'!G:G, 'F_Inputs-APR & PR19'!$A:$A, 'Consolidated actual totex inp'!$E$1, 'F_Inputs-APR & PR19'!$B:$B, 'Consolidated actual totex inp'!$B24) -> 0 | I24: =SUMIFS(F_Inputs!H:H, F_Inputs!$A:$A, 'Consolidated actual totex inp'!$E$1, F_Inputs!$B:$B, 'Consolidated actual totex inp'!$C24)*'Consolidated actual totex inp'!I$3 -> 0 | J24: =SUMIFS(F_Inputs!I:I, F_Inputs!$A:$A, 'Consolidated actual totex inp'!$E$1, F_Inputs!$B:$B, 'Consolidated actual totex inp'!$C24)*'Consolidated actual totex inp'!J$3 -> 0 | K24: =SUMIFS(F_Inputs!J:J, F_Inputs!$A:$A, 'Consolidated actual totex inp'!$E$1, F_Inputs!$B:$B, 'Consolidated actual totex inp'!$C24)*'Consolidated actual totex inp'!K$3 -> 0
B25: B0541TGTE_SLW | C25: B0541TGTE_SLW_PR24 | F25: Green recovery programme - Total green recovery programme expenditure - Totex - Sludge liquor treatment - Wastewater network+ - Expenditure in report year | G25: =SUMIFS('F_Inputs-APR & PR19'!F:F, 'F_Inputs-APR & PR19'!$A:$A, 'Consolidated actual totex inp'!$E$1, 'F_Inputs-APR & PR19'!$B:$B, 'Consolidated actual totex inp'!$B25) -> 0 | H25: =SUMIFS('F_Inputs-APR & PR19'!G:G, 'F_Inputs-APR & PR19'!$A:$A, 'Consolidated actual totex inp'!$E$1, 'F_Inputs-APR & PR19'!$B:$B, 'Consolidated actual totex inp'!$B25) -> 0 | I25: =SUMIFS(F_Inputs!H:H, F_Inputs!$A:$A, 'Consolidated actual totex inp'!$E$1, F_Inputs!$B:$B, 'Consolidated actual totex inp'!$C25)*'Consolidated actual totex inp'!I$3 -> 0 | J25: =SUMIFS(F_Inputs!I:I, F_Inputs!$A:$A, 'Consolidated actual totex inp'!$E$1, F_Inputs!$B:$B, 'Consolidated actual totex inp'!$C25)*'Consolidated actual totex inp'!J$3 -> 0 | K25: =SUMIFS(F_Inputs!J:J, F_Inputs!$A:$A, 'Consolidated actual totex inp'!$E$1, F_Inputs!$B:$B, 'Consolidated actual totex inp'!$C25)*'Consolidated actual totex inp'!K$3 -> 0
C26: PD9_12WR_PR24 | F26: CMA companies only – items excluded from general cost sharing with bespoke sharing rates - Actual totex – items with bespoke sharing rates - Water resources | I26: =SUMIF(F_Inputs!$B:$B, 'Consolidated actual totex inp'!$C26, F_Inputs!H:H)*'Consolidated actual totex inp'!I$3 -> 0 | J26: =SUMIF(F_Inputs!$B:$B, 'Consolidated actual totex inp'!$C26, F_Inputs!I:I)*'Consolidated actual totex inp'!J$3 -> 0 | K26: =SUMIF(F_Inputs!$B:$B, 'Consolidated actual totex inp'!$C26, F_Inputs!J:J)*'Consolidated actual totex inp'!K$3 -> 0
C27: PD9_12WNP_PR24 | F27: CMA companies only – items excluded from general cost sharing with bespoke sharing rates - Actual totex – items with bespoke sharing rates - Water network plus | I27: =SUMIF(F_Inputs!$B:$B, 'Consolidated actual totex inp'!$C27, F_Inputs!H:H)*'Consolidated actual totex inp'!I$3 -> 0 | J27: =SUMIF(F_Inputs!$B:$B, 'Consolidated actual totex inp'!$C27, F_Inputs!I:I)*'Consolidated actual totex inp'!J$3 -> 0 | K27: =SUMIF(F_Inputs!$B:$B, 'Consolidated actual totex inp'!$C27, F_Inputs!J:J)*'Consolidated actual totex inp'!K$3 -> 0
C28: PD9_12WWNP_PR24 | F28: CMA companies only – items excluded from general cost sharing with bespoke sharing rates - Actual totex – items with bespoke sharing rates - Wastewater network plus | I28: =SUMIF(F_Inputs!$B:$B, 'Consolidated actual totex inp'!$C28, F_Inputs!H:H)*'Consolidated actual totex inp'!I$3 -> 0 | J28: =SUMIF(F_Inputs!$B:$B, 'Consolidated actual totex inp'!$C28, F_Inputs!I:I)*'Consolidated actual totex inp'!J$3 -> 0 | K28: =SUMIF(F_Inputs!$B:$B, 'Consolidated actual totex inp'!$C28, F_Inputs!J:J)*'Consolidated actual totex inp'!K$3 -> 0
C29: PD9_12BIO_PR24 | F29: CMA companies only – items excluded from general cost sharing with bespoke sharing rates - Actual totex – items with bespoke sharing rates - Bioresources | I29: =SUMIF(F_Inputs!$B:$B, 'Consolidated actual totex inp'!$C29, F_Inputs!H:H)*'Consolidated actual totex inp'!I$3 -> 0 | J29: =SUMIF(F_Inputs!$B:$B, 'Consolidated actual totex inp'!$C29, F_Inputs!I:I)*'Consolidated actual totex inp'!J$3 -> 0 | K29: =SUMIF(F_Inputs!$B:$B, 'Consolidated actual totex inp'!$C29, F_Inputs!J:J)*'Consolidated actual totex inp'!K$3 -> 0
D31: Data override
F32: Totex (net of business rates, abstraction licence fees and grants and contributions) - Total actual totex (net of business rates, abstraction licence fees and grants and contributions) - Water resources
F33: Totex (net of business rates, abstraction licence fees and grants and contributions) - Total actual totex (net of business rates, abstraction licence fees and grants and contributions) - Water network plus
F34: Totex (net of business rates, abstraction licence fees and grants and contributions) - Total actual totex (net of business rates, abstraction licence fees and grants and contributions) - Wastewater network plus
F35: Totex (net of business rates, abstraction licence fees and grants and contributions) - Total actual totex (net of business rates, abstraction licence fees and grants and contributions) - Additional Control
F36: Totex - business rates and abstraction licence fees - Actual totex - business rates - Water resources
F37: Totex - business rates and abstraction licence fees - Actual totex - business rates - Water network plus
F38: Totex - business rates and abstraction licence fees - Actual totex - business rates - Wastewater network plus
F39: Totex - business rates and abstraction licence fees - Actual totex - business rates - Bioresources
F40: Totex - business rates and abstraction licence fees - Actual totex - business rates - Additional Control
F41: Totex - business rates and abstraction licence fees - Actual totex - abstraction licence fees - Water resources
F42: Totex - business rates and abstraction licence fees - Actual totex - abstraction licence fees - Water network plus
F43: Green recovery programme - Total green recovery programme expenditure - Totex - Water resources - Expenditure in report year
F44: Green recovery programme - Total green recovery programme expenditure - Totex - Raw water transport - Water network+ - Expenditure in report year
F45: Green recovery programme - Total green recovery programme expenditure - Totex - Raw water storage - Water network+ - Expenditure in report year
F46: Green recovery programme - Total green recovery programme expenditure - Totex - Water treatment - Water network+ - Expenditure in report year
F47: Green recovery programme - Total green recovery programme expenditure - Totex - Treated water distribution - Water network+ - Expenditure in report year
F48: Green recovery programme - Total green recovery programme expenditure - Totex - Foul - Wastewater network+ - Expenditure in report year
F49: Green recovery programme - Total green recovery programme expenditure - Totex - Surface water drainage - Wastewater network+ - Expenditure in report year
F50: Green recovery programme - Total green recovery programme expenditure - Totex - Highway drainage - Wastewater network+ - Expenditure in report year
F51: Green recovery programme - Total green recovery programme expenditure - Totex - Sewage treatment and disposal - Wastewater network+ - Expenditure in report year
F52: Green recovery programme - Total green recovery programme expenditure - Totex - Sludge liquor treatment - Wastewater network+ - Expenditure in report year
F53: CMA companies only – items excluded from general cost sharing with bespoke sharing rates - Actual totex – items with bespoke sharing rates - Water resources
F54: CMA companies only – items excluded from general cost sharing with bespoke sharing rates - Actual totex – items with bespoke sharing rates - Water network plus
F55: CMA companies only – items excluded from general cost sharing with bespoke sharing rates - Actual totex – items with bespoke sharing rates - Wastewater network plus
F56: CMA companies only – items excluded from general cost sharing with bespoke sharing rates - Actual totex – items with bespoke sharing rates - Bioresources
D58: Data after override
F59: Totex (net of business rates, abstraction licence fees and grants and contributions) - Total actual totex (net of business rates, abstraction licence fees and grants and contributions) - Water resources | G59: =IF(ISBLANK(G32),G5,G32) -> 9.284 | H59: =IF(ISBLANK(H32),H5,H32) -> 10.571 | I59: 13.416 | J59: 18.68068817 | K59: 15.86532615 | L59: Net totex for cost sharing reconciliation - WR - Nominal
F60: Totex (net of business rates, abstraction licence fees and grants and contributions) - Total actual totex (net of business rates, abstraction licence fees and grants and contributions) - Water network plus | G60: =IF(ISBLANK(G33),G6,G33) -> 119.906 | H60: 118.23 | I60: 131.114 | J60: 141.2916645 | K60: 118.7974979 | L60: Net totex for cost sharing reconciliation - WN - Nominal
F61: Totex (net of business rates, abstraction licence fees and grants and contributions) - Total actual totex (net of business rates, abstraction licence fees and grants and contributions) - Wastewater network plus | G61: =IF(ISBLANK(G34),G7,G34) -> 237.078 | H61: 235.873 | I61: 262.854 | J61: 348.2918279 | K61: 342.09928 | L61: Net totex for cost sharing reconciliation - WWN - nominal
F62: Totex (net of business rates, abstraction licence fees and grants and contributions) - Total actual totex (net of business rates, abstraction licence fees and grants and contributions) - Additional Control | G62: =IF(ISBLANK(G35),G8,G35) -> 0 | H62: 0 | I62: 0 | J62: 0 | K62: 0 | L62: Net totex for cost sharing reconciliation - TTT - nominal
F63: Totex - business rates and abstraction licence fees - Actual totex - business rates - Water resources | G63: =IF(ISBLANK(G36),G9,G36) -> 0.9676407112 | H63: 0.961387745 | I63: 0.974 | J63: 0.7050313477 | K63: 0.6960663835 | L63: Business rates - Actual - WR - Nominal
F64: Totex - business rates and abstraction licence fees - Actual totex - business rates - Water network plus | G64: =IF(ISBLANK(G37),G10,G37) -> 15.05175258 | H64: 14.92980756 | I64: 14.994 | J64: 10.8428959 | K64: 10.7022917 | L64: Business rates - Actual - WN - Nominal
F65: Totex - business rates and abstraction licence fees - Actual totex - business rates - Wastewater network plus | G65: =IF(ISBLANK(G38),G11,G38) -> 7.150233251 | H65: 7.147619918 | I65: 7.148 | J65: 9.506824499 | K65: 9.382801375 | L65: Business rates - Actual - WWN - Nominal
F66: Totex - business rates and abstraction licence fees - Actual totex - business rates - Bioresources | G66: =IF(ISBLANK(G39),G12,G39) -> 1.646032583 | H66: 1.618605869 | I66: 1.614 | J66: 1.987194803 | K66: 1.961345931 | L66: Business rates - Actual - BIO - Nominal
F67: Totex - business rates and abstraction licence fees - Actual totex - business rates - Additional Control | G67: =IF(ISBLANK(G40),G13,G40) -> 0 | H67: 0 | I67: 0 | J67: 0 | K67: 0
F68: Totex - business rates and abstraction licence fees - Actual totex - abstraction licence fees - Water resources | G68: =IF(ISBLANK(G41),G14,G41) -> 2.479462638 | H68: 2.583545016 | I68: 2.732 | J68: 2.874033335 | K68: 2.874255425 | L68: Abstraction charges - Actual - WR - Nominal
F69: Totex - business rates and abstraction licence fees - Actual totex - abstraction licence fees - Water network plus | G69: =IF(ISBLANK(G42),G15,G42) -> 0.1424992303 | H69: 0.1429897438 | I69: 0.152 | J69: 0.1511536473 | K69: 0.1517901771 | L69: Abstraction charges - Actual - WN - Nominal
F70: Green recovery programme - Total green recovery programme expenditure - Totex - Water resources - Expenditure in report year | G70: =IF(ISBLANK(G43),G16,G43) -> 0 | H70: 0 | I70: 0 | J70: 0 | K70: 0 | L70: Actual Green Recovery Expenditure - WR - nominal
F71: Green recovery programme - Total green recovery programme expenditure - Totex - Raw water transport - Water network+ - Expenditure in report year | G71: =IF(ISBLANK(G44),G17,G44) -> 0 | H71: 0 | I71: 0 | J71: 0 | K71: 0 | L71: Actual Green Recovery Expenditure - WN - nominal
F72: Green recovery programme - Total green recovery programme expenditure - Totex - Raw water storage - Water network+ - Expenditure in report year | G72: =IF(ISBLANK(G45),G18,G45) -> 0 | H72: 0 | I72: 0 | J72: 0 | K72: 0 | L72: Actual Green Recovery Expenditure - WN - nominal
F73: Green recovery programme - Total green recovery programme expenditure - Totex - Water treatment - Water network+ - Expenditure in report year | G73: =IF(ISBLANK(G46),G19,G46) -> 0 | H73: 0 | I73: 0 | J73: 0 | K73: 0 | L73: Actual Green Recovery Expenditure - WN - nominal
F74: Green recovery programme - Total green recovery programme expenditure - Totex - Treated water distribution - Water network+ - Expenditure in report year | G74: =IF(ISBLANK(G47),G20,G47) -> 0 | H74: 0 | I74: 0 | J74: 0 | K74: 0 | L74: Actual Green Recovery Expenditure - WN - nominal
F75: Green recovery programme - Total green recovery programme expenditure - Totex - Foul - Wastewater network+ - Expenditure in report year | G75: =IF(ISBLANK(G48),G21,G48) -> 0 | H75: 0 | I75: 0 | J75: 0 | K75: 0 | L75: Actual Green Recovery Expenditure - WWN - nominal
F76: Green recovery programme - Total green recovery programme expenditure - Totex - Surface water drainage - Wastewater network+ - Expenditure in report year | G76: =IF(ISBLANK(G49),G22,G49) -> 0 | H76: 0 | I76: 0 | J76: 0 | K76: 0 | L76: Actual Green Recovery Expenditure - WWN - nominal
F77: Green recovery programme - Total green recovery programme expenditure - Totex - Highway drainage - Wastewater network+ - Expenditure in report year | G77: =IF(ISBLANK(G50),G23,G50) -> 0 | H77: 0 | I77: 0 | J77: 0 | K77: 0 | L77: Actual Green Recovery Expenditure - WWN - nominal
F78: Green recovery programme - Total green recovery programme expenditure - Totex - Sewage treatment and disposal - Wastewater network+ - Expenditure in report year | G78: =IF(ISBLANK(G51),G24,G51) -> 0 | H78: 0 | I78: 0 | J78: 0 | K78: 0 | L78: Actual Green Recovery Expenditure - WWN - nominal
F79: Green recovery programme - Total green recovery programme expenditure - Totex - Sludge liquor treatment - Wastewater network+ - Expenditure in report year | G79: =IF(ISBLANK(G52),G25,G52) -> 0 | H79: 0 | I79: 0 | J79: 0 | K79: 0 | L79: Actual Green Recovery Expenditure - WWN - nominal
F80: CMA companies only – items excluded from general cost sharing with bespoke sharing rates - Actual totex – items with bespoke sharing rates - Water resources | G80: =IF(ISBLANK(G53),G26,G53) -> 0 | H80: 0 | I80: 0 | J80: 0 | K80: 0 | L80: Actuals for CMA excluded items - WR - nominal
F81: CMA companies only – items excluded from general cost sharing with bespoke sharing rates - Actual totex – items with bespoke sharing rates - Water network plus | G81: =IF(ISBLANK(G54),G27,G54) -> 0 | H81: 0 | I81: 0 | J81: 0 | K81: 0 | L81: Actuals for CMA excluded items - WN - nominal
F82: CMA companies only – items excluded from general cost sharing with bespoke sharing rates - Actual totex – items with bespoke sharing rates - Wastewater network plus | G82: =IF(ISBLANK(G55),G28,G55) -> 0 | H82: 0 | I82: 0 | J82: 0 | K82: 0 | L82: Actuals for CMA excluded items - WWN - nominal
F83: CMA companies only – items excluded from general cost sharing with bespoke sharing rates - Actual totex – items with bespoke sharing rates - Bioresources | G83: =IF(ISBLANK(G56),G29,G56) -> 0 | H83: 0 | I83: 0 | J83: 0 | K83: 0 | L83: Actuals for CMA excluded items - BIO - nominal

Sheet Non-fountain inputs
A1: =RIGHT(CELL("filename", $A$1), LEN(CELL("filename", $A$1)) - SEARCH("]", CELL("filename", $A$1))) -> 
A2: ASHE - Mean hourly pay, all manufacturing £/h nominal | B2: Earnings and hours worked, industry by two-digit SIC: ASHE Table 4 - Office for National Statistics (ons.gov.uk)
B3: 2019-20 | C3: 2020-21 | D3: 2021-22 | E3: 22-23
B4: 17.06 | C4: 17.54 | D4: 18.14 | E4: 19.6
B5: Final | C5: Final | D5: Final | E5: Provisional
A7: Allowance for CMA excluded items - 2017-18 prices | C7: 2020-21 | D7: 2021-22 | E7: 2022-23 | F7: 2023-24 | G7: 2024-25
A8: ANH | B8: Allowance for CMA excluded items - WR - real | C8: 0 | D8: 0 | E8: 0 | F8: 0 | G8: 0
A9: ANH | B9: Allowance for CMA excluded items - WN - real | C9: 0 | D9: 0 | E9: 0 | F9: 0 | G9: 0
A10: ANH | B10: Allowance for CMA excluded items - WWN - real | C10: 0 | D10: 0 | E10: 0 | F10: 0 | G10: 0
A11: ANH | B11: Allowance for CMA excluded items - BIO - real | C11: 0 | D11: 0 | E11: 0 | F11: 0 | G11: 0
A12: NES | B12: Allowance for CMA excluded items - WR - real | C12: 0 | D12: 0 | E12: 0 | F12: 0 | G12: 0
A13: NES | B13: Allowance for CMA excluded items - WN - real | C13: 0 | D13: 0 | E13: 0 | F13: 0 | G13: 0
A14: NES | B14: Allowance for CMA excluded items - WWN - real | C14: 0 | D14: 0 | E14: 0 | F14: 0 | G14: 0
A15: NES | B15: Allowance for CMA excluded items - BIO - real | C15: 2.4 | D15: 2.4 | E15: 2.4 | F15: 2.4 | G15: 2.4
A16: YKY | B16: Allowance for CMA excluded items - WR - real | C16: 0 | D16: 0 | E16: 0 | F16: 0 | G16: 0
A17: YKY | B17: Allowance for CMA excluded items - WN - real | C17: 0 | D17: 0 | E17: 0 | F17: 0 | G17: 0
A18: YKY | B18: Allowance for CMA excluded items - WWN - real | C18: 0 | D18: 0 | E18: 0 | F18: 0 | G18: 0
A19: YKY | B19: Allowance for CMA excluded items - BIO - real | C19: 0 | D19: 0 | E19: 0 | F19: 0 | G19: 0
A20: BRL | B20: Allowance for CMA excluded items - WR - real | C20: 0 | D20: 0 | E20: 0 | F20: 0 | G20: 0 | H20: BRL incl CMA redetermination costs as excluded but since these were included in the
A21: BRL | B21: Allowance for CMA excluded items - WN - real | C21: 0 | D21: 0 | E21: 0 | F21: 0 | G21: 0 | H21: CMA's redetermination allowance there is no reconciliation required.
A22: BRL | B22: Allowance for CMA excluded items - WWN - real | C22: 0 | D22: 0 | E22: 0 | F22: 0 | G22: 0
A23: BRL | B23: Allowance for CMA excluded items - BIO - real | C23: 0 | D23: 0 | E23: 0 | F23: 0 | G23: 0
A25: Bespoke cost sharing rates
B26: PR19 | C26: CMA
A27: Cost sharing rates Business rates - Overperformance | B27: 0.25 | C27: 0.1
A28: Cost sharing rates Business rates - Underperformance | B28: 0.25 | C28: 0.1
A29: Cost sharing rates Abstraction - Overperformance | B29: 0.25 | C29: 0.25
A30: Cost sharing rates Abstraction - Underperformance | B30: 0.25 | C30: 0.25
A31: Green Recovery Outperformance Rate | B31: 0.1
A32: Green Recovery Underperformance Rate | B32: 0.5
A34: Weighted average PAYG rates, % | B34: From chapter 4 of companies' PR19 FD or as revised by the CMA
B35: WR | C35: WN+ | D35: WWN+ | E35: BIO | F35: TTT
A36: ANH | B36: 0.7957895305 | C36: 0.5193503583 | D36: 0.4186012921 | E36: 0.8280942436
A37: WSH | B37: 0.574 | C37: 0.551 | D37: 0.554 | E37: 0.629
A38: HDD | B38: 0.705 | C38: 0.713 | D38: 0.472 | E38: 1
A39: NES | B39: 0.9138050499 | C39: 0.5638708227 | D39: 0.3747586099 | E39: 0.4071399239
A40: SVE | B40: 0.71 | C40: 0.612 | D40: 0.568 | E40: 0.388
A41: SWB | B41: 0.783 | C41: 0.588 | D41: 0.519 | E41: 0.757
A42: SRN | B42: 0.528 | C42: 0.482 | D42: 0.413 | E42: 0.522
A43: TMS | B43: 0.548 | C43: 0.438 | D43: 0.473 | E43: 0.385
A44: NWT | B44: 0.762 | C44: 0.716 | D44: 0.473 | E44: 0.542
A45: WSX | B45: 0.641 | C45: 0.722 | D45: 0.403 | E45: 0.73
A46: YKY | B46: 0.8212960663 | C46: 0.755471858 | D46: 0.4542361687 | E46: 0.5821258187
A47: AFW | B47: 0.364 | C47: 0.615
A48: BRL | B48: 0.7897658354 | C48: 0.7393650268
A49: PRT | B49: 0.818 | C49: 0.688
A50: SEW | B50: 0.591 | C50: 0.671
A51: SSC | B51: 0.638 | C51: 0.635
A52: SES | B52: 0.815 | C52: 0.49
A54: Wholesale WACC (Real CPIH)
A55: ANH | B55: 0.0312
A56: NES | B56: 0.0312
A57: YKY | B57: 0.0312
A58: BRL | B58: 0.0329
A59: PRT | B59: 0.0311
A60: SSC | B60: 0.0311
A61: HDD | B61: 0.0292
A62: SRN | B62: 0.0292
A63: SVE | B63: 0.0292
A64: SWB | B64: 0.0292
A65: TMS | B65: 0.0292
A66: UUW | B66: 0.0292
A67: WSH | B67: 0.0292
A68: WSX | B68: 0.0292
A69: AFW | B69: 0.0292
A70: SES | B70: 0.0292
A71: SEW | B71: 0.0292
A73: Financial flows dataset | B73: https://www.ofwat.gov.uk/wp-content/uploads/2023/05/Financial-Flows-Data-Source-new-2022-23v8.xlsx
D74: 2020-21 | E74: 2021-22 | F74: 2022-23 | G74: 2023-24 | H74: 2024-25 | I74: 2020-25
A75: AFW | B75: Totex WR - Allowed totex net of Grants & contributions, abstraction charges & business rates | C75: £m | D75: 33.53656991 | E75: 41.6422875 | F75: 39.31800838 | G75: 44.10503386 | H75: 27.91507909 | I75: =SUM(D75:H75) -> 186.5169787
A76: AFW | B76: Totex WN - Allowed totex net of Grants & contributions, abstraction charges & business rates | C76: £m | D76: 206.8903153 | E76: 204.191971 | F76: 197.8031579 | G76: 181.4462739 | H76: 176.7546259 | I76: =SUM(D76:H76) -> 967.0863439
A77: AFW | B77: Totex WWN - Allowed totex net of Grants & contributions, abstraction charges & business rates | C77: £m | D77: 0 | E77: 0 | F77: 0 | G77: 0 | H77: 0 | I77: 0
A78: AFW | B78: Totex BR - Allowed totex net of Grants & contributions, abstraction charges & business rates | C78: £m | D78: 0 | E78: 0 | F78: 0 | G78: 0 | H78: 0 | I78: 0
A79: AFW | B79: Totex DMMY - Allowed totex net of Grants & contributions, abstraction charges & business rates | C79: £m | D79: 0 | E79: 0 | F79: 0 | G79: 0 | H79: 0 | I79: 0
A80: AFW | B80: WR opex for cost sharing | D80: 0.0516520245 | E80: 0.05454526422 | F80: 0.05546059998 | G80: 0.05305099218 | H80: 0.04383555323
A81: AFW | B81: WR Capex for cost sharing | D81: 0.1281523565 | E81: 0.1687174531 | F81: 0.1553406292 | G81: 0.1834155974 | H81: 0.1058295297
A82: AFW | B82: WN opex for cost sharing | D82: 0.103039817 | E82: 0.1012746145 | F82: 0.09949861299 | G82: 0.1051378718 | H82: 0.1030322278
A83: AFW | B83: WN Capex for cost sharing | D83: 0.1108917689 | E83: 0.1098667922 | F83: 0.1050365447 | G83: 0.08248371453 | H83: 0.07973803564
A84: AFW | B84: WWN opex for cost sharing
A85: AFW | B85: WWN Capex for cost sharing
A86: BRL | B86: Totex WR - Allowed totex net of Grants & contributions, abstraction charges & business rates | C86: £m | D86: 12.13863463 | E86: 11.8120384 | F86: 15.21749071 | G86: 11.56798803 | H86: 11.52774726 | I86: 62.26389903
A87: BRL | B87: Totex WN - Allowed totex net of Grants & contributions, abstraction charges & business rates | C87: £m | D87: 62.61321735 | E87: 61.17227598 | F87: 57.97079528 | G87: 60.34266132 | H87: 60.578193 | I87: 302.6771429
A88: BRL | B88: Totex WWN - Allowed totex net of Grants & contributions, abstraction charges & business rates | C88: £m | D88: 0 | E88: 0 | F88: 0 | G88: 0 | H88: 0 | I88: 0
A89: BRL | B89: Totex BR - Allowed totex net of Grants & contributions, abstraction charges & business rates | C89: £m | D89: 0 | E89: 0 | F89: 0 | G89: 0 | H89: 0 | I89: 0
A90: BRL | B90: Totex DMMY - Allowed totex net of Grants & contributions, abstraction charges & business rates | C90: £m | D90: 0 | E90: 0 | F90: 0 | G90: 0 | H90: 0 | I90: 0
A91: BRL | B91: WR opex for cost sharing | D91: 0.1330032388 | E91: 0.1323003468 | F91: 0.1320897519 | G91: 0.1319641007 | H91: 0.132160543
A92: BRL | B92: WR Capex for cost sharing | D92: 0.06195137891 | E92: 0.05740891632 | F92: 0.1123133605 | G92: 0.0538255497 | H92: 0.05298281352
A93: BRL | B93: WN opex for cost sharing | D93: 0.1179892716 | E93: 0.1163657147 | F93: 0.1157877167 | G93: 0.1152554196 | H93: 0.1153056953
A94: BRL | B94: WN Capex for cost sharing | D94: 0.08887543163 | E94: 0.08573833377 | F94: 0.07573911852 | G94: 0.08410770617 | H94: 0.08483559195
A95: BRL | B95: WWN opex for cost sharing
A96: BRL | B96: WWN Capex for cost sharing
A97: PRT | B97: Totex WR - Allowed totex net of Grants & contributions, abstraction charges & business rates | C97: £m | D97: 5.827219985 | E97: 4.103151819 | F97: 3.778336854 | G97: 5.270445246 | H97: 4.955577784 | I97: 23.93473169
A98: PRT | B98: Totex WN - Allowed totex net of Grants & contributions, abstraction charges & business rates | C98: £m | D98: 27.26519257 | E98: 27.6131638 | F98: 28.04924909 | G98: 26.89996618 | H98: 26.89446684 | I98: 136.7220385
A99: PRT | B99: Totex WWN - Allowed totex net of Grants & contributions, abstraction charges & business rates | C99: £m | D99: 0 | E99: 0 | F99: 0 | G99: 0 | H99: 0 | I99: 0
A100: PRT | B100: Totex BR - Allowed totex net of Grants & contributions, abstraction charges & business rates | C100: £m | D100: 0 | E100: 0 | F100: 0 | G100: 0 | H100: 0 | I100: 0
A101: PRT | B101: Totex DMMY - Allowed totex net of Grants & contributions, abstraction charges & business rates | C101: £m | D101: 10.10622301 | E101: 6.10532867 | F101: 7.099616914 | G101: 17.65027822 | H101: 20.46505411 | I101: 61.42650092
A102: PRT | B102: WR opex for cost sharing | D102: 0.1447697591 | E102: 0.1489334524 | F102: 0.1503320582 | G102: 0.1471597204 | H102: 0.1425003494
A103: PRT | B103: WR Capex for cost sharing | D103: 0.09869317423 | E103: 0.02249741519 | F103: 0.007527946399 | G103: 0.07304100354 | H103: 0.06454512115
A104: PRT | B104: WN opex for cost sharing | D104: 0.1271318548 | E104: 0.1282538318 | F104: 0.1280608558 | G104: 0.1271249996 | H104: 0.1259143554
A105: PRT | B105: WN Capex for cost sharing | D105: 0.07228875704 | E105: 0.07371187986 | F105: 0.07709443154 | G105: 0.06962430634 | H105: 0.07079472778
A106: PRT | B106: WWN opex for cost sharing
A107: PRT | B107: WWN Capex for cost sharing
A108: SES | B108: Totex WR - Allowed totex net of Grants & contributions, abstraction charges & business rates | C108: £m | D108: 4.15773111 | E108: 4.219880855 | F108: 3.950231879 | G108: 3.715232769 | H108: 3.631433077 | I108: 19.67450969
A109: SES | B109: Totex WN - Allowed totex net of Grants & contributions, abstraction charges & business rates | C109: £m | D109: 39.20619665 | E109: 42.47971309 | F109: 38.19867127 | G109: 32.74675933 | H109: 31.5427491 | I109: 184.1740895
A110: SES | B110: Totex WWN - Allowed totex net of Grants & contributions, abstraction charges & business rates | C110: £m | D110: 0 | E110: 0 | F110: 0 | G110: 0 | H110: 0 | I110: 0
A111: SES | B111: Totex BR - Allowed totex net of Grants & contributions, abstraction charges & business rates | C111: £m | D111: 0 | E111: 0 | F111: 0 | G111: 0 | H111: 0 | I111: 0
A112: SES | B112: Totex DMMY - Allowed totex net of Grants & contributions, abstraction charges & business rates | C112: £m | D112: 0 | E112: 0 | F112: 0 | G112: 0 | H112: 0 | I112: 0
A113: SES | B113: WR opex for cost sharing | D113: 0.1620134326 | E113: 0.1579142349 | F113: 0.1539751423 | G113: 0.143845322 | H113: 0.1383051791
A114: SES | B114: WR Capex for cost sharing | D114: 0.04931234755 | E114: 0.056570442 | F114: 0.0468040355 | G114: 0.04498951189 | H114: 0.04627035209
A115: SES | B115: WN opex for cost sharing | D115: 0.09072383237 | E115: 0.08772263773 | F115: 0.08411334324 | G115: 0.07942812894 | H115: 0.07576446717
A116: SES | B116: WN Capex for cost sharing | D116: 0.1221519135 | E116: 0.1429271416 | F116: 0.123291897 | G116: 0.09837516267 | H116: 0.09550147582
A117: SES | B117: WWN opex for cost sharing
A118: SES | B118: WWN Capex for cost sharing
A119: SEW | B119: Totex WR - Allowed totex net of Grants & contributions, abstraction charges & business rates | C119: £m | D119: 21.75915448 | E119: 20.12864769 | F119: 19.70467307 | G119: 17.80877802 | H119: 17.74279041 | I119: 97.14404367
A120: SEW | B120: Totex WN - Allowed totex net of Grants & contributions, abstraction charges & business rates | C120: £m | D120: 107.1249048 | E120: 123.6584245 | F120: 128.2036503 | G120: 116.3251822 | H120: 120.320543 | I120: 595.6327048
A121: SEW | B121: Totex WWN - Allowed totex net of Grants & contributions, abstraction charges & business rates | C121: £m | D121: 0 | E121: 0 | F121: 0 | G121: 0 | H121: 0 | I121: 0
A122: SEW | B122: Totex BR - Allowed totex net of Grants & contributions, abstraction charges & business rates | C122: £m | D122: 0 | E122: 0 | F122: 0 | G122: 0 | H122: 0 | I122: 0
A123: SEW | B123: Totex DMMY - Allowed totex net of Grants & contributions, abstraction charges & business rates | C123: £m | D123: 0 | E123: 0 | F123: 0 | G123: 0 | H123: 0 | I123: 0
A124: SEW | B124: WR opex for cost sharing | D124: 0.08629260787 | E124: 0.08735309998 | F124: 0.08833060255 | G124: 0.09083468744 | H124: 0.09200421113
A125: SEW | B125: WR Capex for cost sharing | D125: 0.1376959524 | E125: 0.1198510365 | F125: 0.1145091427 | G125: 0.09248872951 | H125: 0.09063992989
A126: SEW | B126: WN opex for cost sharing | D126: 0.1010457742 | E126: 0.1045339882 | F126: 0.1054268342 | G126: 0.1070040781 | H126: 0.1087151089
A127: SEW | B127: WN Capex for cost sharing | D127: 0.07880483496 | E127: 0.1030745321 | F127: 0.1098126066 | G127: 0.08829275705 | H127: 0.09328948573
A128: SEW | B128: WWN opex for cost sharing
A129: SEW | B129: WWN Capex for cost sharing
A130: SSC | B130: Totex WR - Allowed totex net of Grants & contributions, abstraction charges & business rates | C130: £m | D130: 8.879069106 | E130: 7.196855004 | F130: 6.723757127 | G130: 6.799839496 | H130: 7.240202152 | I130: 36.83972288
A131: SSC | B131: Totex WN - Allowed totex net of Grants & contributions, abstraction charges & business rates | C131: £m | D131: 88.6437101 | E131: 92.73295883 | F131: 92.8989794 | G131: 72.5948569 | H131: 74.47117965 | I131: 421.3416849
A132: SSC | B132: Totex WWN - Allowed totex net of Grants & contributions, abstraction charges & business rates | C132: £m | D132: 0 | E132: 0 | F132: 0 | G132: 0 | H132: 0 | I132: 0
A133: SSC | B133: Totex BR - Allowed totex net of Grants & contributions, abstraction charges & business rates | C133: £m | D133: 0 | E133: 0 | F133: 0 | G133: 0 | H133: 0 | I133: 0
A134: SSC | B134: Totex DMMY - Allowed totex net of Grants & contributions, abstraction charges & business rates | C134: £m | D134: 0 | E134: 0 | F134: 0 | G134: 0 | H134: 0 | I134: 0
A135: SSC | B135: WR opex for cost sharing | D135: 0.09065106259 | E135: 0.09071003061 | F135: 0.09948167255 | G135: 0.09943937729 | H135: 0.09944747559
A136: SSC | B136: WR Capex for cost sharing | D136: 0.1503678271 | E136: 0.1046458092 | F136: 0.08303210879 | G136: 0.08513963046 | H136: 0.09708500578
A137: SSC | B137: WN opex for cost sharing | D137: 0.1313179821 | E137: 0.1282580072 | F137: 0.1229046311 | G137: 0.1155929317 | H137: 0.115530141
A138: SSC | B138: WN Capex for cost sharing | D138: 0.07906640014 | E138: 0.09183167814 | F138: 0.09757908253 | G138: 0.05670157296 | H138: 0.06121757311
A139: SSC | B139: WWN opex for cost sharing
A140: SSC | B140: WWN Capex for cost sharing
A141: ANH | B141: Totex WR - Allowed totex net of Grants & contributions, abstraction charges & business rates | C141: £m | D141: 32.47822784 | E141: 34.58569906 | F141: 39.27776055 | G141: 33.8201014 | H141: 31.87857754 | I141: =SUM(D141:H141) -> 172.0403664
A142: ANH | B142: Totex WN - Allowed totex net of Grants & contributions, abstraction charges & business rates | C142: £m | D142: 299.0344185 | E142: 372.2010098 | F142: 416.5564823 | G142: 401.8742918 | H142: 302.786616 | I142: 1792.452818
A143: ANH | B143: Totex WWN - Allowed totex net of Grants & contributions, abstraction charges & business rates | C143: £m | D143: 347.8543422 | E143: 497.6977874 | F143: 480.3497888 | G143: 503.203492 | H143: 411.5004906 | I143: 2240.605901
A144: ANH | B144: Totex BR - Allowed totex net of Grants & contributions, abstraction charges & business rates | C144: £m | D144: 77.75180967 | E144: 82.60308252 | F144: 77.76841666 | G144: 72.7435209 | H144: 73.6181628 | I144: 384.4849925
A145: ANH | B145: Totex DMMY - Allowed totex net of Grants & contributions, abstraction charges & business rates | C145: £m | D145: 0 | E145: 0 | F145: 0 | G145: 0 | H145: 0 | I145: 0
A146: ANH | B146: WR opex for cost sharing | D146: 0.1416841268 | E146: 0.1353075737 | F146: 0.1374504954 | G146: 0.1342023332 | H146: 0.150834837
A147: ANH | B147: WR Capex for cost sharing | D147: 0.04709847411 | E147: 0.065724892 | F147: 0.09085499697 | G147: 0.06238002774 | H147: 0.034462243
A148: ANH | B148: WN opex for cost sharing | D148: 0.0971177914 | E148: 0.09629371909 | F148: 0.0991211364 | G148: 0.09846898273 | H148: 0.09812663915
A149: ANH | B149: WN Capex for cost sharing | D149: 0.0697119379 | E149: 0.1113552667 | F149: 0.1332735342 | G149: 0.125734571 | H149: 0.07079642141
A150: ANH | B150: WWN opex for cost sharing | D150: 0.0782422055 | E150: 0.07947787923 | F150: 0.08027119318 | G150: 0.080328904 | H150: 0.08152777721
A151: ANH | B151: WWN Capex for cost sharing | D151: 0.0770079177 | E151: 0.1426485497 | F151: 0.1341126878 | G151: 0.1442547641 | H151: 0.1021281216
A152: NES | B152: Totex WR - Allowed totex net of Grants & contributions, abstraction charges & business rates | C152: £m | D152: 23.46962216 | E152: 23.16554176 | F152: 21.32549105 | G152: 19.70072384 | H152: 19.46445978 | I152: 107.1258386
A153: NES | B153: Totex WN - Allowed totex net of Grants & contributions, abstraction charges & business rates | C153: £m | D153: 238.272045 | E153: 249.2329851 | F153: 241.1901989 | G153: 223.3646824 | H153: 209.0124498 | I153: 1161.072361
A154: NES | B154: Totex WWN - Allowed totex net of Grants & contributions, abstraction charges & business rates | C154: £m | D154: 146.3595049 | E154: 164.3292491 | F154: 186.3341076 | G154: 243.2157559 | H154: 194.6663941 | I154: 934.9050115
A155: NES | B155: Totex BR - Allowed totex net of Grants & contributions, abstraction charges & business rates | C155: £m | D155: 15.45481268 | E155: 15.40838376 | F155: 15.30971184 | G155: 15.21440601 | H155: 15.12134105 | I155: 76.50865534
A156: NES | B156: Totex DMMY - Allowed totex net of Grants & contributions, abstraction charges & business rates | C156: £m | D156: 0 | E156: 0 | F156: 0 | G156: 0 | H156: 0 | I156: 0
A157: NES | B157: WR opex for cost sharing | D157: 0.147928517 | E157: 0.1455906131 | F157: 0.1434381113 | G157: 0.1413077427 | H157: 0.1392852179
A158: NES | B158: WR Capex for cost sharing | D158: 0.07115608925 | E158: 0.07065545846 | F158: 0.05563142532 | G158: 0.04259489088 | H158: 0.04241193407
A159: NES | B159: WN opex for cost sharing | D159: 0.1043069068 | E159: 0.1028680565 | F159: 0.101993498 | G159: 0.1007408923 | H159: 0.09975769663
A160: NES | B160: WN Capex for cost sharing | D160: 0.1009103156 | E160: 0.111789525 | F160: 0.1057370509 | G160: 0.0916370247 | H160: 0.08025903339
A161: NES | B161: WWN opex for cost sharing | D161: 0.07208846592 | E161: 0.07122084863 | F161: 0.07042065124 | G161: 0.06960599396 | H161: 0.06894719462
A162: NES | B162: WWN Capex for cost sharing | D162: 0.08446166812 | E162: 0.1045502159 | F162: 0.1288874125 | G162: 0.1905442383 | H162: 0.1392733108
A163: NWT | B163: Totex WR - Allowed totex net of Grants & contributions, abstraction charges & business rates | C163: £m | D163: 37.22548768 | E163: 38.01719102 | F163: 41.95433282 | G163: 48.24781242 | H163: 54.66489313 | I163: 220.1097171
A164: NWT | B164: Totex WN - Allowed totex net of Grants & contributions, abstraction charges & business rates | C164: £m | D164: 370.3403925 | E164: 356.3826614 | F164: 357.1064691 | G164: 337.5329806 | H164: 312.6145275 | I164: 1733.977031
A165: NWT | B165: Totex WWN - Allowed totex net of Grants & contributions, abstraction charges & business rates | C165: £m | D165: 412.2609676 | E165: 432.9816281 | F165: 398.2004988 | G165: 582.7181711 | H165: 514.8060919 | I165: 2340.967357
A166: NWT | B166: Totex BR - Allowed totex net of Grants & contributions, abstraction charges & business rates | C166: £m | D166: 67.99974053 | E166: 70.3473362 | F166: 65.74756948 | G166: 60.94640644 | H166: 63.09124696 | I166: 328.1322996
A167: NWT | B167: Totex DMMY - Allowed totex net of Grants & contributions, abstraction charges & business rates | C167: £m | D167: 0 | E167: 0 | F167: 0 | G167: 0 | H167: 0 | I167: 0
A168: NWT | B168: WR opex for cost sharing | D168: 0.1272796465 | E168: 0.1309315821 | F168: 0.1371102288 | G168: 0.155477591 | H168: 0.1854618498
A169: NWT | B169: WR Capex for cost sharing | D169: 0.04184277193 | E169: 0.04178769417 | F169: 0.05349622593 | G169: 0.06372132975 | H169: 0.06289108008
A170: NWT | B170: WN opex for cost sharing | D170: 0.1382865642 | E170: 0.1410386839 | F170: 0.1404839854 | G170: 0.1445756437 | H170: 0.1404899726
A171: NWT | B171: WN Capex for cost sharing | D171: 0.07529203916 | E171: 0.06449037155 | F171: 0.06546249641 | G171: 0.05008263295 | H171: 0.03979761011
A172: NWT | B172: WWN opex for cost sharing | D172: 0.08603210581 | E172: 0.087210111 | F172: 0.08784260477 | G172: 0.09257752092 | H172: 0.0962917901
A173: NWT | B173: WWN Capex for cost sharing | D173: 0.09007499207 | E173: 0.0977483109 | F173: 0.08225822875 | G173: 0.156344434 | H173: 0.1236199016
A174: SRN | B174: Totex WR - Allowed totex net of Grants & contributions, abstraction charges & business rates | C174: £m | D174: 15.79885757 | E174: 15.48261584 | F174: 15.37689472 | G174: 16.76416463 | H174: 19.15225873 | I174: 82.57479151
A175: SRN | B175: Totex WN - Allowed totex net of Grants & contributions, abstraction charges & business rates | C175: £m | D175: 166.4916785 | E175: 165.9949926 | F175: 149.2050652 | G175: 136.2941015 | H175: 151.5270377 | I175: 769.5128755
A176: SRN | B176: Totex WWN - Allowed totex net of Grants & contributions, abstraction charges & business rates | C176: £m | D176: 317.5178396 | E176: 411.2439414 | F176: 422.7621596 | G176: 360.0247325 | H176: 298.2483794 | I176: 1809.797052
A177: SRN | B177: Totex BR - Allowed totex net of Grants & contributions, abstraction charges & business rates | C177: £m | D177: 34.16832906 | E177: 38.45999653 | F177: 55.64577797 | G177: 34.51820225 | H177: 28.81977233 | I177: 191.6120781
A178: SRN | B178: Totex DMMY - Allowed totex net of Grants & contributions, abstraction charges & business rates | C178: £m | D178: 0 | E178: 0 | F178: 0 | G178: 0 | H178: 0 | I178: 0
A179: SRN | B179: WR opex for cost sharing | D179: 0.1153594487 | E179: 0.1126238793 | F179: 0.1165644069 | G179: 0.1140455163 | H179: 0.1106599105
A180: SRN | B180: WR Capex for cost sharing | D180: 0.07596840433 | E180: 0.07487421256 | F180: 0.06965337748 | G180: 0.08897243058 | H180: 0.1212784133
A181: SRN | B181: WN opex for cost sharing | D181: 0.08077220544 | E181: 0.07888121715 | F181: 0.07751220135 | G181: 0.07775635079 | H181: 0.07571436655
A182: SRN | B182: WN Capex for cost sharing | D182: 0.1355876292 | E182: 0.1368331625 | F182: 0.1163832746 | G182: 0.09936102548 | H182: 0.121198567
A183: SRN | B183: WWN opex for cost sharing | D183: 0.06685249982 | E183: 0.06535615618 | F183: 0.0643525207 | G183: 0.06268567478 | H183: 0.06114564472
A184: SRN | B184: WWN Capex for cost sharing | D184: 0.1085913927 | E184: 0.1618759199 | F184: 0.1692439254 | G184: 0.1362453225 | H184: 0.1036509434
A185: SWB | B185: Totex WR - Allowed totex net of Grants & contributions, abstraction charges & business rates | C185: £m | D185: 9.12302887 | E185: 9.704893323 | F185: 8.717148443 | G185: 7.618399669 | H185: 7.344383855 | I185: 42.50785416
A186: SWB | B186: Totex WN - Allowed totex net of Grants & contributions, abstraction charges & business rates | C186: £m | D186: 125.0809626 | E186: 137.0707411 | F186: 150.9997471 | G186: 142.7807172 | H186: 139.2480438 | I186: 695.1802118
A187: SWB | B187: Totex WWN - Allowed totex net of Grants & contributions, abstraction charges & business rates | C187: £m | D187: 166.1669026 | E187: 161.923839 | F187: 146.4474902 | G187: 145.3530423 | H187: 134.4826255 | I187: 754.3738996
A188: SWB | B188: Totex BR - Allowed totex net of Grants & contributions, abstraction charges & business rates | C188: £m | D188: 17.57856527 | E188: 17.83610308 | F188: 18.11655338 | G188: 17.97907693 | H188: 17.78332554 | I188: 89.2936242
A189: SWB | B189: Totex DMMY - Allowed totex net of Grants & contributions, abstraction charges & business rates | C189: £m | D189: 0 | E189: 0 | F189: 0 | G189: 0 | H189: 0 | I189: 0
A190: SWB | B190: WR opex for cost sharing | D190: 0.1106441772 | E190: 0.1120921382 | F190: 0.1124875992 | G190: 0.1132144254 | H190: 0.1142147092
A191: SWB | B191: WR Capex for cost sharing | D191: 0.103975663 | E191: 0.1162161007 | F191: 0.09258387792 | G191: 0.06600891621 | H191: 0.05856239285
A192: SWB | B192: WN opex for cost sharing | D192: 0.08855842703 | E192: 0.08904427346 | F192: 0.08849241702 | G192: 0.08698480434 | H192: 0.08649534182
A193: SWB | B193: WN Capex for cost sharing | D193: 0.09136752658 | E193: 0.108128688 | F193: 0.1287170843 | G193: 0.1184018203 | H193: 0.1138096172
A194: SWB | B194: WWN opex for cost sharing | D194: 0.08845682797 | E194: 0.08803643481 | F194: 0.0875029739 | G194: 0.08542195134 | H194: 0.08438367621
A195: SWB | B195: WWN Capex for cost sharing | D195: 0.1318144496 | E195: 0.1266102266 | F195: 0.1066281993 | G195: 0.107258419 | H195: 0.09388684129
A196: TMS | B196: Totex WR - Allowed totex net of Grants & contributions, abstraction charges & business rates | C196: £m | D196: 76.70833985 | E196: 80.83260236 | F196: 88.93674401 | G196: 73.09079102 | H196: 57.9325983 | I196: 377.5010755
A197: TMS | B197: Totex WN - Allowed totex net of Grants & contributions, abstraction charges & business rates | C197: £m | D197: 800.7646955 | E197: 821.2259276 | F197: 765.0081653 | G197: 725.0392784 | H197: 684.5781571 | I197: 3796.616224
A198: TMS | B198: Totex WWN - Allowed totex net of Grants & contributions, abstraction charges & business rates | C198: £m | D198: 708.412484 | E198: 746.3630428 | F198: 751.527191 | G198: 704.8646409 | H198: 634.8930023 | I198: 3546.060361
A199: TMS | B199: Totex BR - Allowed totex net of Grants & contributions, abstraction charges & business rates | C199: £m | D199: 81.74502112 | E199: 123.7072805 | F199: 126.8392485 | G199: 110.7258012 | H199: 94.16243846 | I199: 537.1797898
A200: TMS | B200: Totex DMMY - Allowed totex net of Grants & contributions, abstraction charges & business rates | C200: £m | D200: 22.61558163 | E200: 34.37048821 | F200: 20.10931856 | G200: -190.9645132 | H200: -216.7340098 | I200: -330.6031346
A201: TMS | B201: WR opex for cost sharing | D201: 0.117391079 | E201: 0.1216188337 | F201: 0.1128036662 | G201: 0.1081180389 | H201: 0.1144487197
A202: TMS | B202: WR Capex for cost sharing | D202: 0.08580924232 | E202: 0.09250665516 | F202: 0.1227896865 | G202: 0.08549939896 | H202: 0.03901467958
A203: TMS | B203: WN opex for cost sharing | D203: 0.07976922353 | E203: 0.07815841269 | F203: 0.07478129869 | G203: 0.07191098934 | H203: 0.07148623462
A204: TMS | B204: WN Capex for cost sharing | D204: 0.1311461412 | E204: 0.1381462858 | F204: 0.1267160664 | G204: 0.1190588732 | H204: 0.1088264746
A205: TMS | B205: WWN opex for cost sharing | D205: 0.09108738177 | E205: 0.08663311776 | F205: 0.08523273079 | G205: 0.08470330202 | H205: 0.08577750502
... 56 more rows

Sheet InpActive
A1: =RIGHT(CELL("filename", $A$1), LEN(CELL("filename", $A$1)) - SEARCH("]", CELL("filename", $A$1))) ->  | P1: WSX
E2: =Time!E$22 -> Model Period BEG | J2: =Time!J$22 -> 2019-04-01 | K2: =Time!K$22 -> 2020-04-01 | L2: =Time!L$22 -> 2021-04-01 | M2: =Time!M$22 -> 2022-04-01 | N2: =Time!N$22 -> 2023-04-01 | O2: =Time!O$22 -> 2024-04-01 | P2: =Time!P$22 -> 2025-04-01
E3: =Time!E$23 -> Model Period END | F3: =Check!F$8 -> 0 | G3: Error chks | J3: =Time!J$23 -> 2020-03-31 | K3: =Time!K$23 -> 2021-03-31 | L3: =Time!L$23 -> 2022-03-31 | M3: =Time!M$23 -> 2023-03-31 | N3: =Time!N$23 -> 2024-03-31 | O3: =Time!O$23 -> 2025-03-31 | P3: =Time!P$23 -> 2026-03-31
E4: =Time!E$59 -> Pre Forecast vs Forecast | J4: =Time!J$59 -> Pre Fcst | K4: =Time!K$59 -> Forecast | L4: =Time!L$59 -> Forecast | M4: =Time!M$59 -> Forecast | N4: =Time!N$59 -> Forecast | O4: =Time!O$59 -> Forecast | P4: =Time!P$59 -> Post-Fcst
E5: =Time!E$101 -> Financial Year Ending | J5: =Time!J$101 -> 2020 | K5: =Time!K$101 -> 2021 | L5: =Time!L$101 -> 2022 | M5: =Time!M$101 -> 2023 | N5: =Time!N$101 -> 2024 | O5: =Time!O$101 -> 2025 | P5: =Time!P$101 -> 2026
E6: =Time!E$11 -> Model column counter | F6: Constant | G6: Unit | H6: Total | J6: =Time!J$11 -> 1 | K6: =Time!K$11 -> 2 | L6: =Time!L$11 -> 3 | M6: =Time!M$11 -> 4 | N6: =Time!N$11 -> 5 | O6: =Time!O$11 -> 6 | P6: =Time!P$11 -> 7
A8: TIME
E10: First date of time ruler | F10: 2019-04-01 | G10: date
E12: Last Pre Forecast Date | F12: 2020-03-31 | G12: date
E14: Acquisition date (midnight) | F14: 2020-03-31 | G14: date
E15: Length of forecast period | F15: 5 | G15: years
E16: Last forecast date | F16: =DATE(YEAR(F14)+F15,MONTH(F14),DAY(F14)) -> 2025-03-31 | G16: date
E19: Operation Start Date (midnight) | F19: 2021-03-31 | G19: date
E20: Operation Finish Date (midnight) | F20: 2025-03-31 | G20: date
E21: First Modelling Column Financial Year Number | F21: 2020 | G21: year
E22: Financial Year End Month Number | F22: 3 | G22: month #
A25: TOTEX INPUTS
B27: Water Resources
C28: Wage adjustment
A29: C_TBC_WR_PR19CA004_OFWAT | D29: 2017/18 CPIH | E29: Base Costs - WR - Real | F29: 60.8 | G29: £m
D30: 2017/18 CPIH | E30: Metering (excluding new connections) for meters requested by optants, customers and businesses - WR - Real | G30: £m
A32: C_OPEX_SPLIT_BASE_WR_PR19CA091 | E32: Opex split profile - Base costs - WR | G32: % | K32: 0.1443457837 | L32: 0.1498328443 | M32: 0.1663601238 | N32: 0.1499139361 | O32: 0.1511681452
A33: C_CAPEX_SPLIT_BASE_WR_PR19CA091 | E33: Capex Split Profile - Base costs - WR | G33: % | K33: 0.04627501657 | L33: 0.06884442968 | M33: 0.05514971161 | N33: 0.03416186722 | O33: 0.03394814172
A35: WR opex for cost sharing | E35: Opex split profile - Cost sharing - WR | G35: % | K35: 0.09690958312 | L35: 0.09966211598 | M35: 0.1147963014 | N35: 0.0997363725 | O35: 0.1008848636
A36: WR Capex for cost sharing | E36: Capex split profile - Cost sharing - WR | G36: % | K36: 0.1878642437 | L36: 0.1014864395 | M36: 0.09248672072 | N36: 0.05921565471 | O36: 0.04695770477
E38: Business Rates forecast profile - WR | G38: % | K38: 0.2 | L38: 0.2 | M38: 0.2 | N38: 0.2 | O38: 0.2
E39: Abstraction Charges forecast profile - WR | G39: % | K39: 0.2 | L39: 0.2 | M39: 0.2 | N39: 0.2 | O39: 0.2
C41: Net totex for cost sharing reconciliation
D42: nominal | E42: Net totex for cost sharing reconciliation - WR - Nominal | G42: £m | K42: 9.284 | L42: 10.571 | M42: 13.416 | N42: =[1]Workings!$F$29-[1]Workings!$F$45 -> 14.29359042 | O42: =([2]Workings!$G$52+[2]Workings!$G$28-SUM([2]CW11!$O$18:$O$19)-SUM([2]CW11!$O$37:$O$38)-[2]Workings!$G$62)*'[2]PD1 inflation'!$B$6 +N("PD9 adjed Total totex, add back S185 diversions, remove NonS185 diversions, remove Disallowable costs") -> 18.7067398
A43: Totex WR - Allowed totex net of Grants & contributions, abstraction charges & business rates | D43: 2017/18 CPIH | E43: Net totex available for cost sharing - WR - Real | F43: 66.4 | G43: £m
D44: nominal | E44: Performance related pay recovery mechanism adjustment - WR - Nominal (Neg) | G44: £m | K44: 0 | L44: 0 | M44: 0 | N44: 0 | O44: 0
A46: C__PR24PD11_PD11_12WR_PRETVM_PR24 | D46: 2017/18 CPIH | E46: Total final WINEP reconciliation - WR - real | G46: £m | K46: 0 | L46: 0 | M46: 0 | N46: 0 | O46: 0
C48: Business Rates and Abstraction
A49: C_UBC_WR_PR19CA004_OFWAT | D49: 2017/18 CPIH | E49: Business rates - Forecast - WR - Real | F49: 3.281014591 | G49: £m
A50: WS1003_WW4_WR | D50: 2017/18 CPIH | E50: Abstraction charges - Forecast - WR - Real | F50: 11.22251102 | G50: £m
D52: nominal | E52: Business rates - Actual - WR - Nominal | G52: £m | K52: 0.9676407112 | L52: 0.961387745 | M52: 0.974 | N52: 0.621 | O52: =[2]Workings!$G$48*'[2]PD1 inflation'!$B$6 -> 0.7513197186
D53: nominal | E53: Abstraction charges - Actual - WR - Nominal | G53: £m | K53: 2.479462638 | L53: 2.583545016 | M53: 2.732 | N53: 2.806 | O53: =[2]Workings!$G$47*'[2]PD1 inflation'!$B$6 -> 3.002844711
E55: Weighted average PAYG rate - WR | F55: 0.641 | G55: %
A57: C_WR_CS_EXANTE_001 | D57: 2017/18 CPIH | E57: Ex ante allowance above Ofwat forecast - Water Resources - Real | F57: 0 | G57: £m
C59: Bad Debt
D60: 2017/18 CPIH | E60: Business retail bad debt liability due to covid liquidity measures - WR - real | F60: 0 | G60: £m
D61: 2017/18 CPIH | E61: Total Wholesaler Liability - WR - real | F61: 0 | G61: £m
C63: CMA exclusions
D64: nominal | E64: Actuals for CMA excluded items - WR - nominal | G64: £m | K64: =SUMIF('Consolidated actual totex inp'!$L:$L, InpActive!$E64, 'Consolidated actual totex inp'!G:G) -> 0 | L64: =SUMIF('Consolidated actual totex inp'!$L:$L, InpActive!$E64, 'Consolidated actual totex inp'!H:H) -> 0 | M64: =SUMIF('Consolidated actual totex inp'!$L:$L, InpActive!$E64, 'Consolidated actual totex inp'!I:I) -> 0 | N64: =SUMIF('Consolidated actual totex inp'!$L:$L, InpActive!$E64, 'Consolidated actual totex inp'!J:J) -> 0 | O64: =SUMIF('Consolidated actual totex inp'!$L:$L, InpActive!$E64, 'Consolidated actual totex inp'!K:K) -> 0
D65: 2017/18 CPIH | E65: Allowance for CMA excluded items - WR - real | G65: £m | K65: =SUMIFS('Non-fountain inputs'!C$8:C$23, 'Non-fountain inputs'!$A$8:$A$23, InpActive!$P$1, 'Non-fountain inputs'!$B$8:$B$23, InpActive!$E65) -> 0 | L65: =SUMIFS('Non-fountain inputs'!D$8:D$23, 'Non-fountain inputs'!$A$8:$A$23, InpActive!$P$1, 'Non-fountain inputs'!$B$8:$B$23, InpActive!$E65) -> 0 | M65: =SUMIFS('Non-fountain inputs'!E$8:E$23, 'Non-fountain inputs'!$A$8:$A$23, InpActive!$P$1, 'Non-fountain inputs'!$B$8:$B$23, InpActive!$E65) -> 0 | N65: =SUMIFS('Non-fountain inputs'!F$8:F$23, 'Non-fountain inputs'!$A$8:$A$23, InpActive!$P$1, 'Non-fountain inputs'!$B$8:$B$23, InpActive!$E65) -> 0 | O65: =SUMIFS('Non-fountain inputs'!G$8:G$23, 'Non-fountain inputs'!$A$8:$A$23, InpActive!$P$1, 'Non-fountain inputs'!$B$8:$B$23, InpActive!$E65) -> 0
A66: PD9_13WR_PR24 | E66: CMA excluded items sharing rate - WR - real | F66: 0 | G66: %
B68: Water Network
C69: Wage adjustment
A70: C_TBC_WN_PR19CA004_OFWAT | D70: 2017/18 CPIH | E70: Base Costs - WN - Real | F70: 486.2 | G70: £m
A71: C_PR19_E_W_METERING_WN | D71: 2017/18 CPIH | E71: Metering (excluding new connections) for meters requested by optants, customers and businesses - WN - Real | F71: 10.92401635 | G71: £m
A73: C_OPEX_SPLIT_BASE_WN_PR19CA091 | E73: Opex Split Profile - Base costs - WN | G73: % | K73: 0.13 | L73: 0.13 | M73: 0.13 | N73: 0.13 | O73: 0.13
A74: C_CAPEX_SPLIT_BASE_WN_PR19CA091 | E74: Capex Split Profile - Base costs - WN | G74: % | K74: 0.069 | L74: 0.06 | M74: 0.097 | N74: 0.067 | O74: 0.057
A76: WN opex for cost sharing | E76: Opex split profile - Cost sharing - WN | G76: % | K76: 0.1083823549 | L76: 0.1091869141 | M76: 0.1101454617 | N76: 0.1113929041 | O76: 0.1129498916
A77: WN Capex for cost sharing | E77: Capex split profile - Cost sharing - WN | G77: % | K77: 0.08668816756 | L77: 0.08023048929 | M77: 0.1220977209 | N77: 0.08565543551 | O77: 0.07327066036
E79: Business Rates forecast profile - WN | G79: % | K79: 0.2 | L79: 0.2 | M79: 0.2 | N79: 0.2 | O79: 0.2
E80: Abstraction Charges forecast profile - WN | G80: % | K80: 0.2 | L80: 0.2 | M80: 0.2 | N80: 0.2 | O80: 0.2
C82: Net totex for cost sharing reconciliation
D83: nominal | E83: Net totex for cost sharing reconciliation - WN - Nominal | G83: £m | K83: 119.906 | L83: 118.23 | M83: 131.114 | N83: =[1]Workings!$G$29-[1]Workings!$G$45 -> 137.2373732 | O83: =([2]Workings!$H$52+[2]Workings!$H$28-SUM([2]CW11!$P$18:$R$19)-SUM([2]CW11!$P$37:$R$38)-[2]Workings!$H$62)*'[2]PD1 inflation'!$B$6 +N("PD9 Total totex, add back S185 diversions, remove NonS185 diversions, remove Disallowable costs") -> 127.7741377
A84: Totex WN - Allowed totex net of Grants & contributions, abstraction charges & business rates | D84: 2017/18 CPIH | E84: Net totex available for cost sharing - WN - Real | F84: 438.4 | G84: £m
D85: nominal | E85: Performance related pay recovery mechanism adjustment - WN - Nominal (Neg) | G85: £m | K85: 0 | L85: 0 | M85: 0 | N85: 0 | O85: 0
A87: C__PR24PD11_PD11_12WN_PRETVM_PR24 | D87: 2017/18 CPIH | E87: Total final WINEP reconciliation - WN - real | G87: £m | K87: 0 | L87: 0 | M87: 0 | N87: 0 | O87: 0
C89: Business Rates and Abstraction
A90: C_UBC_WN_PR19CA004_OFWAT | D90: 2017/18 CPIH | E90: Business rates - Forecast - WN - Real | F90: 68.60922797 | G90: £m
A91: WS1003_WW4_WN | D91: 2017/18 CPIH | E91: Abstraction charges - Forecast - WN - Real | F91: 1.476162024 | G91: £m
D93: nominal | E93: Business rates - Actual - WN - Nominal | G93: £m | K93: 15.05175258 | L93: 14.92980756 | M93: 14.994 | N93: 10.239 | O93: =[2]Workings!$H$48*'[2]PD1 inflation'!$B$6 -> 11.56240022
D94: nominal | E94: Abstraction charges - Actual - WN - Nominal | G94: £m | K94: 0.1424992303 | L94: 0.1429897438 | M94: 0.152 | N94: 0.16 | O94: =[2]Workings!$H$47*'[2]PD1 inflation'!$B$6 -> 1.308302036
E96: Weighted average PAYG rate - WN | F96: 0.722 | G96: %
A98: C_WN_CS_EXANTE_001 | D98: 2017/18 CPIH | E98: Ex ante allowance above Ofwat forecast - Water Network - Real | F98: 0 | G98: £m
C100: Bad Debt
D101: 2017/18 CPIH | E101: Business retail bad debt liability due to covid liquidity measures - WN - real | F101: 0 | G101: £m
D102: 2017/18 CPIH | E102: Total Wholesaler Liability - WN - real | F102: 0 | G102: £m
C104: CMA exclusions
D105: nominal | E105: Actuals for CMA excluded items - WN - nominal | G105: £m | K105: =SUMIF('Consolidated actual totex inp'!$L:$L, InpActive!$E105, 'Consolidated actual totex inp'!G:G) -> 0 | L105: =SUMIF('Consolidated actual totex inp'!$L:$L, InpActive!$E105, 'Consolidated actual totex inp'!H:H) -> 0 | M105: =SUMIF('Consolidated actual totex inp'!$L:$L, InpActive!$E105, 'Consolidated actual totex inp'!I:I) -> 0 | N105: =SUMIF('Consolidated actual totex inp'!$L:$L, InpActive!$E105, 'Consolidated actual totex inp'!J:J) -> 0 | O105: =SUMIF('Consolidated actual totex inp'!$L:$L, InpActive!$E105, 'Consolidated actual totex inp'!K:K) -> 0
D106: 2017/18 CPIH | E106: Allowance for CMA excluded items - WN - real | G106: £m | K106: =SUMIFS('Non-fountain inputs'!C$8:C$23, 'Non-fountain inputs'!$A$8:$A$23, InpActive!$P$1, 'Non-fountain inputs'!$B$8:$B$23, InpActive!$E106) -> 0 | L106: =SUMIFS('Non-fountain inputs'!D$8:D$23, 'Non-fountain inputs'!$A$8:$A$23, InpActive!$P$1, 'Non-fountain inputs'!$B$8:$B$23, InpActive!$E106) -> 0 | M106: =SUMIFS('Non-fountain inputs'!E$8:E$23, 'Non-fountain inputs'!$A$8:$A$23, InpActive!$P$1, 'Non-fountain inputs'!$B$8:$B$23, InpActive!$E106) -> 0 | N106: =SUMIFS('Non-fountain inputs'!F$8:F$23, 'Non-fountain inputs'!$A$8:$A$23, InpActive!$P$1, 'Non-fountain inputs'!$B$8:$B$23, InpActive!$E106) -> 0 | O106: =SUMIFS('Non-fountain inputs'!G$8:G$23, 'Non-fountain inputs'!$A$8:$A$23, InpActive!$P$1, 'Non-fountain inputs'!$B$8:$B$23, InpActive!$E106) -> 0
A107: PD9_13WN_PR24 | E107: CMA excluded items sharing rate - WN - real | F107: 0 | G107: %
B109: Wastewater Network
C110: Wage adjustment
A111: C_TBC_WWN_PR19CA008_OFWAT | D111: 2017/18 CPIH | E111: Base Costs - WWN - Real | F111: 884.6 | G111: £m
D112: 2017/18 CPIH | E112: Metering (excluding new connections) for meters requested by optants, customers and businesses - WWN - Real | G112: £m
A113: C_PR19_E_WW_WINEP_WWN | D113: 2017/18 CPIH | E113: WINEP / NEP ~ In-the-Round - WWN - Real | F113: 384.1 | G113: £m
A115: C_OPEX_SPLIT_BASE_WWN_PR19CA091 | E115: Opex Split Profile - Base costs - WWN | G115: % | K115: 0.09 | L115: 0.091 | M115: 0.092 | N115: 0.093 | O115: 0.094
A116: C_CAPEX_SPLIT_BASE_WWN_PR19CA091 | E116: Capex Split Profile - Base costs - WWN | G116: % | K116: 0.1 | L116: 0.108 | M116: 0.109 | N116: 0.114 | O116: 0.108
A118: WWN opex for cost sharing | E118: Opex split profile - Cost sharing - WWN | G118: % | K118: 0.05961515234 | L118: 0.06097652106 | M118: 0.06282437614 | N118: 0.06520231138 | O118: 0.06696086197
A119: WWN Capex for cost sharing | E119: Capex split profile - Cost sharing - WWN | G119: % | K119: 0.1557842813 | L119: 0.1405646952 | M119: 0.1364713902 | N119: 0.1312053796 | O119: 0.1203950307
E121: Business Rates forecast profile - WWN | G121: % | K121: 0.2 | L121: 0.2 | M121: 0.2 | N121: 0.2 | O121: 0.2
C123: Net totex for cost sharing reconciliation
D124: nominal | E124: Net totex for cost sharing reconciliation - WWN - nominal | G124: £m | K124: 237.078 | L124: 235.873 | M124: 262.854 | N124: =[1]Workings!$H$29-[1]Workings!$H$45 -> 356.4793734 | O124: =([2]Workings!$I$52+[2]Workings!$I$28-SUM([2]CWW11!$Q$14:$R$15)-SUM([2]CWW11!$Q$31:$R$32)-[2]Workings!$I$62)*'[2]PD1 inflation'!$B$6 +N("PD9 adjusted Total totex, add back S185 diversions, remove NonS185 diversions, remove Disallowable costs") -> 377.6760162
A125: Totex WWN - Allowed totex net of Grants & contributions, abstraction charges & business rates | D125: 2017/18 CPIH | E125: Net totex available for cost sharing - WWN - Real | F125: 1237.1 | G125: £m
D126: nominal | E126: Performance related pay recovery mechanism adjustment - WWN - Nominal (Neg) | G126: £m | K126: 0 | L126: 0 | M126: 0 | N126: 0 | O126: 0
A128: C__PR24PD11_PD11_12WWN_PRETVM_PR24 | D128: 2017/18 CPIH | E128: Total final WINEP reconciliation - WWN - real | G128: £m | K128: 0 | L128: 0 | M128: =[3]Annual_Outputs!N$28 -> -0.2152557333 | N128: =[3]Annual_Outputs!O$28 -> -0.2152557333 | O128: =[3]Annual_Outputs!P$28 -> -0.2152557333
C130: Business Rates and Abstraction
A131: C_UBC_WWN_PR19CA008_OFWAT | D131: 2017/18 CPIH | E131: Business rates - Forecast - WWN - Real | F131: 34.7934936 | G131: £m
D133: nominal | E133: Business rates - Actual - WWN - Nominal | G133: £m | K133: 7.150233251 | L133: 7.147619918 | M133: 7.148 | N133: 8.129 | O133: =[2]Workings!$I$48*'[2]PD1 inflation'!$B$6 -> 10.25533106
E135: Weighted average PAYG rate - WWN | F135: 0.403 | G135: %
A137: C_WWN_CS_EXANTE_001 | D137: 2017/18 CPIH | E137: Ex ante allowance above Ofwat forecast - Wastewater Network - Real | F137: 0 | G137: £m
C139: Bad Debt
D140: 2017/18 CPIH | E140: Business retail bad debt liability due to covid liquidity measures - WWN - real | F140: 0 | G140: £m
D141: 2017/18 CPIH | E141: Total Wholesaler Liability - WWN - real | F141: 0 | G141: £m
C143: CMA exclusions
D144: nominal | E144: Actuals for CMA excluded items - WWN - nominal | G144: £m | K144: =SUMIF('Consolidated actual totex inp'!$L:$L, InpActive!$E144, 'Consolidated actual totex inp'!G:G) -> 0 | L144: =SUMIF('Consolidated actual totex inp'!$L:$L, InpActive!$E144, 'Consolidated actual totex inp'!H:H) -> 0 | M144: =SUMIF('Consolidated actual totex inp'!$L:$L, InpActive!$E144, 'Consolidated actual totex inp'!I:I) -> 0 | N144: =SUMIF('Consolidated actual totex inp'!$L:$L, InpActive!$E144, 'Consolidated actual totex inp'!J:J) -> 0 | O144: =SUMIF('Consolidated actual totex inp'!$L:$L, InpActive!$E144, 'Consolidated actual totex inp'!K:K) -> 0
D145: 2017/18 CPIH | E145: Allowance for CMA excluded items - WWN - real | G145: £m | K145: =SUMIFS('Non-fountain inputs'!C$8:C$23, 'Non-fountain inputs'!$A$8:$A$23, InpActive!$P$1, 'Non-fountain inputs'!$B$8:$B$23, InpActive!$E145) -> 0 | L145: =SUMIFS('Non-fountain inputs'!D$8:D$23, 'Non-fountain inputs'!$A$8:$A$23, InpActive!$P$1, 'Non-fountain inputs'!$B$8:$B$23, InpActive!$E145) -> 0 | M145: =SUMIFS('Non-fountain inputs'!E$8:E$23, 'Non-fountain inputs'!$A$8:$A$23, InpActive!$P$1, 'Non-fountain inputs'!$B$8:$B$23, InpActive!$E145) -> 0 | N145: =SUMIFS('Non-fountain inputs'!F$8:F$23, 'Non-fountain inputs'!$A$8:$A$23, InpActive!$P$1, 'Non-fountain inputs'!$B$8:$B$23, InpActive!$E145) -> 0 | O145: =SUMIFS('Non-fountain inputs'!G$8:G$23, 'Non-fountain inputs'!$A$8:$A$23, InpActive!$P$1, 'Non-fountain inputs'!$B$8:$B$23, InpActive!$E145) -> 0
A146: PD9_13WWN_PR24 | E146: CMA excluded items sharing rate - WWN - real | F146: 0 | G146: %
B148: Bioresources
D149: Business Rates and Abstraction
A150: C_TBC_WBR_PR19CA008_OFWAT | D150: 2017/18 CPIH | E150: Base Costs - BIO - Real | F150: 114.7 | G150: £m
A151: C_PR19_E_WW_WINEP_BIO | D151: 2017/18 CPIH | E151: WINEP / NEP ~ In-the-Round - BIO - Real | F151: 0 | G151: £m
A153: C_OPEX_SPLIT_BASE_BR_PR19CA091 | E153: Opex Split Profile - Base costs - BIO | G153: % | K153: 0.1455744815 | L153: 0.146256727 | M153: 0.1469492123 | N153: 0.1476520928 | O153: 0.1479780122
A154: C_CAPEX_SPLIT_BASE_BR_PR19CA091 | E154: Capex Split Profile - Base costs - BIO | G154: % | K154: 0.05259070868 | L154: 0.04583475159 | M154: 0.06355529478 | N154: 0.04437280677 | O154: 0.05923591238
A156: C_UBC_WBR_PR19CA008_OFWAT | D156: 2017/18 CPIH | E156: Business rates - Forecast - BIO - Real | F156: 8.16301332 | G156: £m
D158: nominal | E158: Business rates - Actual - BIO - Nominal | G158: £m | K158: 1.646032583 | L158: 1.618605869 | M158: 1.614 | N158: 1.877 | O158: =[2]Workings!$J$48*'[2]PD1 inflation'!$B$6 -> 2.128688864
E160: Business Rates forecast profile - BIO | G160: % | K160: 0.2 | L160: 0.2 | M160: 0.2 | N160: 0.2 | O160: 0.2
E162: Weighted average PAYG rate - BIO | F162: 0.73 | G162: %
C164: CMA exclusions
D165: nominal | E165: Actuals for CMA excluded items - BIO - nominal | G165: £m | K165: 0 | L165: 0 | M165: 0 | N165: 0 | O165: 0
D166: 2017/18 CPIH | E166: Allowance for CMA excluded items - BIO - real | G166: £m | K166: 0 | L166: 0 | M166: 0 | N166: 0 | O166: 0
A167: PD9_13BIO_PR24 | E167: CMA excluded items sharing rate - BIO - real | F167: 0 | G167: %
C169: Bonuses
D170: nominal | E170: Performance related pay recovery mechanism adjustment - BIO - Nominal (Neg) | G170: £m | K170: 0 | L170: 0 | M170: 0 | N170: 0 | O170: 0
B173: Thames Tideway
C174: Wage adjustment
D175: 2017/18 CPIH | E175: Base Costs - TTT - Real | G175: £m
E177: Opex Split Profile - Base costs - TTT | G177: %
E178: Capex Split Profile - Base costs - TTT | G178: %
E180: Opex split profile - Cost sharing - TTT | G180: %
E181: Capex split profile - Cost sharing - TTT | G181: %
C183: Net totex for cost sharing reconciliation
D184: nominal | E184: Net totex for cost sharing reconciliation - TTT - nominal | G184: £m
D185: 2017/18 CPIH | E185: Net totex available for cost sharing - TTT - Real | G185: £m
D186: nominal | E186: Performance related pay recovery mechanism adjustment - TTT - Nominal (Neg) | G186: £m
D188: 2017/18 CPIH | E188: Total final WINEP reconciliation - TTT - real | G188: £m
E190: Weighted average PAYG rate - TTT | G190: %
A193: GREEN RECOVERY
C195: Water Resources
E197: Actual Green Recovery Expenditure - WR - nominal | G197: £m | H197: =SUM(K197:O197) -> 0 | K197: =SUMIF('Consolidated actual totex inp'!$L$59:$L$79, InpActive!$E197, 'Consolidated actual totex inp'!G$59:G$79) -> 0 | L197: =SUMIF('Consolidated actual totex inp'!$L$59:$L$79, InpActive!$E197, 'Consolidated actual totex inp'!H$59:H$79) -> 0 | M197: =SUMIF('Consolidated actual totex inp'!$L$59:$L$79, InpActive!$E197, 'Consolidated actual totex inp'!I$59:I$79) -> 0 | N197: =SUMIF('Consolidated actual totex inp'!$L$59:$L$79, InpActive!$E197, 'Consolidated actual totex inp'!J$59:J$79) -> 0 | O197: =SUMIF('Consolidated actual totex inp'!$L$59:$L$79, InpActive!$E197, 'Consolidated actual totex inp'!K$59:K$79) -> 0
A198: C_PR24PD21_01WR_PR24 | E198: Total adjusted cost allowance - WR - real | G198: £m | H198: =SUM(K198:O198) -> 0 | K198: =SUMIF(F_Inputs!$B:$B, InpActive!$A198, F_Inputs!F:F) -> 0 | L198: =SUMIF(F_Inputs!$B:$B, InpActive!$A198, F_Inputs!G:G) -> 0 | M198: =SUMIF(F_Inputs!$B:$B, InpActive!$A198, F_Inputs!H:H) -> 0 | N198: =SUMIF(F_Inputs!$B:$B, InpActive!$A198, F_Inputs!I:I) -> 0 | O198: =SUMIF(F_Inputs!$B:$B, InpActive!$A198, F_Inputs!J:J) -> 0
C200: Water Network
E202: Actual Green Recovery Expenditure - WN - nominal | G202: £m | H202: =SUM(K202:O202) -> 0 | K202: =SUMIF('Consolidated actual totex inp'!$L$59:$L$79, InpActive!$E202, 'Consolidated actual totex inp'!G$59:G$79) -> 0 | L202: =SUMIF('Consolidated actual totex inp'!$L$59:$L$79, InpActive!$E202, 'Consolidated actual totex inp'!H$59:H$79) -> 0 | M202: =SUMIF('Consolidated actual totex inp'!$L$59:$L$79, InpActive!$E202, 'Consolidated actual totex inp'!I$59:I$79) -> 0 | N202: =SUMIF('Consolidated actual totex inp'!$L$59:$L$79, InpActive!$E202, 'Consolidated actual totex inp'!J$59:J$79) -> 0 | O202: =SUMIF('Consolidated actual totex inp'!$L$59:$L$79, InpActive!$E202, 'Consolidated actual totex inp'!K$59:K$79) -> 0
A203: C_PR24PD21_01WN_PR24 | E203: Total adjusted cost allowance - WN - real | G203: £m | H203: =SUM(K203:O203) -> 0 | K203: =SUMIF(F_Inputs!$B:$B, InpActive!$A203, F_Inputs!F:F) -> 0 | L203: =SUMIF(F_Inputs!$B:$B, InpActive!$A203, F_Inputs!G:G) -> 0 | M203: =SUMIF(F_Inputs!$B:$B, InpActive!$A203, F_Inputs!H:H) -> 0 | N203: =SUMIF(F_Inputs!$B:$B, InpActive!$A203, F_Inputs!I:I) -> 0 | O203: =SUMIF(F_Inputs!$B:$B, InpActive!$A203, F_Inputs!J:J) -> 0
C205: Wastewater Network
E207: Actual Green Recovery Expenditure - WWN - nominal | G207: £m | H207: =SUM(K207:O207) -> 0 | K207: =SUMIF('Consolidated actual totex inp'!$L$59:$L$79, InpActive!$E207, 'Consolidated actual totex inp'!G$59:G$79) -> 0 | L207: =SUMIF('Consolidated actual totex inp'!$L$59:$L$79, InpActive!$E207, 'Consolidated actual totex inp'!H$59:H$79) -> 0 | M207: =SUMIF('Consolidated actual totex inp'!$L$59:$L$79, InpActive!$E207, 'Consolidated actual totex inp'!I$59:I$79) -> 0 | N207: =SUMIF('Consolidated actual totex inp'!$L$59:$L$79, InpActive!$E207, 'Consolidated actual totex inp'!J$59:J$79) -> 0 | O207: =SUMIF('Consolidated actual totex inp'!$L$59:$L$79, InpActive!$E207, 'Consolidated actual totex inp'!K$59:K$79) -> 0
A208: C_PR24PD21_01WWN_PR24 | E208: Total adjusted cost allowance - WWN - real | G208: £m | H208: =SUM(K208:O208) -> 0 | K208: =SUMIF(F_Inputs!$B:$B, InpActive!$A208, F_Inputs!F:F) -> 0 | L208: =SUMIF(F_Inputs!$B:$B, InpActive!$A208, F_Inputs!G:G) -> 0 | M208: =SUMIF(F_Inputs!$B:$B, InpActive!$A208, F_Inputs!H:H) -> 0 | N208: =SUMIF(F_Inputs!$B:$B, InpActive!$A208, F_Inputs!I:I) -> 0 | O208: =SUMIF(F_Inputs!$B:$B, InpActive!$A208, F_Inputs!J:J) -> 0
D211: Green Recovery Sharing Rates
E212: Green Recovery Outperformance Rate | F212: 0.1 | G212: %
E213: Green Recovery Underperformance Rate | F213: 0.5 | G213: %
A215: INFLATION
D217: Base Year
E218: Consumer Price Index (with housing) for April | F218: 103.2 | G218: Index
E219: Consumer Price Index (with housing) for May | F219: 103.5 | G219: Index
E220: Consumer Price Index (with housing) for June | F220: 103.5 | G220: Index
E221: Consumer Price Index (with housing) for July | F221: 103.5 | G221: Index
E222: Consumer Price Index (with housing) for August | F222: 104 | G222: Index
E223: Consumer Price Index (with housing) for September | F223: 104.3 | G223: Index
E224: Consumer Price Index (with housing) for October | F224: 104.4 | G224: Index
E225: Consumer Price Index (with housing) for November | F225: 104.7 | G225: Index
E226: Consumer Price Index (with housing) for December | F226: 105 | G226: Index
E227: Consumer Price Index (with housing) for January | F227: 104.5 | G227: Index
E228: Consumer Price Index (with housing) for February | F228: 104.9 | G228: Index
E229: Consumer Price Index (with housing) for March | F229: 105.1 | G229: Index
D231: Period
E232: Consumer Price Index (with housing) for April | G232: Index | J232: 107.6 | K232: 108.6 | L232: 110.4 | M232: 119 | N232: 128.3 | O232: 132.2 | P232: 135.8
E233: Consumer Price Index (with housing) for May | G233: Index | J233: 107.9 | K233: 108.6 | L233: 111 | M233: 119.7 | N233: 129.1 | O233: 132.7 | P233: 136.2
E234: Consumer Price Index (with housing) for June | G234: Index | J234: 107.9 | K234: 108.8 | L234: 111.4 | M234: 120.5 | N234: 129.4 | O234: 133 | P234: 136.3
E235: Consumer Price Index (with housing) for July | G235: Index | J235: 108 | K235: 109.2 | L235: 111.4 | M235: 121.2 | N235: 129 | O235: 132.7 | P235: 136.2
E236: Consumer Price Index (with housing) for August | G236: Index | J236: 108.3 | K236: 108.8 | L236: 112.1 | M236: 121.8 | N236: 129.4 | O236: 133.2 | P236: 136.7
E237: Consumer Price Index (with housing) for September | G237: Index | J237: 108.4 | K237: 109.2 | L237: 112.4 | M237: 122.3 | N237: 130.1 | O237: 133.6 | P237: 137
E238: Consumer Price Index (with housing) for October | G238: Index | J238: 108.3 | K238: 109.2 | L238: 113.4 | M238: 124.3 | N238: 130.2 | O238: 134.2 | P238: 137.2
E239: Consumer Price Index (with housing) for November | G239: Index | J239: 108.5 | K239: 109.1 | L239: 114.1 | M239: 124.8 | N239: 130 | O239: 134.4 | P239: 137.4
E240: Consumer Price Index (with housing) for December | G240: Index | J240: 108.5 | K240: 109.4 | L240: 114.7 | M240: 125.3 | N240: 130.5 | O240: 134.7 | P240: 137.7
E241: Consumer Price Index (with housing) for January | G241: Index | J241: 108.3 | K241: 109.3 | L241: 114.6 | M241: 124.8 | N241: 130 | O241: 134.1 | P241: 136.8
E242: Consumer Price Index (with housing) for February | G242: Index | J242: 108.6 | K242: 109.4 | L242: 115.4 | M242: 126 | N242: 130.8 | O242: 134.7 | P242: 137.4
E243: Consumer Price Index (with housing) for March | G243: Index | J243: 108.6 | K243: 109.7 | L243: 116.5 | M243: 126.8 | N243: 131.6 | O243: 135.2 | P243: 137.9
J244: =AVERAGE(J232:J243) -> 108.2416667 | K244: =AVERAGE(K232:K243) -> 109.1083333 | L244: 113.1166667 | M244: 123.0416667 | N244: 129.8666667 | O244: 133.725
K245: =K244/J244 -> 1.008006775 | L245: =L244/K244 -> 1.036737188 | M245: 1.08774127 | N245: 1.055469015 | O245: 1.029709959
A246: WAGE GROWTH
D248: Wage Growth
E249: OBR Forecast wage growth for PR19 FD | G249: % | J249: 0.01 | K249: 0.011 | L249: 0.011 | M249: 0.012 | N249: 0.013 | O249: 0.014
E250: ASHE Gross Hourly Wage All - Nominal | G250: £ / hour | J250: =[4]Analysis!D15 -> 17.06 | K250: =[4]Analysis!E15 -> 17.54 | L250: =[4]Analysis!F15 -> 18.14 | M250: =[4]Analysis!G15 -> 19.6 | N250: =[4]Analysis!H15 -> 20.88990579 | O250: =[4]Analysis!I15 -> 21.67233451
D252: Percentage totex linked to wage growth
E253: Percentage totex linked to wage growth - WR | F253: 0.386 | G253: %
E255: Percentage totex linked to wage growth - WN | F255: 0.386 | G255: %
E257: Percentage totex linked to wage growth - WWN | F257: 0.386 | G257: %
E259: Percentage totex linked to wage growth - BIO | F259: 0.386 | G259: %
E261: Percentage totex linked to wage growth - TTT | F261: 0.386 | G261: %
A264: COST SHARING INPUTS
D266: Totex cost sharing rates
A267: C_WR_WN_OUTPERFORM_001 | E267: Outperformance Rate - WR | F267: 0.4386353668 | G267: %
A268: C_WR_WN_UNDERPERFORM_001 | E268: Underperformance Rate - WR | F268: 0.5613646332 | G268: %
A270: C_WR_WN_OUTPERFORM_001 | E270: Outperformance Rate - WN | F270: 0.4386353668 | G270: %
A271: C_WR_WN_UNDERPERFORM_001 | E271: Underperformance Rate - WN | F271: 0.5613646332 | G271: %
A273: C_WWN_OUTPERFORM_001 | E273: Outperformance Rate - WWN | F273: 0.4132858401 | G273: %
A274: C_WWN_UNDERPERFORM_001 | E274: Underperformance Rate - WWN | F274: 0.5867141599 | G274: %
E276: Outperformance Rate - TTT | F276: 0 | G276: %
E277: Underperformance Rate - TTT | F277: 0 | G277: %
D279: Abstraction and Business rate cost sharing rates
E280: Cost sharing rates Business rates - Overperformance | F280: 0.25 | G280: %
E281: Cost sharing rates Business rates - Underperformance | F281: 0.25 | G281: %
E282: Cost sharing rates Abstraction - Overperformance | F282: 0.25 | G282: %
E283: Cost sharing rates Abstraction - Underperformance | F283: 0.25 | G283: %
A285: FINANCING INPUTS
B287: Model Tolerance
... 11 more rows

Sheet Calc-->

Sheet Index
A1: =RIGHT(CELL("filename", $A$1), LEN(CELL("filename", $A$1)) - SEARCH("]", CELL("filename", $A$1))) -> 
E2: =Time!E$22 -> Model Period BEG | J2: =Time!J$22 -> 2019-04-01 | K2: =Time!K$22 -> 2020-04-01 | L2: =Time!L$22 -> 2021-04-01 | M2: =Time!M$22 -> 2022-04-01 | N2: =Time!N$22 -> 2023-04-01 | O2: =Time!O$22 -> 2024-04-01 | P2: =Time!P$22 -> 2025-04-01
E3: =Time!E$23 -> Model Period END | F3: =Check!F$8 -> 0 | G3: Error chks | J3: =Time!J$23 -> 2020-03-31 | K3: =Time!K$23 -> 2021-03-31 | L3: =Time!L$23 -> 2022-03-31 | M3: =Time!M$23 -> 2023-03-31 | N3: =Time!N$23 -> 2024-03-31 | O3: =Time!O$23 -> 2025-03-31 | P3: =Time!P$23 -> 2026-03-31
E4: =Time!E$59 -> Pre Forecast vs Forecast | J4: =Time!J$59 -> Pre Fcst | K4: =Time!K$59 -> Forecast | L4: =Time!L$59 -> Forecast | M4: =Time!M$59 -> Forecast | N4: =Time!N$59 -> Forecast | O4: =Time!O$59 -> Forecast | P4: =Time!P$59 -> Post-Fcst
E5: =Time!E$101 -> Financial Year Ending | J5: =Time!J$101 -> 2020 | K5: =Time!K$101 -> 2021 | L5: =Time!L$101 -> 2022 | M5: =Time!M$101 -> 2023 | N5: =Time!N$101 -> 2024 | O5: =Time!O$101 -> 2025 | P5: =Time!P$101 -> 2026
E6: =Time!E$11 -> Model column counter | F6: Constant | G6: Unit | H6: Total | J6: =Time!J$11 -> 1 | K6: =Time!K$11 -> 2 | L6: =Time!L$11 -> 3 | M6: =Time!M$11 -> 4 | N6: =Time!N$11 -> 5 | O6: =Time!O$11 -> 6 | P6: =Time!P$11 -> 7
A8: CPI(H) INDEXATION
C10: Average CPI(H) - base index
E11: =InpActive!E218 -> Consumer Price Index (with housing) for April | F11: =InpActive!F218 -> 103.2 | G11: =InpActive!G218 -> Index
E12: =InpActive!E219 -> Consumer Price Index (with housing) for May | F12: =InpActive!F219 -> 103.5 | G12: =InpActive!G219 -> Index
E13: =InpActive!E220 -> Consumer Price Index (with housing) for June | F13: =InpActive!F220 -> 103.5 | G13: =InpActive!G220 -> Index
E14: =InpActive!E221 -> Consumer Price Index (with housing) for July | F14: =InpActive!F221 -> 103.5 | G14: =InpActive!G221 -> Index
E15: =InpActive!E222 -> Consumer Price Index (with housing) for August | F15: =InpActive!F222 -> 104 | G15: =InpActive!G222 -> Index
E16: =InpActive!E223 -> Consumer Price Index (with housing) for September | F16: =InpActive!F223 -> 104.3 | G16: =InpActive!G223 -> Index
E17: =InpActive!E224 -> Consumer Price Index (with housing) for October | F17: =InpActive!F224 -> 104.4 | G17: =InpActive!G224 -> Index
E18: =InpActive!E225 -> Consumer Price Index (with housing) for November | F18: =InpActive!F225 -> 104.7 | G18: =InpActive!G225 -> Index
E19: =InpActive!E226 -> Consumer Price Index (with housing) for December | F19: =InpActive!F226 -> 105 | G19: =InpActive!G226 -> Index
E20: =InpActive!E227 -> Consumer Price Index (with housing) for January | F20: =InpActive!F227 -> 104.5 | G20: =InpActive!G227 -> Index
E21: =InpActive!E228 -> Consumer Price Index (with housing) for February | F21: =InpActive!F228 -> 104.9 | G21: =InpActive!G228 -> Index
E22: =InpActive!E229 -> Consumer Price Index (with housing) for March | F22: =InpActive!F229 -> 105.1 | G22: =InpActive!G229 -> Index
E23: CPIH 2017/18 FYA - Base Year | F23: =AVERAGE(F11:F22) -> 104.2166667 | G23: Index
C25: CPI(H): Financial year average - index
E26: =InpActive!E232 -> Consumer Price Index (with housing) for April | F26: =InpActive!F232 -> 0 | G26: =InpActive!G232 -> Index | H26: =InpActive!H232 -> 0 | I26: =InpActive!I232 -> 0 | J26: =InpActive!J232 -> 107.6 | K26: =InpActive!K232 -> 108.6 | L26: =InpActive!L232 -> 110.4 | M26: =InpActive!M232 -> 119 | N26: =InpActive!N232 -> 128.3 | O26: =InpActive!O232 -> 132.2 | P26: =InpActive!P232 -> 135.8
E27: =InpActive!E233 -> Consumer Price Index (with housing) for May | F27: =InpActive!F233 -> 0 | G27: =InpActive!G233 -> Index | H27: =InpActive!H233 -> 0 | I27: =InpActive!I233 -> 0 | J27: =InpActive!J233 -> 107.9 | K27: =InpActive!K233 -> 108.6 | L27: =InpActive!L233 -> 111 | M27: =InpActive!M233 -> 119.7 | N27: =InpActive!N233 -> 129.1 | O27: =InpActive!O233 -> 132.7 | P27: =InpActive!P233 -> 136.2
E28: =InpActive!E234 -> Consumer Price Index (with housing) for June | F28: =InpActive!F234 -> 0 | G28: =InpActive!G234 -> Index | H28: =InpActive!H234 -> 0 | I28: =InpActive!I234 -> 0 | J28: =InpActive!J234 -> 107.9 | K28: =InpActive!K234 -> 108.8 | L28: =InpActive!L234 -> 111.4 | M28: =InpActive!M234 -> 120.5 | N28: =InpActive!N234 -> 129.4 | O28: =InpActive!O234 -> 133 | P28: =InpActive!P234 -> 136.3
E29: =InpActive!E235 -> Consumer Price Index (with housing) for July | F29: =InpActive!F235 -> 0 | G29: =InpActive!G235 -> Index | H29: =InpActive!H235 -> 0 | I29: =InpActive!I235 -> 0 | J29: =InpActive!J235 -> 108 | K29: =InpActive!K235 -> 109.2 | L29: =InpActive!L235 -> 111.4 | M29: =InpActive!M235 -> 121.2 | N29: =InpActive!N235 -> 129 | O29: =InpActive!O235 -> 132.7 | P29: =InpActive!P235 -> 136.2
E30: =InpActive!E236 -> Consumer Price Index (with housing) for August | F30: =InpActive!F236 -> 0 | G30: =InpActive!G236 -> Index | H30: =InpActive!H236 -> 0 | I30: =InpActive!I236 -> 0 | J30: =InpActive!J236 -> 108.3 | K30: =InpActive!K236 -> 108.8 | L30: =InpActive!L236 -> 112.1 | M30: =InpActive!M236 -> 121.8 | N30: =InpActive!N236 -> 129.4 | O30: =InpActive!O236 -> 133.2 | P30: =InpActive!P236 -> 136.7
E31: =InpActive!E237 -> Consumer Price Index (with housing) for September | F31: =InpActive!F237 -> 0 | G31: =InpActive!G237 -> Index | H31: =InpActive!H237 -> 0 | I31: =InpActive!I237 -> 0 | J31: =InpActive!J237 -> 108.4 | K31: =InpActive!K237 -> 109.2 | L31: =InpActive!L237 -> 112.4 | M31: =InpActive!M237 -> 122.3 | N31: =InpActive!N237 -> 130.1 | O31: =InpActive!O237 -> 133.6 | P31: =InpActive!P237 -> 137
E32: =InpActive!E238 -> Consumer Price Index (with housing) for October | F32: =InpActive!F238 -> 0 | G32: =InpActive!G238 -> Index | H32: =InpActive!H238 -> 0 | I32: =InpActive!I238 -> 0 | J32: =InpActive!J238 -> 108.3 | K32: =InpActive!K238 -> 109.2 | L32: =InpActive!L238 -> 113.4 | M32: =InpActive!M238 -> 124.3 | N32: =InpActive!N238 -> 130.2 | O32: =InpActive!O238 -> 134.2 | P32: =InpActive!P238 -> 137.2
E33: =InpActive!E239 -> Consumer Price Index (with housing) for November | F33: =InpActive!F239 -> 0 | G33: =InpActive!G239 -> Index | H33: =InpActive!H239 -> 0 | I33: =InpActive!I239 -> 0 | J33: =InpActive!J239 -> 108.5 | K33: =InpActive!K239 -> 109.1 | L33: =InpActive!L239 -> 114.1 | M33: =InpActive!M239 -> 124.8 | N33: =InpActive!N239 -> 130 | O33: =InpActive!O239 -> 134.4 | P33: =InpActive!P239 -> 137.4
E34: =InpActive!E240 -> Consumer Price Index (with housing) for December | F34: =InpActive!F240 -> 0 | G34: =InpActive!G240 -> Index | H34: =InpActive!H240 -> 0 | I34: =InpActive!I240 -> 0 | J34: =InpActive!J240 -> 108.5 | K34: =InpActive!K240 -> 109.4 | L34: =InpActive!L240 -> 114.7 | M34: =InpActive!M240 -> 125.3 | N34: =InpActive!N240 -> 130.5 | O34: =InpActive!O240 -> 134.7 | P34: =InpActive!P240 -> 137.7
E35: =InpActive!E241 -> Consumer Price Index (with housing) for January | F35: =InpActive!F241 -> 0 | G35: =InpActive!G241 -> Index | H35: =InpActive!H241 -> 0 | I35: =InpActive!I241 -> 0 | J35: =InpActive!J241 -> 108.3 | K35: =InpActive!K241 -> 109.3 | L35: =InpActive!L241 -> 114.6 | M35: =InpActive!M241 -> 124.8 | N35: =InpActive!N241 -> 130 | O35: =InpActive!O241 -> 134.1 | P35: =InpActive!P241 -> 136.8
E36: =InpActive!E242 -> Consumer Price Index (with housing) for February | F36: =InpActive!F242 -> 0 | G36: =InpActive!G242 -> Index | H36: =InpActive!H242 -> 0 | I36: =InpActive!I242 -> 0 | J36: =InpActive!J242 -> 108.6 | K36: =InpActive!K242 -> 109.4 | L36: =InpActive!L242 -> 115.4 | M36: =InpActive!M242 -> 126 | N36: =InpActive!N242 -> 130.8 | O36: =InpActive!O242 -> 134.7 | P36: =InpActive!P242 -> 137.4
E37: =InpActive!E243 -> Consumer Price Index (with housing) for March | F37: =InpActive!F243 -> 0 | G37: =InpActive!G243 -> Index | H37: =InpActive!H243 -> 0 | I37: =InpActive!I243 -> 0 | J37: =InpActive!J243 -> 108.6 | K37: =InpActive!K243 -> 109.7 | L37: =InpActive!L243 -> 116.5 | M37: =InpActive!M243 -> 126.8 | N37: =InpActive!N243 -> 131.6 | O37: =InpActive!O243 -> 135.2 | P37: =InpActive!P243 -> 137.9
E38: CPIH 2017/18 FYA - Period | G38: Index | J38: =AVERAGE(J26:J37) -> 108.2416667 | K38: =AVERAGE(K26:K37) -> 109.1083333 | L38: 113.1166667 | M38: 123.0416667 | N38: 129.8666667 | O38: 133.725 | P38: 136.8833333
D40: CPI(H): Fin year average - inflate from base year average
E41: =E$23 -> CPIH 2017/18 FYA - Base Year | F41: =F$23 -> 104.2166667 | G41: Index
E42: =E$38 -> CPIH 2017/18 FYA - Period | F42: =F$38 -> 0 | G42: Index | H42: 0 | I42: 0 | J42: 108.2416667 | K42: 109.1083333 | L42: 113.1166667 | M42: 123.0416667 | N42: 129.8666667 | O42: 133.725 | P42: 136.8833333
E43: CPI(H): Fin year average - inflate from base year 2017-18 average - CALC | G43: % | J43: =IF($F41 = 0, 0, J42 / $F41) -> 1.038621462 | K43: =IF($F41 = 0, 0, K42 / $F41) -> 1.04693747 | L43: =IF($F41 = 0, 0, L42 / $F41) -> 1.085399008 | M43: 1.180633296 | N43: 1.246121862 | O43: 1.283144091 | P43: 1.313449544
A45: END OF SHEET

Sheet Time
A1: =RIGHT(CELL("filename", $A$1), LEN(CELL("filename", $A$1)) - SEARCH("]", CELL("filename", $A$1))) -> 
E2: =Time!E$22 -> Model Period BEG | J2: =Time!J$22 -> 2019-04-01 | K2: =Time!K$22 -> 2020-04-01 | L2: =Time!L$22 -> 2021-04-01 | M2: =Time!M$22 -> 2022-04-01 | N2: =Time!N$22 -> 2023-04-01 | O2: =Time!O$22 -> 2024-04-01 | P2: =Time!P$22 -> 2025-04-01
E3: =Time!E$23 -> Model Period END | F3: =Check!F$8 -> 0 | G3: Error chks | J3: =Time!J$23 -> 2020-03-31 | K3: =Time!K$23 -> 2021-03-31 | L3: =Time!L$23 -> 2022-03-31 | M3: =Time!M$23 -> 2023-03-31 | N3: =Time!N$23 -> 2024-03-31 | O3: =Time!O$23 -> 2025-03-31 | P3: =Time!P$23 -> 2026-03-31
E4: =Time!E$59 -> Pre Forecast vs Forecast | J4: =Time!J$59 -> Pre Fcst | K4: =Time!K$59 -> Forecast | L4: =Time!L$59 -> Forecast | M4: =Time!M$59 -> Forecast | N4: =Time!N$59 -> Forecast | O4: =Time!O$59 -> Forecast | P4: =Time!P$59 -> Post-Fcst
E5: =Time!E$101 -> Financial Year Ending | J5: =Time!J$101 -> 2020 | K5: =Time!K$101 -> 2021 | L5: =Time!L$101 -> 2022 | M5: =Time!M$101 -> 2023 | N5: =Time!N$101 -> 2024 | O5: =Time!O$101 -> 2025 | P5: =Time!P$101 -> 2026
E6: =Time!E$11 -> Model column counter | F6: Constant | G6: Unit | H6: Total | J6: =Time!J$11 -> 1 | K6: =Time!K$11 -> 2 | L6: =Time!L$11 -> 3 | M6: =Time!M$11 -> 4 | N6: =Time!N$11 -> 5 | O6: =Time!O$11 -> 6 | P6: =Time!P$11 -> 7
A8: MODEL PERIOD
B10: Model Column Counter
E11: Model column counter | G11: counter | J11: =I11 + 1 -> 1 | K11: =J11 + 1 -> 2 | L11: =K11 + 1 -> 3 | M11: 4 | N11: 5 | O11: 6 | P11: =O11 + 1 -> 7
E12: Model Column Total | F12: =MAX(J11:P11) -> 7 | G12: column
E14: =E$11 -> Model column counter | F14: 0 | G14: counter | H14: 0 | I14: 0 | J14: 1 | K14: 2 | L14: 3 | M14: 4 | N14: 5 | O14: 6 | P14: 7
E15: First model column flag | G15: flag | H15: =SUM(J15:P15) -> 1 | J15: =IF( J14 = 1, 1, 0) -> 1 | K15: =IF( K14 = 1, 1, 0) -> 0 | L15: 0 | M15: 0 | N15: 0 | O15: 0 | P15: 0
E17: =InpActive!E$10 -> First date of time ruler | F17: =InpActive!F$10 -> 2019-04-01 | G17: =InpActive!G$10 -> date
E18: First model period BEG | F18: =DATE(YEAR(F17), MONTH(F17), 1) -> 2019-04-01 | G18: month
E20: =E$18 -> First model period BEG | F20: =F$18 -> 2019-04-01 | G20: =G$18 -> month
E21: =E$15 -> First model column flag | F21: 0 | G21: flag | H21: 1 | I21: 0 | J21: 1 | K21: 0 | L21: 0 | M21: 0 | N21: 0 | O21: 0 | P21: 0
E22: Model Period BEG | G22: date | J22: =IF( J21 = 1, $F20, I23 + 1) -> 2019-04-01 | K22: =IF( K21 = 1, $F20, J23 + 1) -> 2020-04-01 | L22: 2021-04-01 | M22: 2022-04-01 | N22: 2023-04-01 | O22: 2024-04-01 | P22: =IF( P21 = 1, $F20, O23 + 1) -> 2025-04-01
E23: Model Period END | G23: date | J23: =DATE(YEAR(J22), MONTH(J22) + 12, DAY(1) - 1) -> 2020-03-31 | K23: 2021-03-31 | L23: 2022-03-31 | M23: 2023-03-31 | N23: 2024-03-31 | O23: 2025-03-31 | P23: 2026-03-31
E25: =E$23 -> Model Period END | F25: 00:00:00 | G25: date | H25: 00:00:00 | I25: 00:00:00 | J25: 2020-03-31 | K25: 2021-03-31 | L25: 2022-03-31 | M25: 2023-03-31 | N25: 2024-03-31 | O25: 2025-03-31 | P25: 2026-03-31
D26: less | E26: =E$22 -> Model Period BEG | F26: 00:00:00 | G26: date | H26: 00:00:00 | I26: 00:00:00 | J26: 2019-04-01 | K26: 2020-04-01 | L26: 2021-04-01 | M26: 2022-04-01 | N26: 2023-04-01 | O26: 2024-04-01 | P26: 2025-04-01
E27: Days in Model Period | G27: days | H27: =SUM(J27:P27) -> 2557 | J27: =J25 - J26 + 1 -> 366 | K27: 365 | L27: 365 | M27: 365 | N27: 366 | O27: 365 | P27: 365
A30: PRE FORECAST PERIOD
E32: =InpActive!E$12 -> Last Pre Forecast Date | F32: =InpActive!F$12 -> 2020-03-31 | G32: =InpActive!G$12 -> date
E33: =E$23 -> Model Period END | F33: 00:00:00 | G33: date | H33: 00:00:00 | I33: 00:00:00 | J33: 2020-03-31 | K33: 2021-03-31 | L33: 2022-03-31 | M33: 2023-03-31 | N33: 2024-03-31 | O33: 2025-03-31 | P33: 2026-03-31
E34: Last Pre Forecast Flag | G34: flag | H34: =SUM(J34:P34) -> 1 | J34: =IF(J33 = $F32, 1, 0) -> 1 | K34: 0 | L34: 0 | M34: 0 | N34: 0 | O34: 0 | P34: 0
E35: Pre Forecast Period Flag | G35: flag | H35: =SUM(J35:P35) -> 1 | J35: =IF($F32 >= J33, 1, 0) -> 1 | K35: =IF($F32 >= K33, 1, 0) -> 0 | L35: 0 | M35: 0 | N35: 0 | O35: 0 | P35: 0
E36: Pre Forecast Period Total | F36: =SUM(J35:P35) -> 1 | G36: columns
E38: =InpActive!E$14 -> Acquisition date (midnight) | F38: =InpActive!F$14 -> 2020-03-31 | G38: =InpActive!G$14 -> date
E39: =E$23 -> Model Period END | F39: 00:00:00 | G39: date | H39: 00:00:00 | I39: 00:00:00 | J39: 2020-03-31 | K39: 2021-03-31 | L39: 2022-03-31 | M39: 2023-03-31 | N39: 2024-03-31 | O39: 2025-03-31 | P39: 2026-03-31
E40: Acquisition / initial balance date flag | G40: flag | H40: =SUM(J40:P40) -> 1 | J40: =IF(J39 = $F38, 1, 0) -> 1 | K40: 0 | L40: 0 | M40: 0 | N40: 0 | O40: 0 | P40: 0
A43: FORECAST PERIOD
E45: =E$34 -> Last Pre Forecast Flag | F45: 0 | G45: flag | H45: 1 | I45: 0 | J45: 1 | K45: 0 | L45: 0 | M45: 0 | N45: 0 | O45: 0 | P45: 0
E46: 1st Forecast Period Flag | G46: flag | H46: =SUM(J46:P46) -> 1 | J46: =I45 -> 0 | K46: =J45 -> 1 | L46: 0 | M46: 0 | N46: 0 | O46: 0 | P46: =O45 -> 0
E48: =InpActive!E$16 -> Last forecast date | F48: =InpActive!F$16 -> 2025-03-31 | G48: =InpActive!G$16 -> date
E49: =E$23 -> Model Period END | F49: 00:00:00 | G49: date | H49: 00:00:00 | I49: 00:00:00 | J49: 2020-03-31 | K49: 2021-03-31 | L49: 2022-03-31 | M49: 2023-03-31 | N49: 2024-03-31 | O49: 2025-03-31 | P49: 2026-03-31
E50: Last Forecast Period Flag | G50: flag | H50: =SUM(J50:P50) -> 1 | J50: =IF(AND($F48 > I49, $F48 <= J49), 1, 0) -> 0 | K50: =IF(AND($F48 > J49, $F48 <= K49), 1, 0) -> 0 | L50: 0 | M50: 0 | N50: 0 | O50: 1 | P50: =IF(AND($F48 > O49, $F48 <= P49), 1, 0) -> 0
E52: =E$46 -> 1st Forecast Period Flag | F52: 0 | G52: flag | H52: 1 | I52: 0 | J52: 0 | K52: 1 | L52: 0 | M52: 0 | N52: 0 | O52: 0 | P52: 0
E53: =E$50 -> Last Forecast Period Flag | F53: 0 | G53: flag | H53: 1 | I53: 0 | J53: 0 | K53: 0 | L53: 0 | M53: 0 | N53: 0 | O53: 1 | P53: 0
E54: Forecast Period Flag | G54: flag | H54: =SUM(J54:P54) -> 5 | J54: =J52 - I53 + I54 -> 0 | K54: =K52 - J53 + J54 -> 1 | L54: 1 | M54: 1 | N54: 1 | O54: 1 | P54: =P52 - O53 + O54 -> 0
E55: Forecast Period Total | F55: =SUM(J54:P54) -> 5 | G55: columns
E57: =E$35 -> Pre Forecast Period Flag | F57: 0 | G57: flag | H57: 1 | I57: 0 | J57: 1 | K57: 0 | L57: 0 | M57: 0 | N57: 0 | O57: 0 | P57: 0
E58: =E$54 -> Forecast Period Flag | F58: 0 | G58: flag | H58: 5 | I58: 0 | J58: 0 | K58: 1 | L58: 1 | M58: 1 | N58: 1 | O58: 1 | P58: 0
E59: Pre Forecast vs Forecast | G59: flag | J59: =IF(J57 = 1, "Pre Fcst", IF(J58 = 1, "Forecast", "Post-Fcst")) -> Pre Fcst | K59: Forecast | L59: Forecast | M59: Forecast | N59: Forecast | O59: Forecast | P59: Post-Fcst
A62: POST FORECAST PERIOD
E64: =E$50 -> Last Forecast Period Flag | F64: 0 | G64: flag | H64: 1 | I64: 0 | J64: 0 | K64: 0 | L64: 0 | M64: 0 | N64: 0 | O64: 1 | P64: 0
E65: 1st Post Last Forecast Period Flag | G65: flag | H65: =SUM(J65:P65) -> 1 | J65: =I64 -> 0 | K65: =J64 -> 0 | L65: 0 | M65: 0 | N65: 0 | O65: 0 | P65: =O64 -> 1
E67: =E$65 -> 1st Post Last Forecast Period Flag | F67: 0 | G67: flag | H67: 1 | I67: 0 | J67: 0 | K67: 0 | L67: 0 | M67: 0 | N67: 0 | O67: 0 | P67: 1
E68: Post Forecast Period Flag | G68: flag | H68: =SUM(J68:P68) -> 1 | J68: =I68 + J67 -> 0 | K68: =J68 + K67 -> 0 | L68: 0 | M68: 0 | N68: 0 | O68: 0 | P68: =O68 + P67 -> 1
E69: Post Forecast Period Total | F69: =SUM(J68:P68) -> 1 | G69: columns
A72: MODELLING PERIOD CHECK
E74: =E$12 -> Model Column Total | F74: =F$12 -> 7 | G74: =G$12 -> column
D75: less | E75: =E$36 -> Pre Forecast Period Total | F75: =F$36 -> 1 | G75: =G$36 -> columns
D76: less | E76: =E$55 -> Forecast Period Total | F76: =F$55 -> 5 | G76: =G$55 -> columns
D77: less | E77: =E$69 -> Post Forecast Period Total | F77: =F$69 -> 1 | G77: =G$69 -> columns
E78: Modelling Period Check | F78: =IF(F74 - SUM(F75:F77) <> 0, 1, 0) -> 0 | G78: check
A81: PARTIAL PERIOD FLAG (PPF)
C82: This is an example of a part period flag. It is not currently used.
B83: Operation Partial Period Flag (PPF)
E84: =E$18 -> First model period BEG | F84: =F$18 -> 2019-04-01 | G84: =G$18 -> month
E85: =InpActive!E$20 -> Operation Finish Date (midnight) | F85: =InpActive!F$20 -> 2025-03-31 | G85: =InpActive!G$20 -> date
E86: =E$22 -> Model Period BEG | F86: 00:00:00 | G86: date | H86: 00:00:00 | I86: 00:00:00 | J86: 2019-04-01 | K86: 2020-04-01 | L86: 2021-04-01 | M86: 2022-04-01 | N86: 2023-04-01 | O86: 2024-04-01 | P86: 2025-04-01
E87: =E$23 -> Model Period END | F87: 00:00:00 | G87: date | H87: 00:00:00 | I87: 00:00:00 | J87: 2020-03-31 | K87: 2021-03-31 | L87: 2022-03-31 | M87: 2023-03-31 | N87: 2024-03-31 | O87: 2025-03-31 | P87: 2026-03-31
E88: Days in Operation Period | G88: days | H88: =SUM(J88:P88) -> 2192 | J88: =MAX(0, (MIN($F85, J87) - MAX($F84, J86) + 1)) -> 366 | K88: 365 | L88: 365 | M88: 365 | N88: 366 | O88: 365 | P88: 0
E90: =E$88 -> Days in Operation Period | F90: 0 | G90: days | H90: 2192 | I90: 0 | J90: 366 | K90: 365 | L90: 365 | M90: 365 | N90: 366 | O90: 365 | P90: 0
E91: =E$27 -> Days in Model Period | F91: 0 | G91: days | H91: 2557 | I91: 0 | J91: 366 | K91: 365 | L91: 365 | M91: 365 | N91: 366 | O91: 365 | P91: 365
E92: Operation Period PPF | G92: factor | H92: =SUM(J92:P92) -> 6 | J92: =J90 / J91 -> 1 | K92: 1 | L92: 1 | M92: 1 | N92: 1 | O92: 1 | P92: 0
A95: FINANCIAL YEAR
E97: =InpActive!E21 -> First Modelling Column Financial Year Number | F97: =InpActive!F21 -> 2020 | G97: =InpActive!G21 -> year
E98: =InpActive!E22 -> Financial Year End Month Number | F98: =InpActive!F22 -> 3 | G98: =InpActive!G22 -> month #
E99: =E$23 -> Model Period END | F99: 00:00:00 | G99: date | H99: 00:00:00 | I99: 00:00:00 | J99: 2020-03-31 | K99: 2021-03-31 | L99: 2022-03-31 | M99: 2023-03-31 | N99: 2024-03-31 | O99: 2025-03-31 | P99: 2026-03-31
E100: =E$15 -> First model column flag | F100: 0 | G100: flag | H100: 1 | I100: 0 | J100: 1 | K100: 0 | L100: 0 | M100: 0 | N100: 0 | O100: 0 | P100: 0
E101: Financial Year Ending | G101: year # | J101: =IF(J100 = 1, $F97, IF(J99 > (DATE(I101, $F98 + 1, 1) - 1), I101 + 1, I101)) -> 2020 | K101: =IF(K100 = 1, $F97, IF(K99 > (DATE(J101, $F98 + 1, 1) - 1), J101 + 1, J101)) -> 2021 | L101: 2022 | M101: 2023 | N101: 2024 | O101: 2025 | P101: =IF(P100 = 1, $F97, IF(P99 > (DATE(O101, $F98 + 1, 1) - 1), O101 + 1, O101)) -> 2026
A104: END OF SHEET

Sheet Cost sharing calculations
A1: =RIGHT(CELL("filename", $A$1), LEN(CELL("filename", $A$1)) - SEARCH("]", CELL("filename", $A$1))) -> 
E2: =Time!E$22 -> Model Period BEG | J2: =Time!J$22 -> 2019-04-01 | K2: =Time!K$22 -> 2020-04-01 | L2: =Time!L$22 -> 2021-04-01 | M2: =Time!M$22 -> 2022-04-01 | N2: =Time!N$22 -> 2023-04-01 | O2: =Time!O$22 -> 2024-04-01 | P2: =Time!P$22 -> 2025-04-01
E3: =Time!E$23 -> Model Period END | F3: =Check!F$8 -> 0 | G3: Error chks | J3: =Time!J$23 -> 2020-03-31 | K3: =Time!K$23 -> 2021-03-31 | L3: =Time!L$23 -> 2022-03-31 | M3: =Time!M$23 -> 2023-03-31 | N3: =Time!N$23 -> 2024-03-31 | O3: =Time!O$23 -> 2025-03-31 | P3: =Time!P$23 -> 2026-03-31
E4: =Time!E$59 -> Pre Forecast vs Forecast | J4: =Time!J$59 -> Pre Fcst | K4: =Time!K$59 -> Forecast | L4: =Time!L$59 -> Forecast | M4: =Time!M$59 -> Forecast | N4: =Time!N$59 -> Forecast | O4: =Time!O$59 -> Forecast | P4: =Time!P$59 -> Post-Fcst
E5: =Time!E$101 -> Financial Year Ending | J5: =Time!J$101 -> 2020 | K5: =Time!K$101 -> 2021 | L5: =Time!L$101 -> 2022 | M5: =Time!M$101 -> 2023 | N5: =Time!N$101 -> 2024 | O5: =Time!O$101 -> 2025 | P5: =Time!P$101 -> 2026
E6: =Time!E$11 -> Model column counter | F6: Constant | G6: Unit | H6: Total | J6: =Time!J$11 -> 1 | K6: =Time!K$11 -> 2 | L6: =Time!L$11 -> 3 | M6: =Time!M$11 -> 4 | N6: =Time!N$11 -> 5 | O6: =Time!O$11 -> 6 | P6: =Time!P$11 -> 7
A8: WAGE GROWTH ADJUSTER
C10: Cumulative actual real wage growth
E11: =InpActive!E250 -> ASHE Gross Hourly Wage All - Nominal | F11: =InpActive!F250 -> 0 | G11: =InpActive!G250 -> £ / hour | H11: =InpActive!H250 -> 0 | I11: =InpActive!I250 -> 0 | J11: =InpActive!J250 -> 17.06 | K11: =InpActive!K250 -> 17.54 | L11: =InpActive!L250 -> 18.14 | M11: =InpActive!M250 -> 19.6 | N11: =InpActive!N250 -> 20.88990579 | O11: =InpActive!O250 -> 21.67233451 | P11: =InpActive!P250 -> 0
E12: =Index!E$43 -> CPI(H): Fin year average - inflate from base year 2017-18 average - CALC | F12: =Index!F$43 -> 0 | G12: =Index!G$43 -> % | H12: =Index!H$43 -> 0 | I12: =Index!I$43 -> 0 | J12: =Index!J$43 -> 1.038621462 | K12: =Index!K$43 -> 1.04693747 | L12: =Index!L$43 -> 1.085399008 | M12: =Index!M$43 -> 1.180633296 | N12: =Index!N$43 -> 1.246121862 | O12: =Index!O$43 -> 1.283144091 | P12: =Index!P$43 -> 1.313449544
E13: ASHE GROSS HOURLY WAGE ALL - Real | G13: £ / hour | J13: =IF( J11 = 0, 0, J11 / J12) -> 16.4256186 | K13: 16.75362713 | L13: 16.7127479 | M13: 16.60125974 | N13: 16.76393492 | O13: 16.89002402 | P13: 0
E15: =E$13 -> ASHE GROSS HOURLY WAGE ALL - Real | F15: 0 | G15: £ / hour | H15: 0 | I15: 0 | J15: 16.4256186 | K15: 16.75362713 | L15: 16.7127479 | M15: 16.60125974 | N15: 16.76393492 | O15: 16.89002402 | P15: 0
E16: ASHE GROSS HOURLY WAGE ALL - Cumulative growth - Real | G16: % | J16: =IF( J15 = 0, 0, J15 / $J$15) -> 1 | K16: =IF( K15 = 0, 0, K15 / $J$15) -> 1.019969326 | L16: 1.017480578 | M16: 1.010693122 | N16: 1.020596869 | O16: 1.028273238 | P16: 0
C18: Real adjustment factor for wage growth
E19: =InpActive!E249 -> OBR Forecast wage growth for PR19 FD | F19: =InpActive!F249 -> 0 | G19: =InpActive!G249 -> % | H19: =InpActive!H249 -> 0 | I19: =InpActive!I249 -> 0 | J19: =InpActive!J249 -> 0.01 | K19: =InpActive!K249 -> 0.011 | L19: =InpActive!L249 -> 0.011 | M19: =InpActive!M249 -> 0.012 | N19: =InpActive!N249 -> 0.013 | O19: =InpActive!O249 -> 0.014 | P19: =InpActive!P249 -> 0
E20: =Time!E45 -> Last Pre Forecast Flag | F20: =Time!F45 -> 0 | G20: =Time!G45 -> flag | H20: =Time!H45 -> 1 | I20: =Time!I45 -> 0 | J20: =Time!J45 -> 1 | K20: =Time!K45 -> 0 | L20: =Time!L45 -> 0 | M20: =Time!M45 -> 0 | N20: =Time!N45 -> 0 | O20: =Time!O45 -> 0 | P20: =Time!P45 -> 0
E21: Forecast wage growth for adjuster | G21: % | J21: =IF(J20 = 1, 1, I21 * (J19 + 1)) -> 1 | K21: =IF(K20 = 1, 1, J21 * (K19 + 1)) -> 1.011 | L21: 1.022121 | M21: 1.034386452 | N21: 1.047833476 | O21: 1.062503145 | P21: 1.062503145
E23: =E$16 -> ASHE GROSS HOURLY WAGE ALL - Cumulative growth - Real | F23: 0 | G23: % | H23: 0 | I23: 0 | J23: 1 | K23: 1.019969326 | L23: 1.017480578 | M23: 1.010693122 | N23: 1.020596869 | O23: 1.028273238 | P23: 0
E24: =E$21 -> Forecast wage growth for adjuster | F24: 0 | G24: % | H24: 0 | I24: 0 | J24: 1 | K24: 1.011 | L24: 1.022121 | M24: 1.034386452 | N24: 1.047833476 | O24: 1.062503145 | P24: 1.062503145
E25: =Time!E$54 -> Forecast Period Flag | F25: =Time!F$54 -> 0 | G25: =Time!G$54 -> flag | H25: =Time!H$54 -> 5 | I25: =Time!I$54 -> 0 | J25: =Time!J$54 -> 0 | K25: =Time!K$54 -> 1 | L25: =Time!L$54 -> 1 | M25: =Time!M$54 -> 1 | N25: =Time!N$54 -> 1 | O25: =Time!O$54 -> 1 | P25: =Time!P$54 -> 0
E26: Real adjustment factor for wages | G26: % | J26: =IF( J25 = 1, J23/J24, 0) -> 0 | K26: 1.008871737 | L26: 0.9954600068 | M26: 0.9770943148 | N26: 0.9740067415 | O26: 0.9677837124 | P26: 0
A28: WATER SERVICES COMBINED
C30: Active Sharing Rates -WR/WN
E32: =E$142 -> Total variance to forecast net totex for cost sharing - WR | F32: =F$142 -> -11.68458783 | G32: =G$142 -> £m
E33: =E$308 -> Total variance to forecast net totex for cost sharing - WN | F33: =F$308 -> 115.9621461 | G33: =G$308 -> £m
E34: Total variance to forecast net totex for cost sharing - WATER | F34: =SUM(F32:F33) -> 104.2775582 | G34: £m
E36: =E$34 -> Total variance to forecast net totex for cost sharing - WATER | F36: =F$34 -> 104.2775582 | G36: =G$34 -> £m
E37: =InpActive!E$267 -> Outperformance Rate - WR | F37: =InpActive!F$267 -> 0.4386353668 | G37: =InpActive!G$267 -> %
E38: =InpActive!E$268 -> Underperformance Rate - WR | F38: =InpActive!F$268 -> 0.5613646332 | G38: =InpActive!G$268 -> %
E39: ="Active Sharing Rate - "& INDEX(E37:E38,MATCH(F39,F37:F38,0)) -> Active Sharing Rate - Underperformance Rate - WR | F39: =IF(F36<0,F37,F38) -> 0.5613646332 | G39: %
E42: =E$34 -> Total variance to forecast net totex for cost sharing - WATER | F42: =F$34 -> 104.2775582 | G42: =G$34 -> £m
E43: =InpActive!E$270 -> Outperformance Rate - WN | F43: =InpActive!F$270 -> 0.4386353668 | G43: =InpActive!G$270 -> %
E44: =InpActive!E$271 -> Underperformance Rate - WN | F44: =InpActive!F$271 -> 0.5613646332 | G44: =InpActive!G$271 -> %
E45: ="Active Sharing Rate - "& INDEX(E43:E44,MATCH(F45,F43:F44,0)) -> Active Sharing Rate - Underperformance Rate - WN | F45: =IF(F42<0,F43,F44) -> 0.5613646332 | G45: %
A47: WATER RESOURCES
C49: Adjustment For Wage Growth
D51: Totex for wage adjustment
E52: =InpActive!E$29 -> Base Costs - WR - Real | F52: =InpActive!F$29 -> 60.8 | G52: =InpActive!G$29 -> £m
E53: =InpActive!E$30 -> Metering (excluding new connections) for meters requested by optants, customers and businesses - WR - Real | F53: =InpActive!F$30 -> 0 | G53: =InpActive!G$30 -> £m
E54: Totex available for wage indexation adjustment - WR - Real | F54: =SUM(F52:F53) -> 60.8 | G54: £m
D56: Profile for totex for wage adjustment
E57: =InpActive!E$32 -> Opex split profile - Base costs - WR | F57: =InpActive!F$32 -> 0 | G57: =InpActive!G$32 -> % | H57: =InpActive!H$32 -> 0 | I57: =InpActive!I$32 -> 0 | J57: =InpActive!J$32 -> 0 | K57: =InpActive!K$32 -> 0.1443457837 | L57: =InpActive!L$32 -> 0.1498328443 | M57: =InpActive!M$32 -> 0.1663601238 | N57: =InpActive!N$32 -> 0.1499139361 | O57: =InpActive!O$32 -> 0.1511681452 | P57: =InpActive!P$32 -> 0
E58: =InpActive!E$33 -> Capex Split Profile - Base costs - WR | F58: =InpActive!F$33 -> 0 | G58: =InpActive!G$33 -> % | H58: =InpActive!H$33 -> 0 | I58: =InpActive!I$33 -> 0 | J58: =InpActive!J$33 -> 0 | K58: =InpActive!K$33 -> 0.04627501657 | L58: =InpActive!L$33 -> 0.06884442968 | M58: =InpActive!M$33 -> 0.05514971161 | N58: =InpActive!N$33 -> 0.03416186722 | O58: =InpActive!O$33 -> 0.03394814172 | P58: =InpActive!P$33 -> 0
E59: Totex profile - Base costs - WR | G59: % | H59: =SUM(J59:P59) -> 1 | J59: =SUM(J57:J58) -> 0 | K59: 0.1906208003 | L59: 0.218677274 | M59: 0.2215098354 | N59: 0.1840758033 | O59: 0.1851162869 | P59: 0
E60: Totex profile - Base costs - 5 year percentage - WR | F60: =H$59 -> 1 | G60: %
E62: =E$60 -> Totex profile - Base costs - 5 year percentage - WR | F62: =F$60 -> 1 | G62: =G$60 -> %
E63: WR Totex profile 100% check | F63: =IF(OR($F$62 = 1, F62 = 0), 0, 1) -> 0 | G63: Check
E65: =E$54 -> Totex available for wage indexation adjustment - WR - Real | F65: =F$54 -> 60.8 | G65: =G$54 -> £m
E66: =Time!E$54 -> Forecast Period Flag | F66: =Time!F$54 -> 0 | G66: =Time!G$54 -> flag | H66: =Time!H$54 -> 5 | I66: =Time!I$54 -> 0 | J66: =Time!J$54 -> 0 | K66: =Time!K$54 -> 1 | L66: =Time!L$54 -> 1 | M66: =Time!M$54 -> 1 | N66: =Time!N$54 -> 1 | O66: =Time!O$54 -> 1 | P66: =Time!P$54 -> 0
E67: =E$59 -> Totex profile - Base costs - WR | F67: 0 | G67: % | H67: 1 | I67: 0 | J67: 0 | K67: 0.1906208003 | L67: 0.218677274 | M67: 0.2215098354 | N67: 0.1840758033 | O67: 0.1851162869 | P67: 0
E68: Profiled Totex available for wage indexation adjustment - WR - Real | G68: £m | H68: =SUM(J68:P68) -> 60.8 | J68: =IF(J66 = 1, J67 * $F65, 0) -> 0 | K68: 11.58974466 | L68: 13.29557826 | M68: 13.46779799 | N68: 11.19180884 | O68: 11.25507025 | P68: 0
D70: Totex applicable for wage adjustment by year
E71: =InpActive!E$253 -> Percentage totex linked to wage growth - WR | F71: =InpActive!F$253 -> 0.386 | G71: =InpActive!G$253 -> %
E72: =E68 -> Profiled Totex available for wage indexation adjustment - WR - Real | F72: 0 | G72: £m | H72: 60.8 | I72: 0 | J72: 0 | K72: 11.58974466 | L72: 13.29557826 | M72: 13.46779799 | N72: 11.19180884 | O72: 11.25507025 | P72: 0
E73: Profiled Net totex available for wage adj - WR - Real | G73: £m | H73: =SUM(J73:P73) -> 23.4688 | J73: =J72 * $F71 -> 0 | K73: 4.473641437 | L73: 5.132093208 | M73: 5.198570026 | N73: 4.320038214 | O73: 4.344457115 | P73: 0
D75: Adjustment factor for wage linked totex
E76: =Time!E$54 -> Forecast Period Flag | F76: =Time!F$54 -> 0 | G76: =Time!G$54 -> flag | H76: =Time!H$54 -> 5 | I76: =Time!I$54 -> 0 | J76: =Time!J$54 -> 0 | K76: =Time!K$54 -> 1 | L76: =Time!L$54 -> 1 | M76: =Time!M$54 -> 1 | N76: =Time!N$54 -> 1 | O76: =Time!O$54 -> 1 | P76: =Time!P$54 -> 0
E77: =E$73 -> Profiled Net totex available for wage adj - WR - Real | F77: 0 | G77: £m | H77: 23.4688 | I77: 0 | J77: 0 | K77: 4.473641437 | L77: 5.132093208 | M77: 5.198570026 | N77: 4.320038214 | O77: 4.344457115 | P77: 0
E78: =E$26 -> Real adjustment factor for wages | F78: 0 | G78: % | H78: 0 | I78: 0 | J78: 0 | K78: 1.008871737 | L78: 0.9954600068 | M78: 0.9770943148 | N78: 0.9740067415 | O78: 0.9677837124 | P78: 0
E79: Profiled adjustment wage related totex - WR - Real | G79: £m | H79: =SUM(J79:P79) -> 23.11385834 | J79: =IF(J76 = 1, J77 * J78, 0) -> 0 | K79: 4.513330406 | L79: 5.10879354 | M79: 5.079493217 | N79: 4.207746344 | O79: 4.204494835 | P79: 0
D81: Variance to forecast wage linked totex
E82: =E$79 -> Profiled adjustment wage related totex - WR - Real | F82: 0 | G82: £m | H82: 23.11385834 | I82: 0 | J82: 0 | K82: 4.513330406 | L82: 5.10879354 | M82: 5.079493217 | N82: 4.207746344 | O82: 4.204494835 | P82: 0
E83: =E$73 -> Profiled Net totex available for wage adj - WR - Real | F83: 0 | G83: £m | H83: 23.4688 | I83: 0 | J83: 0 | K83: 4.473641437 | L83: 5.132093208 | M83: 5.198570026 | N83: 4.320038214 | O83: 4.344457115 | P83: 0
E84: Variance to forecast totex for wage adjustment - WR | G84: £m | H84: =SUM(J84:P84) -> -0.3549416586 | J84: =J82 - J83 -> 0 | K84: =K82 - K83 -> 0.03968896873 | L84: -0.02329966848 | M84: -0.1190768087 | N84: -0.11229187 | O84: -0.13996228 | P84: 0
D86: Wage totex overfunded/unfunded at PR19
E87: =E$84 -> Variance to forecast totex for wage adjustment - WR | F87: =F$84 -> 0 | G87: £m | H87: -0.3549416586 | I87: 0 | J87: 0 | K87: =K$84 -> 0.03968896873 | L87: -0.02329966848 | M87: -0.1190768087 | N87: -0.11229187 | O87: -0.13996228 | P87: 0
E88: =E137 -> Time value of money factor - WR | F88: 0 | G88: Factor | H88: 0 | I88: 0 | J88: 1 | K88: 1.122016155 | L88: 1.090182817 | M88: 1.05925264 | N88: 1.0292 | O88: 1 | P88: 1
E89: Variance to forecast totex for wage adjustment - NPV adjusted - WR | G89: £m | H89: =SUM(J89:P89) -> -0.3625347308 | J89: =J87*J88 -> 0 | K89: =K87*K88 -> 0.0445316641 | L89: =L87*L88 -> -0.02540089822 | M89: -0.126132424 | N89: -0.1155707927 | O89: -0.13996228 | P89: 0
E90: (Under)/Overfunded wage related totex at PR19 - WR | F90: =H89 * -1 -> 0.3625347308 | G90: £m
C92: Cost sharing on net totex available for reconciliation
E94: =InpActive!E$42 -> Net totex for cost sharing reconciliation - WR - Nominal | F94: =InpActive!F$42 -> 0 | G94: =InpActive!G$42 -> £m | H94: =InpActive!H$42 -> 0 | I94: =InpActive!I$42 -> 0 | J94: =InpActive!J$42 -> 0 | K94: =InpActive!K$42 -> 9.284 | L94: =InpActive!L$42 -> 10.571 | M94: =InpActive!M$42 -> 13.416 | N94: =InpActive!N$42 -> 14.29359042 | O94: =InpActive!O$42 -> 18.7067398 | P94: =InpActive!P$42 -> 0
E95: =Index!E$43 -> CPI(H): Fin year average - inflate from base year 2017-18 average - CALC | F95: =Index!F$43 -> 0 | G95: =Index!G$43 -> % | H95: =Index!H$43 -> 0 | I95: =Index!I$43 -> 0 | J95: =Index!J$43 -> 1.038621462 | K95: =Index!K$43 -> 1.04693747 | L95: =Index!L$43 -> 1.085399008 | M95: =Index!M$43 -> 1.180633296 | N95: =Index!N$43 -> 1.246121862 | O95: =Index!O$43 -> 1.283144091 | P95: =Index!P$43 -> 1.313449544
E96: Actual net totex for cost sharing reconciliation - WR - Real | G96: £m | J96: =J94 / J95 -> 0 | K96: =K94 / K95 -> 8.867769342 | L96: =L94 / L95 -> 9.739275527 | M96: 11.36339289 | N96: 11.47045956 | O96: 14.57883018 | P96: 0
E98: =InpActive!E$44 -> Performance related pay recovery mechanism adjustment - WR - Nominal (Neg) | F98: =InpActive!F$44 -> 0 | G98: =InpActive!G$44 -> £m | H98: =InpActive!H$44 -> 0 | I98: =InpActive!I$44 -> 0 | J98: =InpActive!J$44 -> 0 | K98: =InpActive!K$44 -> 0 | L98: =InpActive!L$44 -> 0 | M98: =InpActive!M$44 -> 0 | N98: =InpActive!N$44 -> 0 | O98: =InpActive!O$44 -> 0 | P98: =InpActive!P$44 -> 0
E99: =Index!E$43 -> CPI(H): Fin year average - inflate from base year 2017-18 average - CALC | F99: =Index!F$43 -> 0 | G99: =Index!G$43 -> % | H99: =Index!H$43 -> 0 | I99: =Index!I$43 -> 0 | J99: =Index!J$43 -> 1.038621462 | K99: =Index!K$43 -> 1.04693747 | L99: =Index!L$43 -> 1.085399008 | M99: =Index!M$43 -> 1.180633296 | N99: =Index!N$43 -> 1.246121862 | O99: =Index!O$43 -> 1.283144091 | P99: =Index!P$43 -> 1.313449544
E100: Performance related pay recovery mechanism adjustment - WR - real | G100: £m | H100: =SUM(K100:O100) -> 0 | J100: =J98 / J99 -> 0 | K100: =K98 / K99 -> 0 | L100: =L98 / L99 -> 0 | M100: 0 | N100: 0 | O100: 0 | P100: 0
E101: Total Performance related pay recovery mechanism adjustment - WR - real | F101: =H100 -> 0 | G101: £m
E103: =E$96 -> Actual net totex for cost sharing reconciliation - WR - Real | F103: =F$96 -> 0 | G103: £m | H103: 0 | I103: 0 | J103: 0 | K103: 8.867769342 | L103: 9.739275527 | M103: 11.36339289 | N103: 11.47045956 | O103: 14.57883018 | P103: 0
E104: =E100 -> Performance related pay recovery mechanism adjustment - WR - real | F104: =F100 -> 0 | G104: £m | H104: 0 | I104: 0 | J104: 0 | K104: 0 | L104: 0 | M104: 0 | N104: 0 | O104: 0 | P104: 0
E105: =Time!E$54 -> Forecast Period Flag | F105: =Time!F$54 -> 0 | G105: =Time!G$54 -> flag | H105: =Time!H$54 -> 5 | I105: =Time!I$54 -> 0 | J105: =Time!J$54 -> 0 | K105: =Time!K$54 -> 1 | L105: =Time!L$54 -> 1 | M105: =Time!M$54 -> 1 | N105: =Time!N$54 -> 1 | O105: =Time!O$54 -> 1 | P105: =Time!P$54 -> 0
E106: Actual net totex for cost sharing reconciliation - WR - Real | G106: £m | H106: =SUM(J106:P106) -> 56.0197275 | J106: =(J103 + J104)* J105 -> 0 | K106: =(K103 + K104)* K105 -> 8.867769342 | L106: =(L103 + L104)* L105 -> 9.739275527 | M106: 11.36339289 | N106: 11.47045956 | O106: 14.57883018 | P106: 0
D108: Profile for net totex for cost sharing
E110: =InpActive!E$35 -> Opex split profile - Cost sharing - WR | F110: =InpActive!F$35 -> 0 | G110: =InpActive!G$35 -> % | H110: =InpActive!H$35 -> 0 | I110: =InpActive!I$35 -> 0 | J110: =InpActive!J$35 -> 0 | K110: =InpActive!K$35 -> 0.09690958312 | L110: =InpActive!L$35 -> 0.09966211598 | M110: =InpActive!M$35 -> 0.1147963014 | N110: =InpActive!N$35 -> 0.0997363725 | O110: =InpActive!O$35 -> 0.1008848636 | P110: =InpActive!P$35 -> 0
E111: =InpActive!E$36 -> Capex split profile - Cost sharing - WR | F111: =InpActive!F$36 -> 0 | G111: =InpActive!G$36 -> % | H111: =InpActive!H$36 -> 0 | I111: =InpActive!I$36 -> 0 | J111: =InpActive!J$36 -> 0 | K111: =InpActive!K$36 -> 0.1878642437 | L111: =InpActive!L$36 -> 0.1014864395 | M111: =InpActive!M$36 -> 0.09248672072 | N111: =InpActive!N$36 -> 0.05921565471 | O111: =InpActive!O$36 -> 0.04695770477 | P111: =InpActive!P$36 -> 0
E112: Totex profile - Cost Sharing - WR | G112: % | H112: =SUM(J112:P112) -> 1 | J112: =SUM(J110:J111) -> 0 | K112: =SUM(K110:K111) -> 0.2847738268 | L112: 0.2011485555 | M112: 0.2072830221 | N112: 0.1589520272 | O112: 0.1478425684 | P112: 0
E113: Totex profile - Cost Sharing - 5 year percentage - WR | F113: =H$59 -> 1 | G113: %
E115: =E$60 -> Totex profile - Base costs - 5 year percentage - WR | F115: =F$60 -> 1 | G115: =G$60 -> %
E116: WR Totex profile - Cost sharing 100% check | F116: =IF(OR($F$115 = 1, F115 = 0), 0, 1) -> 0 | G116: Check
E118: =InpActive!E$43 -> Net totex available for cost sharing - WR - Real | F118: =InpActive!F$43 -> 66.4 | G118: =InpActive!G$43 -> £m
E119: =E$112 -> Totex profile - Cost Sharing - WR | F119: =F$112 -> 0 | G119: % | H119: 1 | I119: 0 | J119: 0 | K119: 0.2847738268 | L119: 0.2011485555 | M119: 0.2072830221 | N119: 0.1589520272 | O119: 0.1478425684 | P119: 0
E120: Net totex available for cost sharing profiled - WR - Real | G120: £m | H120: =SUM(J120:P120) -> 66.4 | J120: =J119 * $F118 -> 0 | K120: =K119 * $F118 -> 18.9089821 | L120: 13.35626409 | M120: 13.76359267 | N120: 10.55441461 | O120: 9.816746539 | P120: 0
E123: =E$120 -> Net totex available for cost sharing profiled - WR - Real | F123: 0 | G123: £m | H123: 66.4 | I123: 0 | J123: 0 | K123: 18.9089821 | L123: 13.35626409 | M123: 13.76359267 | N123: 10.55441461 | O123: 9.816746539 | P123: 0
E124: =E$84 -> Variance to forecast totex for wage adjustment - WR | F124: 0 | G124: £m | H124: -0.3549416586 | I124: 0 | J124: 0 | K124: 0.03968896873 | L124: -0.02329966848 | M124: -0.1190768087 | N124: -0.11229187 | O124: -0.13996228 | P124: 0
E125: =InpActive!E$46 -> Total final WINEP reconciliation - WR - real | F125: =InpActive!F$46 -> 0 | G125: =InpActive!G$46 -> £m | H125: =InpActive!H$46 -> 0 | I125: =InpActive!I$46 -> 0 | J125: =InpActive!J$46 -> 0 | K125: =InpActive!K$46 -> 0 | L125: =InpActive!L$46 -> 0 | M125: =InpActive!M$46 -> 0 | N125: =InpActive!N$46 -> 0 | O125: =InpActive!O$46 -> 0 | P125: =InpActive!P$46 -> 0
E126: =E100 -> Performance related pay recovery mechanism adjustment - WR - real | F126: =F100 -> 0 | G126: £m | H126: 0 | I126: 0 | J126: 0 | K126: 0 | L126: 0 | M126: 0 | N126: 0 | O126: 0 | P126: 0
E127: Net totex available for cost sharing after adjustments profiled - WR - Real | G127: £m | H127: =SUM(J127:P127) -> 66.04505834 | J127: =SUM(J123:J126) -> 0 | K127: =SUM(K123:K126) -> 18.94867107 | L127: =SUM(L123:L126) -> 13.33296442 | M127: 13.64451586 | N127: 10.44212274 | O127: 9.676784259 | P127: 0
D129: Variance to forecast net totex for cost sharing
E130: =E$106 -> Actual net totex for cost sharing reconciliation - WR - Real | F130: 0 | G130: £m | H130: 56.0197275 | I130: 0 | J130: 0 | K130: 8.867769342 | L130: 9.739275527 | M130: 11.36339289 | N130: 11.47045956 | O130: 14.57883018 | P130: 0
E131: =E$127 -> Net totex available for cost sharing after adjustments profiled - WR - Real | F131: 0 | G131: £m | H131: 66.04505834 | I131: 0 | J131: 0 | K131: 18.94867107 | L131: 13.33296442 | M131: 13.64451586 | N131: 10.44212274 | O131: 9.676784259 | P131: 0
E132: Variance to forecast net totex for cost sharing - WR | G132: £m | H132: =SUM(J132:P132) -> -10.02533084 | J132: =J130 - J131 -> 0 | K132: -10.08090173 | L132: -3.593688891 | M132: -2.281122972 | N132: 1.02833682 | O132: 4.902045923 | P132: 0
D134: Variance to forecast net totex for cost sharing - Time adjusted
E135: =InpActive!E$288 -> Financing cost index | F135: =InpActive!F$288 -> 0 | G135: =InpActive!G$288 -> Index | H135: =InpActive!H$288 -> 0 | I135: =InpActive!I$288 -> 0 | J135: =InpActive!J$288 -> 0 | K135: =InpActive!K$288 -> 4 | L135: =InpActive!L$288 -> 3 | M135: =InpActive!M$288 -> 2 | N135: =InpActive!N$288 -> 1 | O135: =InpActive!O$288 -> 0 | P135: =InpActive!P$288 -> 0
E136: =InpActive!E$290 -> Real WACC CPIH Deflated - WR | F136: =InpActive!F$290 -> 0.0292 | G136: =InpActive!G$290 -> %
E137: Time value of money factor - WR | G137: Factor | J137: =(1+$F136) ^ J135 -> 1 | K137: 1.122016155 | L137: 1.090182817 | M137: 1.05925264 | N137: 1.0292 | O137: 1 | P137: 1
E139: =E$132 -> Variance to forecast net totex for cost sharing - WR | F139: 0 | G139: £m | H139: -10.02533084 | I139: 0 | J139: 0 | K139: -10.08090173 | L139: -3.593688891 | M139: -2.281122972 | N139: 1.02833682 | O139: 4.902045923 | P139: 0
E140: =E$137 -> Time value of money factor - WR | F140: 0 | G140: Factor | H140: 0 | I140: 0 | J140: 1 | K140: 1.122016155 | L140: 1.090182817 | M140: 1.05925264 | N140: 1.0292 | O140: 1 | P140: 1
E141: Time adjusted variance to forecast net totex for cost sharing - WR | G141: £m | H141: =SUM(J141:P141) -> -11.68458783 | J141: =J139 * J140 -> 0 | K141: -11.3109346 | L141: -3.917777879 | M141: -2.41628553 | N141: 1.058364255 | O141: 4.902045923 | P141: 0
E142: Total variance to forecast net totex for cost sharing - WR | F142: =$H141 -> -11.68458783 | G142: £m
D144: Under / Overperformance on net totex for cost sharing
E145: =E$142 -> Total variance to forecast net totex for cost sharing - WR | F145: =F$142 -> -11.68458783 | G145: =G$142 -> £m
E146: =E$39 -> Active Sharing Rate - Underperformance Rate - WR | F146: =F$39 -> 0.5613646332 | G146: =G$39 -> %
E147: Active adjustment for cost sharing - Net totex for cost sharing - WR - Real | F147: =F145 * (1-F146) -> -5.125273468 | G147: £m
E149: =InpActive!E$57 -> Ex ante allowance above Ofwat forecast - Water Resources - Real | F149: =InpActive!F$57 -> 0 | G149: =InpActive!G$57 -> £m
E150: =E$112 -> Totex profile - Cost Sharing - WR | F150: =F$112 -> 0 | G150: % | H150: 1 | I150: 0 | J150: 0 | K150: 0.2847738268 | L150: 0.2011485555 | M150: 0.2072830221 | N150: 0.1589520272 | O150: 0.1478425684 | P150: 0
E151: Ex ante allowance profiled - WR - Real | G151: £m | H151: =SUM(J151:P151) -> 0 | J151: =J150 * $F149 -> 0 | K151: 0 | L151: 0 | M151: 0 | N151: 0 | O151: 0 | P151: 0
E153: =E$151 -> Ex ante allowance profiled - WR - Real | F153: 0 | G153: £m | H153: 0 | I153: 0 | J153: 0 | K153: 0 | L153: 0 | M153: 0 | N153: 0 | O153: 0 | P153: 0
E154: =E$137 -> Time value of money factor - WR | F154: 0 | G154: Factor | H154: 0 | I154: 0 | J154: 1 | K154: 1.122016155 | L154: 1.090182817 | M154: 1.05925264 | N154: 1.0292 | O154: 1 | P154: 1
E155: Ex ante allowance profiled - WR - Real - NPV adjusted | G155: £m | H155: =SUM(J155:P155) -> 0 | J155: =J153 * J154 -> 0 | K155: 0 | L155: 0 | M155: 0 | N155: 0 | O155: 0 | P155: 0
E156: NPV adjusted ex ante allowance - WR - Real | F156: =H155 -> 0 | G156: £m
E158: =InpActive!E$64 -> Actuals for CMA excluded items - WR - nominal | F158: =InpActive!F$64 -> 0 | G158: =InpActive!G$64 -> £m | H158: =InpActive!H$64 -> 0 | I158: =InpActive!I$64 -> 0 | J158: =InpActive!J$64 -> 0 | K158: =InpActive!K$64 -> 0 | L158: =InpActive!L$64 -> 0 | M158: =InpActive!M$64 -> 0 | N158: =InpActive!N$64 -> 0 | O158: =InpActive!O$64 -> 0 | P158: =InpActive!P$64 -> 0
E159: =Index!E$43 -> CPI(H): Fin year average - inflate from base year 2017-18 average - CALC | F159: =Index!F$43 -> 0 | G159: =Index!G$43 -> % | H159: =Index!H$43 -> 0 | I159: =Index!I$43 -> 0 | J159: =Index!J$43 -> 1.038621462 | K159: =Index!K$43 -> 1.04693747 | L159: =Index!L$43 -> 1.085399008 | M159: =Index!M$43 -> 1.180633296 | N159: =Index!N$43 -> 1.246121862 | O159: =Index!O$43 -> 1.283144091 | P159: =Index!P$43 -> 1.313449544
E160: Actuals for CMA excluded items - WR - real | G160: £m | J160: =J158 / J159 -> 0 | K160: =K158 / K159 -> 0 | L160: =L158 / L159 -> 0 | M160: 0 | N160: 0 | O160: 0 | P160: 0
E162: =InpActive!E$65 -> Allowance for CMA excluded items - WR - real | F162: =InpActive!F$65 -> 0 | G162: =InpActive!G$65 -> £m | H162: =InpActive!H$65 -> 0 | I162: =InpActive!I$65 -> 0 | J162: =InpActive!J$65 -> 0 | K162: =InpActive!K$65 -> 0 | L162: =InpActive!L$65 -> 0 | M162: =InpActive!M$65 -> 0 | N162: =InpActive!N$65 -> 0 | O162: =InpActive!O$65 -> 0 | P162: =InpActive!P$65 -> 0
E163: =E160 -> Actuals for CMA excluded items - WR - real | F163: =F160 -> 0 | G163: £m | H163: 0 | I163: 0 | J163: 0 | K163: =K160 -> 0 | L163: 0 | M163: 0 | N163: 0 | O163: 0 | P163: 0
E164: Variance to allowances for CMA excluded items - WR | G164: £m | H164: =SUM(J164:P164) -> 0 | J164: =J163-J162 -> 0 | K164: 0 | L164: =L163-L162 -> 0 | M164: 0 | N164: 0 | O164: 0 | P164: 0
E166: =E$164 -> Variance to allowances for CMA excluded items - WR | F166: =F$164 -> 0 | G166: £m | H166: 0 | I166: 0 | J166: 0 | K166: 0 | L166: 0 | M166: 0 | N166: 0 | O166: 0 | P166: 0
E167: =E$137 -> Time value of money factor - WR | F167: 0 | G167: Factor | H167: 0 | I167: 0 | J167: 1 | K167: 1.122016155 | L167: 1.090182817 | M167: 1.05925264 | N167: 1.0292 | O167: 1 | P167: 1
E168: Time value adjusted variance to allowances for CMA excluded items - WR - real | G168: £m | H168: =SUM(J168:P168) -> 0 | J168: =J166 * J167 -> 0 | K168: =K166 * K167 -> 0 | L168: 0 | M168: 0 | N168: 0 | O168: 0 | P168: 0
E169: Total variance to allowances for CMA excluded items - WR | F169: =$H168 -> 0 | G169: £m
E171: =E169 -> Total variance to allowances for CMA excluded items - WR | F171: =F169 -> 0 | G171: £m
E172: =InpActive!E66 -> CMA excluded items sharing rate - WR - real | F172: =InpActive!F66 -> 0 | G172: =InpActive!G66 -> %
E173: Allowable adjustment for CMA excluded items - WR - Real | F173: =(F171* F172) * -1 -> 0 | G173: £m
E175: =E147 -> Active adjustment for cost sharing - Net totex for cost sharing - WR - Real | F175: =F147 -> -5.125273468 | G175: =G147 -> £m
E176: =E$156 -> NPV adjusted ex ante allowance - WR - Real | F176: =F$156 -> 0 | G176: =G$156 -> £m
E177: =E90 -> (Under)/Overfunded wage related totex at PR19 - WR | F177: =F90 -> 0.3625347308 | G177: =G90 -> £m
E178: =E$173 -> Allowable adjustment for CMA excluded items - WR - Real | F178: =F$173 -> 0 | G178: £m
E179: =E101 -> Total Performance related pay recovery mechanism adjustment - WR - real | F179: =F101 -> 0 | G179: £m
E180: Total adjustment for cost sharing after ex ante allowance & wage adjustment - WR - Real | F180: =F175 - SUM(F176:F178) +F179 -> -5.487808198 | G180: £m
C182: Wholesaler bad debt sharing adjustment
E184: =InpActive!E$60 -> Business retail bad debt liability due to covid liquidity measures - WR - real | F184: =InpActive!F$60 -> 0 | G184: =InpActive!G$60 -> £m
E185: =E$39 -> Active Sharing Rate - Underperformance Rate - WR | F185: =F$39 -> 0.5613646332 | G185: =G$39 -> %
E186: Embedded customer share - WR | F186: =F184 * (1-F185) -> 0 | G186: £m
E188: =InpActive!E$61 -> Total Wholesaler Liability - WR - real | F188: =InpActive!F$61 -> 0 | G188: =InpActive!G$61 -> £m
E189: =E$39 -> Active Sharing Rate - Underperformance Rate - WR | F189: =F$39 -> 0.5613646332 | G189: =G$39 -> %
E190: Wholesaler liability - WR | F190: =F188 * (F189) -> 0 | G190: £m
E192: =InpActive!E$60 -> Business retail bad debt liability due to covid liquidity measures - WR - real | F192: =InpActive!F$60 -> 0 | G192: =InpActive!G$60 -> £m
E193: =E$190 -> Wholesaler liability - WR | F193: =F$190 -> 0 | G193: £m
E194: Customer Liability | F194: =F192 - F193 -> 0 | G194: £m
E196: =E194 -> Customer Liability | F196: =F194 -> 0 | G196: £m
E197: =E186 -> Embedded customer share - WR | F197: =F186 -> 0 | G197: £m
E198: Wholesaler bad debt adjustment - WR | F198: =IF(F196 > F197, F196 - F197, 0) -> 0 | G198: £m
C200: Cost sharing adjustment RCV/Revenue Split
E202: =E$180 -> Total adjustment for cost sharing after ex ante allowance & wage adjustment - WR - Real | F202: =F$180 -> -5.487808198 | G202: =G$180 -> £m
E203: =InpActive!E$55 -> Weighted average PAYG rate - WR | F203: =InpActive!F$55 -> 0.641 | G203: =InpActive!G$55 -> %
E204: Cost sharing revenue exc bad debt adjustment- WR - Real | F204: =F202 * ( $F$203) -> -3.517685055 | G204: £m
E206: =E$204 -> Cost sharing revenue exc bad debt adjustment- WR - Real | F206: =F$204 -> -3.517685055 | G206: £m
E207: =E198 -> Wholesaler bad debt adjustment - WR | F207: =F198 -> 0 | G207: =G198 -> £m
E208: Cost sharing revenue adjustment - WR - Real | F208: =SUM(F206:F207) -> -3.517685055 | G208: £m
E210: =E$180 -> Total adjustment for cost sharing after ex ante allowance & wage adjustment - WR - Real | F210: =F$180 -> -5.487808198 | G210: £m
E211: =InpActive!E$55 -> Weighted average PAYG rate - WR | F211: =InpActive!F$55 -> 0.641 | G211: =InpActive!G$55 -> %
E212: Cost sharing RCV adjustment - WR - Real | F212: =F210 * (1 - $F$211) -> -1.970123143 | G212: £m
A214: WATER NETWORK
C216: Adjustment For Wage Growth
D218: Totex for wage adjustment
E219: =InpActive!E$70 -> Base Costs - WN - Real | F219: =InpActive!F$70 -> 486.2 | G219: =InpActive!G$70 -> £m
E220: =InpActive!E$71 -> Metering (excluding new connections) for meters requested by optants, customers and businesses - WN - Real | F220: =InpActive!F$71 -> 10.92401635 | G220: =InpActive!G$71 -> £m
E221: Totex available for wage indexation adjustment - WN - Real | F221: =SUM(F219:F220) -> 497.1240164 | G221: £m
D223: Profile for totex for wage adjustment
E224: =InpActive!E$73 -> Opex Split Profile - Base costs - WN | F224: =InpActive!F$73 -> 0 | G224: =InpActive!G$73 -> % | H224: =InpActive!H$73 -> 0 | I224: =InpActive!I$73 -> 0 | J224: =InpActive!J$73 -> 0 | K224: =InpActive!K$73 -> 0.13 | L224: =InpActive!L$73 -> 0.13 | M224: =InpActive!M$73 -> 0.13 | N224: =InpActive!N$73 -> 0.13 | O224: =InpActive!O$73 -> 0.13 | P224: =InpActive!P$73 -> 0
E225: =InpActive!E$74 -> Capex Split Profile - Base costs - WN | F225: =InpActive!F$74 -> 0 | G225: =InpActive!G$74 -> % | H225: =InpActive!H$74 -> 0 | I225: =InpActive!I$74 -> 0 | J225: =InpActive!J$74 -> 0 | K225: =InpActive!K$74 -> 0.069 | L225: =InpActive!L$74 -> 0.06 | M225: =InpActive!M$74 -> 0.097 | N225: =InpActive!N$74 -> 0.067 | O225: =InpActive!O$74 -> 0.057 | P225: =InpActive!P$74 -> 0
E226: Totex profile - Base costs - WN | G226: % | H226: =SUM(J226:P226) -> 1 | J226: =SUM(J224:J225) -> 0 | K226: 0.199 | L226: 0.19 | M226: 0.227 | N226: 0.197 | O226: 0.187 | P226: 0
E227: Totex profile - Base costs - 5 year percentage - WN | F227: =H$226 -> 1 | G227: %
E229: =E$227 -> Totex profile - Base costs - 5 year percentage - WN | F229: =F$227 -> 1 | G229: =G$227 -> %
E230: WN Totex profile - Base costs 100% check | F230: =IF(OR($F$229 = 1, F229 = 0), 0, 1) -> 0 | G230: Check
E232: =E$221 -> Totex available for wage indexation adjustment - WN - Real | F232: =F$221 -> 497.1240164 | G232: =G$221 -> £m
E233: =Time!E$54 -> Forecast Period Flag | F233: =Time!F$54 -> 0 | G233: =Time!G$54 -> flag | H233: =Time!H$54 -> 5 | I233: =Time!I$54 -> 0 | J233: =Time!J$54 -> 0 | K233: =Time!K$54 -> 1 | L233: =Time!L$54 -> 1 | M233: =Time!M$54 -> 1 | N233: =Time!N$54 -> 1 | O233: =Time!O$54 -> 1 | P233: =Time!P$54 -> 0
E234: =E$226 -> Totex profile - Base costs - WN | F234: 0 | G234: % | H234: 1 | I234: 0 | J234: 0 | K234: 0.199 | L234: 0.19 | M234: 0.227 | N234: 0.197 | O234: 0.187 | P234: 0
E235: Profiled Totex available for wage indexation adjustment - WN - Real | G235: £m | H235: =SUM(J235:P235) -> 497.1240164 | J235: =IF(J233 = 1, J234 * $F232, 0) -> 0 | K235: 98.92767925 | L235: 94.45356311 | M235: 112.8471517 | N235: 97.93343122 | O235: 92.96219106 | P235: 0
D237: Totex applicable for wage adjustment by year
E238: =InpActive!E$255 -> Percentage totex linked to wage growth - WN | F238: =InpActive!F$255 -> 0.386 | G238: =InpActive!G$255 -> %
E239: =E235 -> Profiled Totex available for wage indexation adjustment - WN - Real | F239: 0 | G239: £m | H239: 497.1240164 | I239: 0 | J239: 0 | K239: 98.92767925 | L239: 94.45356311 | M239: 112.8471517 | N239: 97.93343122 | O239: 92.96219106 | P239: 0
E240: Profiled Net totex available for wage adj - WN - Real | G240: £m | H240: =SUM(J240:P240) -> 191.8898703 | J240: =J239 * $F238 -> 0 | K240: 38.18608419 | L240: 36.45907536 | M240: 43.55900056 | N240: 37.80230445 | O240: 35.88340575 | P240: 0
D242: Adjustment factor for wage linked totex
E243: =Time!E$54 -> Forecast Period Flag | F243: =Time!F$54 -> 0 | G243: =Time!G$54 -> flag | H243: =Time!H$54 -> 5 | I243: =Time!I$54 -> 0 | J243: =Time!J$54 -> 0 | K243: =Time!K$54 -> 1 | L243: =Time!L$54 -> 1 | M243: =Time!M$54 -> 1 | N243: =Time!N$54 -> 1 | O243: =Time!O$54 -> 1 | P243: =Time!P$54 -> 0
E244: =E$240 -> Profiled Net totex available for wage adj - WN - Real | F244: 0 | G244: £m | H244: 191.8898703 | I244: 0 | J244: 0 | K244: 38.18608419 | L244: 36.45907536 | M244: 43.55900056 | N244: 37.80230445 | O244: 35.88340575 | P244: 0
E245: =E$26 -> Real adjustment factor for wages | F245: 0 | G245: % | H245: 0 | I245: 0 | J245: 0 | K245: 1.008871737 | L245: 0.9954600068 | M245: 0.9770943148 | N245: 0.9740067415 | O245: 0.9677837124 | P245: 0
E246: Profiled adjustment wage related totex - WN - Real | G246: £m | H246: =SUM(J246:P246) -> 188.9267393 | J246: =IF(J243 = 1, J244 * J245, 0) -> 0 | K246: 38.52486107 | L246: 36.2935514 | M246: 42.5612518 | N246: 36.81969938 | O246: 34.72737563 | P246: 0
D248: Variance to forecast wage linked totex
E249: =E$246 -> Profiled adjustment wage related totex - WN - Real | F249: 0 | G249: £m | H249: 188.9267393 | I249: 0 | J249: 0 | K249: 38.52486107 | L249: 36.2935514 | M249: 42.5612518 | N249: 36.81969938 | O249: 34.72737563 | P249: 0
E250: =E$240 -> Profiled Net totex available for wage adj - WN - Real | F250: 0 | G250: £m | H250: 191.8898703 | I250: 0 | J250: 0 | K250: 38.18608419 | L250: 36.45907536 | M250: 43.55900056 | N250: 37.80230445 | O250: 35.88340575 | P250: 0
E251: Variance to forecast totex for wage adjustment - WN | G251: £m | H251: =SUM(J251:P251) -> -2.963131022 | J251: =J249 - J250 -> 0 | K251: 0.3387768829 | L251: -0.1655239557 | M251: -0.9977487565 | N251: -0.9826050718 | O251: -1.156030121 | P251: 0
D253: Wage totex overfunded/unfunded at PR19
E254: =E$251 -> Variance to forecast totex for wage adjustment - WN | F254: =F$251 -> 0 | G254: £m | H254: -2.963131022 | I254: 0 | J254: 0 | K254: 0.3387768829 | L254: -0.1655239557 | M254: -0.9977487565 | N254: -0.9826050718 | O254: -1.156030121 | P254: 0
E255: =E303 -> Time value of money factor - WN | F255: 0 | G255: Factor | H255: 0 | I255: 0 | J255: 1 | K255: =K303 -> 1.122016155 | L255: 1.090182817 | M255: 1.05925264 | N255: 1.0292 | O255: 1 | P255: 1
E256: Variance to forecast totex for wage adjustment - NPV adjusted - WN | G256: £m | H256: =SUM(J256:P256) -> -3.024533502 | J256: =J254*J255 -> 0 | K256: =K254*K255 -> 0.3801131357 | L256: =L254*L255 -> -0.1804513723 | M256: -1.056868004 | N256: -1.01129714 | O256: -1.156030121 | P256: 0
E257: (Under)/Overfunded wage related totex at PR19 - WN | F257: =H256 * -1 -> 3.024533502 | G257: £m
C260: Cost sharing on net totex available for reconciliation
E262: =InpActive!E$83 -> Net totex for cost sharing reconciliation - WN - Nominal | F262: =InpActive!F$83 -> 0 | G262: =InpActive!G$83 -> £m | H262: =InpActive!H$83 -> 0 | I262: =InpActive!I$83 -> 0 | J262: =InpActive!J$83 -> 0 | K262: =InpActive!K$83 -> 119.906 | L262: =InpActive!L$83 -> 118.23 | M262: =InpActive!M$83 -> 131.114 | N262: =InpActive!N$83 -> 137.2373732 | O262: =InpActive!O$83 -> 127.7741377 | P262: =InpActive!P$83 -> 0
E263: =Index!E$43 -> CPI(H): Fin year average - inflate from base year 2017-18 average - CALC | F263: =Index!F$43 -> 0 | G263: =Index!G$43 -> % | H263: =Index!H$43 -> 0 | I263: =Index!I$43 -> 0 | J263: =Index!J$43 -> 1.038621462 | K263: =Index!K$43 -> 1.04693747 | L263: =Index!L$43 -> 1.085399008 | M263: =Index!M$43 -> 1.180633296 | N263: =Index!N$43 -> 1.246121862 | O263: =Index!O$43 -> 1.283144091 | P263: =Index!P$43 -> 1.313449544
E264: Actual net totex for cost sharing reconciliation - WN - Real | G264: £m | J264: =J262 / J263 -> 0 | K264: =K262 / K263 -> 114.5302403 | L264: =L262 / L263 -> 108.9276838 | M264: =M262 / M263 -> 111.0539576 | N264: =N262 / N263 -> 110.131583 | O264: =O262 / O263 -> 99.57894719 | P264: =P262 / P263 -> 0
... 221 more rows

Sheet Abstraction & Rates
A1: =RIGHT(CELL("filename", $A$1), LEN(CELL("filename", $A$1)) - SEARCH("]", CELL("filename", $A$1)))&" Uncertainty Mechanism" -> 
E2: =Time!E$22 -> Model Period BEG | J2: =Time!J$22 -> 2019-04-01 | K2: =Time!K$22 -> 2020-04-01 | L2: =Time!L$22 -> 2021-04-01 | M2: =Time!M$22 -> 2022-04-01 | N2: =Time!N$22 -> 2023-04-01 | O2: =Time!O$22 -> 2024-04-01 | P2: =Time!P$22 -> 2025-04-01
E3: =Time!E$23 -> Model Period END | F3: =Check!F$8 -> 0 | G3: Error chks | J3: =Time!J$23 -> 2020-03-31 | K3: =Time!K$23 -> 2021-03-31 | L3: =Time!L$23 -> 2022-03-31 | M3: =Time!M$23 -> 2023-03-31 | N3: =Time!N$23 -> 2024-03-31 | O3: =Time!O$23 -> 2025-03-31 | P3: =Time!P$23 -> 2026-03-31
E4: =Time!E$59 -> Pre Forecast vs Forecast | J4: =Time!J$59 -> Pre Fcst | K4: =Time!K$59 -> Forecast | L4: =Time!L$59 -> Forecast | M4: =Time!M$59 -> Forecast | N4: =Time!N$59 -> Forecast | O4: =Time!O$59 -> Forecast | P4: =Time!P$59 -> Post-Fcst
E5: =Time!E$101 -> Financial Year Ending | J5: =Time!J$101 -> 2020 | K5: =Time!K$101 -> 2021 | L5: =Time!L$101 -> 2022 | M5: =Time!M$101 -> 2023 | N5: =Time!N$101 -> 2024 | O5: =Time!O$101 -> 2025 | P5: =Time!P$101 -> 2026
E6: =Time!E$11 -> Model column counter | F6: Constant | G6: Unit | H6: Total | J6: =Time!J$11 -> 1 | K6: =Time!K$11 -> 2 | L6: =Time!L$11 -> 3 | M6: =Time!M$11 -> 4 | N6: =Time!N$11 -> 5 | O6: =Time!O$11 -> 6 | P6: =Time!P$11 -> 7
A8: WATER RESOURCES
C10: Uncertainty mechanism for business rates
D12: Profile total forecast business rates
E13: =InpActive!E$49 -> Business rates - Forecast - WR - Real | F13: =InpActive!F$49 -> 3.281014591 | G13: =InpActive!G$49 -> £m
E14: =InpActive!E$38 -> Business Rates forecast profile - WR | F14: =InpActive!F$38 -> 0 | G14: =InpActive!G$38 -> % | H14: =InpActive!H$38 -> 0 | I14: =InpActive!I$38 -> 0 | J14: =InpActive!J$38 -> 0 | K14: =InpActive!K$38 -> 0.2 | L14: =InpActive!L$38 -> 0.2 | M14: =InpActive!M$38 -> 0.2 | N14: =InpActive!N$38 -> 0.2 | O14: =InpActive!O$38 -> 0.2 | P14: =InpActive!P$38 -> 0
E15: Business rates - Forecast Profiled - WR - Real | G15: £m | H15: =SUM(J15:P15) -> 3.281014591 | J15: =J14 * $F13 -> 0 | K15: 0.6562029183 | L15: 0.6562029183 | M15: 0.6562029183 | N15: 0.6562029183 | O15: 0.6562029183 | P15: 0
E17: =InpActive!E$52 -> Business rates - Actual - WR - Nominal | F17: =InpActive!F$52 -> 0 | G17: =InpActive!G$52 -> £m | H17: =InpActive!H$52 -> 0 | I17: =InpActive!I$52 -> 0 | J17: =InpActive!J$52 -> 0 | K17: =InpActive!K$52 -> 0.9676407112 | L17: =InpActive!L$52 -> 0.961387745 | M17: =InpActive!M$52 -> 0.974 | N17: =InpActive!N$52 -> 0.621 | O17: =InpActive!O$52 -> 0.7513197186 | P17: =InpActive!P$52 -> 0
E18: =Index!E$43 -> CPI(H): Fin year average - inflate from base year 2017-18 average - CALC | F18: =Index!F$43 -> 0 | G18: =Index!G$43 -> % | H18: =Index!H$43 -> 0 | I18: =Index!I$43 -> 0 | J18: =Index!J$43 -> 1.038621462 | K18: =Index!K$43 -> 1.04693747 | L18: =Index!L$43 -> 1.085399008 | M18: =Index!M$43 -> 1.180633296 | N18: =Index!N$43 -> 1.246121862 | O18: =Index!O$43 -> 1.283144091 | P18: =Index!P$43 -> 1.313449544
E19: Business rates - Outturn - WR - Real | G19: £m | J19: =J17 / J18 -> 0 | K19: =K17 / K18 -> 0.9242583621 | L19: =L17 / L18 -> 0.8857459216 | M19: 0.8249809685 | N19: 0.4983461242 | O19: 0.5855302798 | P19: 0
D21: Variance to forecast business rates
E22: =E$19 -> Business rates - Outturn - WR - Real | F22: =F$19 -> 0 | G22: £m | H22: 0 | I22: 0 | J22: 0 | K22: 0.9242583621 | L22: 0.8857459216 | M22: 0.8249809685 | N22: 0.4983461242 | O22: 0.5855302798 | P22: 0
E23: =E$15 -> Business rates - Forecast Profiled - WR - Real | F23: 0 | G23: £m | H23: 3.281014591 | I23: 0 | J23: 0 | K23: 0.6562029183 | L23: 0.6562029183 | M23: 0.6562029183 | N23: 0.6562029183 | O23: 0.6562029183 | P23: 0
E24: Variance between forecast and outturn business rates - WR - Real | G24: £m | H24: =SUM(J24:P24) -> 0.4378470647 | J24: =J22 - J23 -> 0 | K24: 0.2680554438 | L24: 0.2295430033 | M24: 0.1687780502 | N24: -0.1578567941 | O24: -0.07067263845 | P24: 0
D26: Variance to forecast business rates – Time adjusted
E27: =E$24 -> Variance between forecast and outturn business rates - WR - Real | F27: 0 | G27: £m | H27: 0.4378470647 | I27: 0 | J27: 0 | K27: 0.2680554438 | L27: 0.2295430033 | M27: 0.1687780502 | N27: -0.1578567941 | O27: -0.07067263845 | P27: 0
E28: ='Cost sharing calculations'!E$137 -> Time value of money factor - WR | F28: ='Cost sharing calculations'!F$137 -> 0 | G28: ='Cost sharing calculations'!G$137 -> Factor | H28: ='Cost sharing calculations'!H$137 -> 0 | I28: ='Cost sharing calculations'!I$137 -> 0 | J28: ='Cost sharing calculations'!J$137 -> 1 | K28: ='Cost sharing calculations'!K$137 -> 1.122016155 | L28: ='Cost sharing calculations'!L$137 -> 1.090182817 | M28: ='Cost sharing calculations'!M$137 -> 1.05925264 | N28: ='Cost sharing calculations'!N$137 -> 1.0292 | O28: ='Cost sharing calculations'!O$137 -> 1 | P28: ='Cost sharing calculations'!P$137 -> 1
E29: Variance on business rates time value adjusted- WR - Real | G29: £m | H29: =SUM(J29:P29) -> 0.4966461207 | J29: =J27 * J28 -> 0 | K29: 0.3007625384 | L29: 0.250243838 | M29: 0.1787785953 | N29: -0.1624662124 | O29: -0.07067263845 | P29: 0
E30: Adjustment for business rates - WR - Real | F30: =H$29 -> 0.4966461207 | G30: £m
D32: Under / Overperformance business rates
E33: =InpActive!E$280 -> Cost sharing rates Business rates - Overperformance | F33: =InpActive!F$280 -> 0.25 | G33: =InpActive!G$280 -> %
E34: =E$30 -> Adjustment for business rates - WR - Real | F34: =F$30 -> 0.4966461207 | G34: =G$30 -> £m
E35: Business Rates Outperformance Adjustment - WR - Real | F35: =IF( F34 < 0, $F$34 * (1 - F33), 0) -> 0 | G35: £m
E37: =InpActive!E$281 -> Cost sharing rates Business rates - Underperformance | F37: =InpActive!F$281 -> 0.25 | G37: =InpActive!G$281 -> %
E38: =E$30 -> Adjustment for business rates - WR - Real | F38: =F$30 -> 0.4966461207 | G38: =G$30 -> £m
E39: Business Rates Underperformance Adjustment - WR - Real | F39: =IF( F38 > 0, $F$38 * (1 - F37), 0) -> 0.3724845906 | G39: £m
E41: =E$35 -> Business Rates Outperformance Adjustment - WR - Real | F41: =F$35 -> 0 | G41: =G$35 -> £m
E42: =E$39 -> Business Rates Underperformance Adjustment - WR - Real | F42: =F$39 -> 0.3724845906 | G42: =G$39 -> £m
E43: Active adjustment for business rates uncertainty mechanism - WR - Real | F43: =IF(F41 <> 0, F41, F42) -> 0.3724845906 | G43: £m
C45: Uncertainty mechanism for abstraction charges
D47: Profile total forecast abstraction charges
E48: =InpActive!E$50 -> Abstraction charges - Forecast - WR - Real | F48: =InpActive!F$50 -> 11.22251102 | G48: =InpActive!G$50 -> £m
E49: =InpActive!E$39 -> Abstraction Charges forecast profile - WR | F49: =InpActive!F$39 -> 0 | G49: =InpActive!G$39 -> % | H49: =InpActive!H$39 -> 0 | I49: =InpActive!I$39 -> 0 | J49: =InpActive!J$39 -> 0 | K49: =InpActive!K$39 -> 0.2 | L49: =InpActive!L$39 -> 0.2 | M49: =InpActive!M$39 -> 0.2 | N49: =InpActive!N$39 -> 0.2 | O49: =InpActive!O$39 -> 0.2 | P49: =InpActive!P$39 -> 0
E50: Abstraction charges - Forecast Profiled - WR - Real | G50: £m | H50: =SUM(J50:P50) -> 11.22251102 | J50: =J49 * $F48 -> 0 | K50: 2.244502205 | L50: 2.244502205 | M50: 2.244502205 | N50: 2.244502205 | O50: 2.244502205 | P50: 0
E52: =InpActive!E$53 -> Abstraction charges - Actual - WR - Nominal | F52: =InpActive!F$53 -> 0 | G52: =InpActive!G$53 -> £m | H52: =InpActive!H$53 -> 0 | I52: =InpActive!I$53 -> 0 | J52: =InpActive!J$53 -> 0 | K52: =InpActive!K$53 -> 2.479462638 | L52: =InpActive!L$53 -> 2.583545016 | M52: =InpActive!M$53 -> 2.732 | N52: =InpActive!N$53 -> 2.806 | O52: =InpActive!O$53 -> 3.002844711 | P52: =InpActive!P$53 -> 0
E53: =Index!E$43 -> CPI(H): Fin year average - inflate from base year 2017-18 average - CALC | F53: =Index!F$43 -> 0 | G53: =Index!G$43 -> % | H53: =Index!H$43 -> 0 | I53: =Index!I$43 -> 0 | J53: =Index!J$43 -> 1.038621462 | K53: =Index!K$43 -> 1.04693747 | L53: =Index!L$43 -> 1.085399008 | M53: =Index!M$43 -> 1.180633296 | N53: =Index!N$43 -> 1.246121862 | O53: =Index!O$43 -> 1.283144091 | P53: =Index!P$43 -> 1.313449544
E54: Abstraction charges - Outturn - WR - Real | G54: £m | J54: =J52 / J53 -> 0 | K54: =K52 / K53 -> 2.368300599 | L54: =L52 / L53 -> 2.380272135 | M54: 2.314012326 | N54: 2.251786191 | O54: 2.340224089 | P54: 0
D56: Variance to forecast abstraction charges
E57: =E$54 -> Abstraction charges - Outturn - WR - Real | F57: =F$54 -> 0 | G57: £m | H57: 0 | I57: 0 | J57: 0 | K57: 2.368300599 | L57: 2.380272135 | M57: 2.314012326 | N57: 2.251786191 | O57: 2.340224089 | P57: 0
E58: =E$50 -> Abstraction charges - Forecast Profiled - WR - Real | F58: =F$50 -> 0 | G58: £m | H58: 11.22251102 | I58: 0 | J58: 0 | K58: 2.244502205 | L58: 2.244502205 | M58: 2.244502205 | N58: 2.244502205 | O58: 2.244502205 | P58: 0
E59: Variance between forecast and outturn abstraction charges - WR - Real | G59: £m | H59: =SUM(J59:P59) -> 0.4320843177 | J59: =J57 - J58 -> 0 | K59: 0.1237983945 | L59: 0.1357699307 | M59: 0.06951012178 | N59: 0.007283986293 | O59: 0.0957218844 | P59: 0
D61: Variance to forecast abstraction charges – Time adjusted
E62: =E$59 -> Variance between forecast and outturn abstraction charges - WR - Real | F62: =F$59 -> 0 | G62: £m | H62: 0.4320843177 | I62: 0 | J62: 0 | K62: 0.1237983945 | L62: 0.1357699307 | M62: 0.06951012178 | N62: 0.007283986293 | O62: 0.0957218844 | P62: 0
E63: ='Cost sharing calculations'!E$137 -> Time value of money factor - WR | F63: ='Cost sharing calculations'!F$137 -> 0 | G63: ='Cost sharing calculations'!G$137 -> Factor | H63: ='Cost sharing calculations'!H$137 -> 0 | I63: ='Cost sharing calculations'!I$137 -> 0 | J63: ='Cost sharing calculations'!J$137 -> 1 | K63: ='Cost sharing calculations'!K$137 -> 1.122016155 | L63: ='Cost sharing calculations'!L$137 -> 1.090182817 | M63: ='Cost sharing calculations'!M$137 -> 1.05925264 | N63: ='Cost sharing calculations'!N$137 -> 1.0292 | O63: ='Cost sharing calculations'!O$137 -> 1 | P63: ='Cost sharing calculations'!P$137 -> 1
E64: Variance on abstraction charges time value adjusted- WR - Real | G64: £m | H64: =SUM(J64:P64) -> 0.4637651872 | J64: =J62 * J63 -> 0 | K64: 0.1389037986 | L64: 0.1480140455 | M64: 0.07362878 | N64: 0.007496678693 | O64: 0.0957218844 | P64: 0
E65: Adjustment for abstraction charges - WR - Real | F65: =H$64 -> 0.4637651872 | G65: £m
D67: Under / Overperformance abstraction charges
E68: =InpActive!E$282 -> Cost sharing rates Abstraction - Overperformance | F68: =InpActive!F$282 -> 0.25 | G68: =InpActive!G$282 -> %
E69: =E$65 -> Adjustment for abstraction charges - WR - Real | F69: =F$65 -> 0.4637651872 | G69: £m
E70: Abstraction charges Outperformance Adjustment - WR - Real | F70: =IF( F69 < 0, F69 * (1 - F68), 0) -> 0 | G70: £m
E72: =InpActive!E$283 -> Cost sharing rates Abstraction - Underperformance | F72: =InpActive!F$283 -> 0.25 | G72: =InpActive!G$283 -> %
E73: =E$65 -> Adjustment for abstraction charges - WR - Real | F73: =F$65 -> 0.4637651872 | G73: £m
E74: Abstraction charges Underperformance Adjustment - WR - Real | F74: =IF( F73 > 0, F73 * (1 - F72), 0) -> 0.3478238904 | G74: £m
E76: =E$70 -> Abstraction charges Outperformance Adjustment - WR - Real | F76: =F$70 -> 0 | G76: £m
E77: =E$74 -> Abstraction charges Underperformance Adjustment - WR - Real | F77: =F$74 -> 0.3478238904 | G77: £m
E78: Active adjustment for abstraction charges uncertainty mechanism - WR - Real | F78: =IF(F76 <> 0, F76, F77) -> 0.3478238904 | G78: £m
E80: =E43 -> Active adjustment for business rates uncertainty mechanism - WR - Real | F80: =F43 -> 0.3724845906 | G80: £m
E81: =E78 -> Active adjustment for abstraction charges uncertainty mechanism - WR - Real | F81: =F78 -> 0.3478238904 | G81: £m
E82: Active adjustment for abstraction charges & business rates uncertainty mechanism - WR - Real | F82: =SUM(F80:F81) -> 0.720308481 | G82: £m
E84: =E82 -> Active adjustment for abstraction charges & business rates uncertainty mechanism - WR - Real | F84: =F82 -> 0.720308481 | G84: £m
E85: =InpActive!E$55 -> Weighted average PAYG rate - WR | F85: =InpActive!F$55 -> 0.641 | G85: =InpActive!G$55 -> %
E86: Revenue adjustment business rates and abstraction - WR - Real | F86: =F84 * $F$85 -> 0.4617177363 | G86: £m
E88: =E$82 -> Active adjustment for abstraction charges & business rates uncertainty mechanism - WR - Real | F88: =F$82 -> 0.720308481 | G88: £m
E89: =InpActive!E$55 -> Weighted average PAYG rate - WR | F89: =InpActive!F$55 -> 0.641 | G89: =InpActive!G$55 -> %
E90: RCV adjustment business rates and abstraction - WR - Real | F90: =F88 * (1 - $F$89) -> 0.2585907447 | G90: £m
A92: WATER NETWORK
C94: Uncertainty mechanism for business rates
D96: Profile total forecast business rates
E97: =InpActive!E$90 -> Business rates - Forecast - WN - Real | F97: =InpActive!F$90 -> 68.60922797 | G97: =InpActive!G$90 -> £m
E98: =InpActive!E$79 -> Business Rates forecast profile - WN | F98: =InpActive!F$79 -> 0 | G98: =InpActive!G$79 -> % | H98: =InpActive!H$79 -> 0 | I98: =InpActive!I$79 -> 0 | J98: =InpActive!J$79 -> 0 | K98: =InpActive!K$79 -> 0.2 | L98: =InpActive!L$79 -> 0.2 | M98: =InpActive!M$79 -> 0.2 | N98: =InpActive!N$79 -> 0.2 | O98: =InpActive!O$79 -> 0.2 | P98: =InpActive!P$79 -> 0
E99: Business rates - Forecast Profiled - WN - Real | G99: £m | H99: =SUM(J99:P99) -> 68.60922797 | J99: =J98 * $F97 -> 0 | K99: 13.72184559 | L99: 13.72184559 | M99: 13.72184559 | N99: 13.72184559 | O99: 13.72184559 | P99: 0
E101: =InpActive!E$93 -> Business rates - Actual - WN - Nominal | F101: =InpActive!F$93 -> 0 | G101: =InpActive!G$93 -> £m | H101: =InpActive!H$93 -> 0 | I101: =InpActive!I$93 -> 0 | J101: =InpActive!J$93 -> 0 | K101: =InpActive!K$93 -> 15.05175258 | L101: =InpActive!L$93 -> 14.92980756 | M101: =InpActive!M$93 -> 14.994 | N101: =InpActive!N$93 -> 10.239 | O101: =InpActive!O$93 -> 11.56240022 | P101: =InpActive!P$93 -> 0
E102: =Index!E$43 -> CPI(H): Fin year average - inflate from base year 2017-18 average - CALC | F102: =Index!F$43 -> 0 | G102: =Index!G$43 -> % | H102: =Index!H$43 -> 0 | I102: =Index!I$43 -> 0 | J102: =Index!J$43 -> 1.038621462 | K102: =Index!K$43 -> 1.04693747 | L102: =Index!L$43 -> 1.085399008 | M102: =Index!M$43 -> 1.180633296 | N102: =Index!N$43 -> 1.246121862 | O102: =Index!O$43 -> 1.283144091 | P102: =Index!P$43 -> 1.313449544
E103: Business rates - Outturn - WN - Real | G103: £m | J103: =J101 / J102 -> 0 | K103: =K101 / K102 -> 14.3769356 | L103: =L101 / L102 -> 13.75513286 | M103: =M101 / M102 -> 12.6999637 | N103: =N101 / N102 -> 8.216692377 | O103: =O101 / O102 -> 9.010991285 | P103: =P101 / P102 -> 0
D105: Variance to forecast business rates
E106: =E$103 -> Business rates - Outturn - WN - Real | F106: =F$103 -> 0 | G106: £m | H106: 0 | I106: 0 | J106: 0 | K106: 14.3769356 | L106: 13.75513286 | M106: 12.6999637 | N106: 8.216692377 | O106: 9.010991285 | P106: 0
E107: =E$99 -> Business rates - Forecast Profiled - WN - Real | F107: 0 | G107: £m | H107: 68.60922797 | I107: 0 | J107: 0 | K107: 13.72184559 | L107: 13.72184559 | M107: 13.72184559 | N107: 13.72184559 | O107: 13.72184559 | P107: 0
E108: Variance between forecast and outturn business rates - WN - Real | G108: £m | H108: =SUM(J108:P108) -> -10.54951216 | J108: =J106 - J107 -> 0 | K108: 0.6550900011 | L108: 0.03328726142 | M108: -1.021881896 | N108: -5.505153217 | O108: -4.710854309 | P108: 0
D110: Variance to forecast business rates – Time adjusted
E111: =E$108 -> Variance between forecast and outturn business rates - WN - Real | F111: 0 | G111: £m | H111: -10.54951216 | I111: 0 | J111: 0 | K111: 0.6550900011 | L111: 0.03328726142 | M111: -1.021881896 | N111: -5.505153217 | O111: -4.710854309 | P111: 0
E112: ='Cost sharing calculations'!E$303 -> Time value of money factor - WN | F112: ='Cost sharing calculations'!F$303 -> 0 | G112: ='Cost sharing calculations'!G$303 -> Factor | H112: ='Cost sharing calculations'!H$303 -> 0 | I112: ='Cost sharing calculations'!I$303 -> 0 | J112: ='Cost sharing calculations'!J$303 -> 1 | K112: ='Cost sharing calculations'!K$303 -> 1.122016155 | L112: ='Cost sharing calculations'!L$303 -> 1.090182817 | M112: ='Cost sharing calculations'!M$303 -> 1.05925264 | N112: ='Cost sharing calculations'!N$303 -> 1.0292 | O112: ='Cost sharing calculations'!O$303 -> 1 | P112: ='Cost sharing calculations'!P$303 -> 1
E113: Variance on business rates time value adjusted- WN - Real | G113: £m | H113: =SUM(J113:P113) -> -10.68787833 | J113: =J111 * J112 -> 0 | K113: 0.7350215644 | L113: 0.03628920043 | M113: -1.082431096 | N113: -5.665903691 | O113: -4.710854309 | P113: 0
E114: Adjustment for business rates for cost sharing - WN - Real | F114: =H$113 -> -10.68787833 | G114: £m
D116: Under / Overperformance business rates
E117: =InpActive!E$280 -> Cost sharing rates Business rates - Overperformance | F117: =InpActive!F$280 -> 0.25 | G117: =InpActive!G$280 -> %
E118: =E$114 -> Adjustment for business rates for cost sharing - WN - Real | F118: =F$114 -> -10.68787833 | G118: =G$114 -> £m
E119: Business Rates Outperformance Adjustment - WN - Real | F119: =IF( F118 < 0, $F$118 * (1 - F117), 0) -> -8.015908748 | G119: £m
E121: =InpActive!E$281 -> Cost sharing rates Business rates - Underperformance | F121: =InpActive!F$281 -> 0.25 | G121: =InpActive!G$281 -> %
E122: =E$114 -> Adjustment for business rates for cost sharing - WN - Real | F122: =F$114 -> -10.68787833 | G122: =G$114 -> £m
E123: Business Rates Underperformance Adjustment - WN - Real | F123: =IF( F122 > 0, $F$122 * (1 -F121), 0) -> 0 | G123: £m
E125: =E$119 -> Business Rates Outperformance Adjustment - WN - Real | F125: =F$119 -> -8.015908748 | G125: =G$119 -> £m
E126: =E$123 -> Business Rates Underperformance Adjustment - WN - Real | F126: =F$123 -> 0 | G126: =G$123 -> £m
E127: Active adjustment for business rates uncertainty mechanism - WN - Real | F127: =IF(F125 <> 0, F125, F126) -> -8.015908748 | G127: £m
C129: Uncertainty mechanism for Abstraction charges
D131: Profile total forecast and abstraction charges
E132: =InpActive!E$91 -> Abstraction charges - Forecast - WN - Real | F132: =InpActive!F$91 -> 1.476162024 | G132: =InpActive!G$91 -> £m
E133: =InpActive!E$80 -> Abstraction Charges forecast profile - WN | F133: =InpActive!F$80 -> 0 | G133: =InpActive!G$80 -> % | H133: =InpActive!H$80 -> 0 | I133: =InpActive!I$80 -> 0 | J133: =InpActive!J$80 -> 0 | K133: =InpActive!K$80 -> 0.2 | L133: =InpActive!L$80 -> 0.2 | M133: =InpActive!M$80 -> 0.2 | N133: =InpActive!N$80 -> 0.2 | O133: =InpActive!O$80 -> 0.2 | P133: =InpActive!P$80 -> 0
E134: Abstraction charges - Forecast Profiled - WN - Real | G134: £m | H134: =SUM(J134:P134) -> 1.476162024 | J134: =J133 * $F132 -> 0 | K134: 0.2952324048 | L134: 0.2952324048 | M134: 0.2952324048 | N134: 0.2952324048 | O134: 0.2952324048 | P134: 0
E136: =InpActive!E94 -> Abstraction charges - Actual - WN - Nominal | F136: =InpActive!F94 -> 0 | G136: =InpActive!G94 -> £m | H136: =InpActive!H94 -> 0 | I136: =InpActive!I94 -> 0 | J136: =InpActive!J94 -> 0 | K136: =InpActive!K94 -> 0.1424992303 | L136: =InpActive!L94 -> 0.1429897438 | M136: =InpActive!M94 -> 0.152 | N136: =InpActive!N94 -> 0.16 | O136: =InpActive!O94 -> 1.308302036 | P136: =InpActive!P94 -> 0
E137: =Index!E$43 -> CPI(H): Fin year average - inflate from base year 2017-18 average - CALC | F137: =Index!F$43 -> 0 | G137: =Index!G$43 -> % | H137: =Index!H$43 -> 0 | I137: =Index!I$43 -> 0 | J137: =Index!J$43 -> 1.038621462 | K137: =Index!K$43 -> 1.04693747 | L137: =Index!L$43 -> 1.085399008 | M137: =Index!M$43 -> 1.180633296 | N137: =Index!N$43 -> 1.246121862 | O137: =Index!O$43 -> 1.283144091 | P137: =Index!P$43 -> 1.313449544
E138: Abstraction charges - Outturn - WN - Real | G138: £m | J138: =J136 / J137 -> 0 | K138: =K136 / K137 -> 0.1361105457 | L138: =L136 / L137 -> 0.1317393352 | M138: 0.1287444633 | N138: 0.1283983573 | O138: 1.019606485 | P138: 0
D140: Variance to forecast abstraction charges
E141: =E$138 -> Abstraction charges - Outturn - WN - Real | F141: =F$138 -> 0 | G141: £m | H141: 0 | I141: 0 | J141: 0 | K141: 0.1361105457 | L141: 0.1317393352 | M141: 0.1287444633 | N141: 0.1283983573 | O141: 1.019606485 | P141: 0
E142: =E$134 -> Abstraction charges - Forecast Profiled - WN - Real | F142: =F$134 -> 0 | G142: £m | H142: 1.476162024 | I142: 0 | J142: 0 | K142: 0.2952324048 | L142: 0.2952324048 | M142: 0.2952324048 | N142: 0.2952324048 | O142: 0.2952324048 | P142: 0
E143: Variance between forecast and outturn abstraction charges - WR - Real | G143: £m | H143: =SUM(J143:P143) -> 0.06843716248 | J143: =J141 - J142 -> 0 | K143: -0.1591218591 | L143: -0.1634930696 | M143: -0.1664879415 | N143: -0.1668340475 | O143: 0.7243740802 | P143: 0
D145: Variance to forecast abstraction charges – Time adjusted
E146: =E$143 -> Variance between forecast and outturn abstraction charges - WR - Real | F146: =F$143 -> 0 | G146: £m | H146: 0.06843716248 | I146: 0 | J146: 0 | K146: -0.1591218591 | L146: -0.1634930696 | M146: -0.1664879415 | N146: -0.1668340475 | O146: 0.7243740802 | P146: 0
E147: ='Cost sharing calculations'!E$303 -> Time value of money factor - WN | F147: ='Cost sharing calculations'!F$303 -> 0 | G147: ='Cost sharing calculations'!G$303 -> Factor | H147: ='Cost sharing calculations'!H$303 -> 0 | I147: ='Cost sharing calculations'!I$303 -> 0 | J147: ='Cost sharing calculations'!J$303 -> 1 | K147: ='Cost sharing calculations'!K$303 -> 1.122016155 | L147: ='Cost sharing calculations'!L$303 -> 1.090182817 | M147: ='Cost sharing calculations'!M$303 -> 1.05925264 | N147: ='Cost sharing calculations'!N$303 -> 1.0292 | O147: ='Cost sharing calculations'!O$303 -> 1 | P147: ='Cost sharing calculations'!P$303 -> 1
E148: Variance on abstraction charges time value adjusted- WN - Real | G148: £m | H148: =SUM(J148:P148) -> 0.01954105516 | J148: =J146 * J147 -> 0 | K148: -0.1785372966 | L148: -0.1782373352 | M148: -0.1763527916 | N148: -0.1717056017 | O148: 0.7243740802 | P148: 0
E149: Adjustment for abstraction charges - WN - Real | F149: =H$148 -> 0.01954105516 | G149: £m
D151: Under / Overperformance abstraction charges
E152: =InpActive!E$282 -> Cost sharing rates Abstraction - Overperformance | F152: =InpActive!F$282 -> 0.25 | G152: =InpActive!G$282 -> %
E153: =E$149 -> Adjustment for abstraction charges - WN - Real | F153: =F$149 -> 0.01954105516 | G153: £m
E154: Abstraction charges Outperformance Adjustment - WN - Real | F154: =IF( F153 < 0, $F$153 * (1 - F152), 0) -> 0 | G154: £m
E156: =InpActive!E$283 -> Cost sharing rates Abstraction - Underperformance | F156: =InpActive!F$283 -> 0.25 | G156: =InpActive!G$283 -> %
E157: =E$149 -> Adjustment for abstraction charges - WN - Real | F157: =F$149 -> 0.01954105516 | G157: £m
E158: Abstraction charges Underperformance Adjustment - WN - Real | F158: =IF( F157 > 0, $F$157 * (1 - F156), 0) -> 0.01465579137 | G158: £m
E160: =E$154 -> Abstraction charges Outperformance Adjustment - WN - Real | F160: =F$154 -> 0 | G160: £m
E161: =E$158 -> Abstraction charges Underperformance Adjustment - WN - Real | F161: =F$158 -> 0.01465579137 | G161: £m
E162: Active adjustment for abstraction charges uncertainty mechanism - WN - Real | F162: =IF(F160 <> 0, F160, F161) -> 0.01465579137 | G162: £m
E164: =E127 -> Active adjustment for business rates uncertainty mechanism - WN - Real | F164: =F127 -> -8.015908748 | G164: £m
E165: =E162 -> Active adjustment for abstraction charges uncertainty mechanism - WN - Real | F165: =F162 -> 0.01465579137 | G165: £m
E166: Active adjustment for abstraction charges & business rates uncertainty mechanism - WR - Real | F166: =SUM(F164:F165) -> -8.001252957 | G166: £m
E168: =E$166 -> Active adjustment for abstraction charges & business rates uncertainty mechanism - WR - Real | F168: =F$166 -> -8.001252957 | G168: £m
E169: =InpActive!E$96 -> Weighted average PAYG rate - WN | F169: =InpActive!F$96 -> 0.722 | G169: =InpActive!G$96 -> %
E170: Revenue adjustment business rates and abstraction - WN - Real | F170: =F168 * $F$169 -> -5.776904635 | G170: £m
E172: =E$166 -> Active adjustment for abstraction charges & business rates uncertainty mechanism - WR - Real | F172: =F$166 -> -8.001252957 | G172: £m
E173: =InpActive!E$96 -> Weighted average PAYG rate - WN | F173: =InpActive!F$96 -> 0.722 | G173: =InpActive!G$96 -> %
E174: RCV adjustment business rates and abstraction - WN - Real | F174: =F172 * (1 - $F$173) -> -2.224348322 | G174: £m
A176: WASTEWATER NETWORK
C178: Uncertainty mechanism for business rates
D180: Profile total forecast business rates
E181: =InpActive!E$131 -> Business rates - Forecast - WWN - Real | F181: =InpActive!F$131 -> 34.7934936 | G181: =InpActive!G$131 -> £m
E182: =InpActive!E$121 -> Business Rates forecast profile - WWN | F182: =InpActive!F$121 -> 0 | G182: =InpActive!G$121 -> % | H182: =InpActive!H$121 -> 0 | I182: =InpActive!I$121 -> 0 | J182: =InpActive!J$121 -> 0 | K182: =InpActive!K$121 -> 0.2 | L182: =InpActive!L$121 -> 0.2 | M182: =InpActive!M$121 -> 0.2 | N182: =InpActive!N$121 -> 0.2 | O182: =InpActive!O$121 -> 0.2 | P182: =InpActive!P$121 -> 0
E183: Business rates - Forecast Profiled - WWN - Real | G183: £m | H183: =SUM(J183:P183) -> 34.7934936 | J183: =J182 * $F181 -> 0 | K183: 6.958698719 | L183: 6.958698719 | M183: 6.958698719 | N183: 6.958698719 | O183: 6.958698719 | P183: 0
E185: =InpActive!E$133 -> Business rates - Actual - WWN - Nominal | F185: =InpActive!F$133 -> 0 | G185: =InpActive!G$133 -> £m | H185: =InpActive!H$133 -> 0 | I185: =InpActive!I$133 -> 0 | J185: =InpActive!J$133 -> 0 | K185: =InpActive!K$133 -> 7.150233251 | L185: =InpActive!L$133 -> 7.147619918 | M185: =InpActive!M$133 -> 7.148 | N185: =InpActive!N$133 -> 8.129 | O185: =InpActive!O$133 -> 10.25533106 | P185: =InpActive!P$133 -> 0
E186: =Index!E$43 -> CPI(H): Fin year average - inflate from base year 2017-18 average - CALC | F186: =Index!F$43 -> 0 | G186: =Index!G$43 -> % | H186: =Index!H$43 -> 0 | I186: =Index!I$43 -> 0 | J186: =Index!J$43 -> 1.038621462 | K186: =Index!K$43 -> 1.04693747 | L186: =Index!L$43 -> 1.085399008 | M186: =Index!M$43 -> 1.180633296 | N186: =Index!N$43 -> 1.246121862 | O186: =Index!O$43 -> 1.283144091 | P186: =Index!P$43 -> 1.313449544
E187: Business rates - Outturn - WWN - Real | G187: £m | J187: =J185 / J186 -> 0 | K187: =K185 / K186 -> 6.829666008 | L187: =L185 / L186 -> 6.585246405 | M187: =M185 / M186 -> 6.054377785 | N187: =N185 / N186 -> 6.52343904 | O187: =O185 / O186 -> 7.992345628 | P187: =P185 / P186 -> 0
D189: Variance to forecast business rates
E190: =E$187 -> Business rates - Outturn - WWN - Real | F190: =F$187 -> 0 | G190: £m | H190: 0 | I190: 0 | J190: 0 | K190: 6.829666008 | L190: 6.585246405 | M190: 6.054377785 | N190: 6.52343904 | O190: 7.992345628 | P190: 0
E191: =E$183 -> Business rates - Forecast Profiled - WWN - Real | F191: =F$183 -> 0 | G191: £m | H191: 34.7934936 | I191: 0 | J191: 0 | K191: 6.958698719 | L191: 6.958698719 | M191: 6.958698719 | N191: 6.958698719 | O191: 6.958698719 | P191: 0
E192: Variance between forecast and outturn business rates - WWN - Real | G192: £m | H192: =SUM(J192:P192) -> -0.8084187311 | J192: =J190 - J191 -> 0 | K192: -0.1290327117 | L192: -0.3734523146 | M192: -0.904320934 | N192: -0.4352596793 | O192: 1.033646908 | P192: 0
D194: Variance to forecast business rates - Time adjusted
E195: =E$192 -> Variance between forecast and outturn business rates - WWN - Real | F195: 0 | G195: £m | H195: -0.8084187311 | I195: 0 | J195: 0 | K195: -0.1290327117 | L195: -0.3734523146 | M195: -0.904320934 | N195: -0.4352596793 | O195: 1.033646908 | P195: 0
E196: ='Cost sharing calculations'!E$471 -> Time value of money factor - WWN | F196: ='Cost sharing calculations'!F$471 -> 0 | G196: ='Cost sharing calculations'!G$471 -> Factor | H196: ='Cost sharing calculations'!H$471 -> 0 | I196: ='Cost sharing calculations'!I$471 -> 0 | J196: ='Cost sharing calculations'!J$471 -> 1 | K196: ='Cost sharing calculations'!K$471 -> 1.122016155 | L196: ='Cost sharing calculations'!L$471 -> 1.090182817 | M196: ='Cost sharing calculations'!M$471 -> 1.05925264 | N196: ='Cost sharing calculations'!N$471 -> 1.0292 | O196: ='Cost sharing calculations'!O$471 -> 1 | P196: ='Cost sharing calculations'!P$471 -> 1
E197: Variance on business rates time value adjusted- WWN - Real | G197: £m | H197: =SUM(J197:P197) -> -0.9241347737 | J197: =J195 * J196 -> 0 | K197: -0.1447767871 | L197: -0.4071312963 | M197: -0.9579043368 | N197: -0.4479692619 | O197: 1.033646908 | P197: 0
E198: Adjustment for business rates for cost sharing - WWN - Real | F198: =H$197 -> -0.9241347737 | G198: £m
D200: Under / Overperformance business rates
E201: =InpActive!E$280 -> Cost sharing rates Business rates - Overperformance | F201: =InpActive!F$280 -> 0.25 | G201: =InpActive!G$280 -> %
E202: =E$198 -> Adjustment for business rates for cost sharing - WWN - Real | F202: =F$198 -> -0.9241347737 | G202: =G$198 -> £m
E203: Business Rates Outperformance Adjustment - WWN - Real | F203: =IF( F202 < 0, $F$202 * (1 - F201), 0) -> -0.6931010803 | G203: £m
E205: =InpActive!E$281 -> Cost sharing rates Business rates - Underperformance | F205: =InpActive!F$281 -> 0.25 | G205: =InpActive!G$281 -> %
E206: =E$198 -> Adjustment for business rates for cost sharing - WWN - Real | F206: =F$198 -> -0.9241347737 | G206: =G$198 -> £m
E207: Business Rates Underperformance Adjustment - WWN - Real | F207: =IF( F206 > 0, $F$206 * (1 - F205), 0) -> 0 | G207: £m
E209: =E$203 -> Business Rates Outperformance Adjustment - WWN - Real | F209: =F$203 -> -0.6931010803 | G209: =G$203 -> £m
E210: =E$207 -> Business Rates Underperformance Adjustment - WWN - Real | F210: =F$207 -> 0 | G210: =G$207 -> £m
E211: Active adjustment for business rates uncertainty mechanism - WWN - Real | F211: =IF(F209 <> 0, F209, F210) -> -0.6931010803 | G211: £m
E213: =E$211 -> Active adjustment for business rates uncertainty mechanism - WWN - Real | F213: =F$211 -> -0.6931010803 | G213: £m
E214: =InpActive!E$135 -> Weighted average PAYG rate - WWN | F214: =InpActive!F$135 -> 0.403 | G214: =InpActive!G$135 -> %
E215: Revenue adjustment business rates - WWN - Real | F215: =F213 * $F$214 -> -0.2793197353 | G215: £m
E217: =E$211 -> Active adjustment for business rates uncertainty mechanism - WWN - Real | F217: =F$211 -> -0.6931010803 | G217: £m
E218: =InpActive!E$135 -> Weighted average PAYG rate - WWN | F218: =InpActive!F$135 -> 0.403 | G218: =InpActive!G$135 -> %
E219: RCV adjustment business rates - WWN - Real | F219: =F217 * (1 - $F$218) -> -0.4137813449 | G219: £m
A221: BIORESOURCES
C223: Uncertainty mechanism for business rates
D225: Profile total forecast business rates
E226: =InpActive!E$156 -> Business rates - Forecast - BIO - Real | F226: =InpActive!F$156 -> 8.16301332 | G226: =InpActive!G$156 -> £m
E227: =InpActive!E$160 -> Business Rates forecast profile - BIO | F227: =InpActive!F$160 -> 0 | G227: =InpActive!G$160 -> % | H227: =InpActive!H$160 -> 0 | I227: =InpActive!I$160 -> 0 | J227: =InpActive!J$160 -> 0 | K227: =InpActive!K$160 -> 0.2 | L227: =InpActive!L$160 -> 0.2 | M227: =InpActive!M$160 -> 0.2 | N227: =InpActive!N$160 -> 0.2 | O227: =InpActive!O$160 -> 0.2 | P227: =InpActive!P$160 -> 0
E228: Business rates - Forecast Profiled - BIO - Real | G228: £m | H228: =SUM(J228:P228) -> 8.16301332 | J228: =J227 * $F226 -> 0 | K228: 1.632602664 | L228: 1.632602664 | M228: 1.632602664 | N228: 1.632602664 | O228: 1.632602664 | P228: 0
E230: =InpActive!E$158 -> Business rates - Actual - BIO - Nominal | F230: =InpActive!F$158 -> 0 | G230: =InpActive!G$158 -> £m | H230: =InpActive!H$158 -> 0 | I230: =InpActive!I$158 -> 0 | J230: =InpActive!J$158 -> 0 | K230: =InpActive!K$158 -> 1.646032583 | L230: =InpActive!L$158 -> 1.618605869 | M230: =InpActive!M$158 -> 1.614 | N230: =InpActive!N$158 -> 1.877 | O230: =InpActive!O$158 -> 2.128688864 | P230: =InpActive!P$158 -> 0
E231: =Index!E$43 -> CPI(H): Fin year average - inflate from base year 2017-18 average - CALC | F231: =Index!F$43 -> 0 | G231: =Index!G$43 -> % | H231: =Index!H$43 -> 0 | I231: =Index!I$43 -> 0 | J231: =Index!J$43 -> 1.038621462 | K231: =Index!K$43 -> 1.04693747 | L231: =Index!L$43 -> 1.085399008 | M231: =Index!M$43 -> 1.180633296 | N231: =Index!N$43 -> 1.246121862 | O231: =Index!O$43 -> 1.283144091 | P231: =Index!P$43 -> 1.313449544
E232: Business rates - Outturn - BIO - Real | G232: £m | J232: =J230 / J231 -> 0 | K232: =K230 / K231 -> 1.572235812 | L232: =L230 / L231 -> 1.491254235 | M232: =M230 / M231 -> 1.367062919 | N232: =N230 / N231 -> 1.506273229 | O232: =O230 / O231 -> 1.658963229 | P232: =P230 / P231 -> 0
D234: Variance to forecast business rates
E235: =E$232 -> Business rates - Outturn - BIO - Real | F235: =F$232 -> 0 | G235: £m | H235: 0 | I235: 0 | J235: 0 | K235: 1.572235812 | L235: 1.491254235 | M235: 1.367062919 | N235: 1.506273229 | O235: 1.658963229 | P235: 0
E236: =E$228 -> Business rates - Forecast Profiled - BIO - Real | F236: =F$228 -> 0 | G236: £m | H236: 8.16301332 | I236: 0 | J236: 0 | K236: 1.632602664 | L236: 1.632602664 | M236: 1.632602664 | N236: 1.632602664 | O236: 1.632602664 | P236: 0
E237: Variance between forecast and outturn business rates - BIO - Real | G237: £m | H237: =SUM(J237:P237) -> -0.5672238956 | J237: =J235 - J236 -> 0 | K237: -0.06036685229 | L237: -0.1413484285 | M237: -0.2655397449 | N237: -0.126329435 | O237: 0.02636056516 | P237: 0
D239: Variance to forecast business rates - Time adjusted
E240: =E$237 -> Variance between forecast and outturn business rates - BIO - Real | F240: 0 | G240: £m | H240: -0.5672238956 | I240: 0 | J240: 0 | K240: -0.06036685229 | L240: -0.1413484285 | M240: -0.2655397449 | N240: -0.126329435 | O240: 0.02636056516 | P240: 0
E241: =Bioresources!E$49 -> Time value of money factor - BIO | F241: =Bioresources!F$49 -> 0 | G241: =Bioresources!G$49 -> Factor | H241: =Bioresources!H$49 -> 0 | I241: =Bioresources!I$49 -> 0 | J241: =Bioresources!J$49 -> 1 | K241: =Bioresources!K$49 -> 1.122016155 | L241: =Bioresources!L$49 -> 1.090182817 | M241: =Bioresources!M$49 -> 1.05925264 | N241: =Bioresources!N$49 -> 1.0292 | O241: =Bioresources!O$49 -> 1 | P241: =Bioresources!P$49 -> 1
E242: Variance on business rates time value adjusted- BIO - Real | G242: £m | H242: =SUM(J242:P242) -> -0.6067595767 | J242: =J240 * J241 -> 0 | K242: -0.06773258352 | L242: -0.154095628 | M242: -0.2812736758 | N242: -0.1300182545 | O242: 0.02636056516 | P242: 0
E243: Adjustment for business rates for cost sharing - BIO - Real | F243: =H$242 -> -0.6067595767 | G243: £m
D245: Under / Overperformance business rates
E246: =InpActive!E$280 -> Cost sharing rates Business rates - Overperformance | F246: =InpActive!F$280 -> 0.25 | G246: =InpActive!G$280 -> %
E247: =E$243 -> Adjustment for business rates for cost sharing - BIO - Real | F247: =F$243 -> -0.6067595767 | G247: =G$243 -> £m
E248: Business Rates Outperformance Adjustment - BIO - Real | F248: =IF( F247 < 0, $F$247 * (1 - F246), 0) -> -0.4550696825 | G248: £m
E250: =InpActive!E$281 -> Cost sharing rates Business rates - Underperformance | F250: =InpActive!F$281 -> 0.25 | G250: =InpActive!G$281 -> %
E251: =E$243 -> Adjustment for business rates for cost sharing - BIO - Real | F251: =F$243 -> -0.6067595767 | G251: =G$243 -> £m
E252: Business Rates Underperformance Adjustment - BIO - Real | F252: =IF( F251 > 0, $F$251 * (1 - F250), 0) -> 0 | G252: £m
E254: =E$248 -> Business Rates Outperformance Adjustment - BIO - Real | F254: =F$248 -> -0.4550696825 | G254: £m
E255: =E$252 -> Business Rates Underperformance Adjustment - BIO - Real | F255: =F$252 -> 0 | G255: £m
E256: Active adjustment for business rates uncertainty mechanism - BIO - Real | F256: =IF(F254 <> 0, F254, F255) -> -0.4550696825 | G256: £m
E258: =E$256 -> Active adjustment for business rates uncertainty mechanism - BIO - Real | F258: =F$256 -> -0.4550696825 | G258: £m
E259: =InpActive!E$162 -> Weighted average PAYG rate - BIO | F259: =InpActive!F$162 -> 0.73 | G259: =InpActive!G$162 -> %
E260: Revenue adjustment business rates - BIO - Real | F260: =F258 * $F$259 -> -0.3322008682 | G260: £m
E262: =E$256 -> Active adjustment for business rates uncertainty mechanism - BIO - Real | F262: =F$256 -> -0.4550696825 | G262: =G$256 -> £m
... 3 more rows

Sheet Bioresources
A1: =RIGHT(CELL("filename", $A$1), LEN(CELL("filename", $A$1)) - SEARCH("]", CELL("filename", $A$1))) -> 
E2: =Time!E$22 -> Model Period BEG | J2: =Time!J$22 -> 2019-04-01 | K2: =Time!K$22 -> 2020-04-01 | L2: =Time!L$22 -> 2021-04-01 | M2: =Time!M$22 -> 2022-04-01 | N2: =Time!N$22 -> 2023-04-01 | O2: =Time!O$22 -> 2024-04-01 | P2: =Time!P$22 -> 2025-04-01
E3: =Time!E$23 -> Model Period END | F3: =Check!F$8 -> 0 | G3: Error chks | J3: =Time!J$23 -> 2020-03-31 | K3: =Time!K$23 -> 2021-03-31 | L3: =Time!L$23 -> 2022-03-31 | M3: =Time!M$23 -> 2023-03-31 | N3: =Time!N$23 -> 2024-03-31 | O3: =Time!O$23 -> 2025-03-31 | P3: =Time!P$23 -> 2026-03-31
E4: =Time!E$59 -> Pre Forecast vs Forecast | J4: =Time!J$59 -> Pre Fcst | K4: =Time!K$59 -> Forecast | L4: =Time!L$59 -> Forecast | M4: =Time!M$59 -> Forecast | N4: =Time!N$59 -> Forecast | O4: =Time!O$59 -> Forecast | P4: =Time!P$59 -> Post-Fcst
E5: =Time!E$101 -> Financial Year Ending | J5: =Time!J$101 -> 2020 | K5: =Time!K$101 -> 2021 | L5: =Time!L$101 -> 2022 | M5: =Time!M$101 -> 2023 | N5: =Time!N$101 -> 2024 | O5: =Time!O$101 -> 2025 | P5: =Time!P$101 -> 2026
E6: =Time!E$11 -> Model column counter | F6: Constant | G6: Unit | H6: Total | J6: =Time!J$11 -> 1 | K6: =Time!K$11 -> 2 | L6: =Time!L$11 -> 3 | M6: =Time!M$11 -> 4 | N6: =Time!N$11 -> 5 | O6: =Time!O$11 -> 6 | P6: =Time!P$11 -> 7
A8: BIORESOURCES
C10: Adjustment For Wage Growth
D12: Totex for wage adjustment
E13: =InpActive!E$150 -> Base Costs - BIO - Real | F13: =InpActive!F$150 -> 114.7 | G13: =InpActive!G$150 -> £m
E14: =InpActive!E$151 -> WINEP / NEP ~ In-the-Round - BIO - Real | F14: =InpActive!F$151 -> 0 | G14: =InpActive!G$151 -> £m
E15: Totex available for wage indexation adjustment - BIO - Real | F15: =SUM(F13:F14) -> 114.7 | G15: £m
D17: Profile for totex for wage adjustment
E18: =InpActive!E$153 -> Opex Split Profile - Base costs - BIO | F18: =InpActive!F$153 -> 0 | G18: =InpActive!G$153 -> % | H18: =InpActive!H$153 -> 0 | I18: =InpActive!I$153 -> 0 | J18: =InpActive!J$153 -> 0 | K18: =InpActive!K$153 -> 0.1455744815 | L18: =InpActive!L$153 -> 0.146256727 | M18: =InpActive!M$153 -> 0.1469492123 | N18: =InpActive!N$153 -> 0.1476520928 | O18: =InpActive!O$153 -> 0.1479780122 | P18: =InpActive!P$153 -> 0
E19: =InpActive!E$154 -> Capex Split Profile - Base costs - BIO | F19: =InpActive!F$154 -> 0 | G19: =InpActive!G$154 -> % | H19: =InpActive!H$154 -> 0 | I19: =InpActive!I$154 -> 0 | J19: =InpActive!J$154 -> 0 | K19: =InpActive!K$154 -> 0.05259070868 | L19: =InpActive!L$154 -> 0.04583475159 | M19: =InpActive!M$154 -> 0.06355529478 | N19: =InpActive!N$154 -> 0.04437280677 | O19: =InpActive!O$154 -> 0.05923591238 | P19: =InpActive!P$154 -> 0
E20: Totex profile - BIO | G20: % | H20: =SUM(J20:P20) -> 1 | J20: =SUM(J18:J19) -> 0 | K20: 0.1981651902 | L20: 0.1920914786 | M20: 0.2105045071 | N20: 0.1920248996 | O20: 0.2072139245 | P20: 0
E21: Totex profile - 5 year percentage - BIO | F21: =H$20 -> 1 | G21: %
E23: =E$21 -> Totex profile - 5 year percentage - BIO | F23: =F$21 -> 1 | G23: =G$21 -> %
E24: WWN Totex profile 100% check | F24: =IF(OR($F$23 = 1, F23 = 0), 0, 1) -> 0 | G24: Check
E26: =E$15 -> Totex available for wage indexation adjustment - BIO - Real | F26: =F$15 -> 114.7 | G26: =G$15 -> £m
E27: =Time!E$54 -> Forecast Period Flag | F27: =Time!F$54 -> 0 | G27: =Time!G$54 -> flag | H27: =Time!H$54 -> 5 | I27: =Time!I$54 -> 0 | J27: =Time!J$54 -> 0 | K27: =Time!K$54 -> 1 | L27: =Time!L$54 -> 1 | M27: =Time!M$54 -> 1 | N27: =Time!N$54 -> 1 | O27: =Time!O$54 -> 1 | P27: =Time!P$54 -> 0
E28: =E$20 -> Totex profile - BIO | F28: 0 | G28: % | H28: 1 | I28: 0 | J28: 0 | K28: 0.1981651902 | L28: 0.1920914786 | M28: 0.2105045071 | N28: 0.1920248996 | O28: 0.2072139245 | P28: 0
E29: Profiled Totex available for wage indexation adjustment - BIO - Real | G29: £m | H29: =SUM(J29:P29) -> 114.7 | J29: =IF(J27 = 1, J28 * $F26, 0) -> 0 | K29: 22.72954731 | L29: 22.0328926 | M29: 24.14486696 | N29: 22.02525598 | O29: 23.76743714 | P29: 0
D31: Totex applicable for wage adjustment by year
E32: =InpActive!E$259 -> Percentage totex linked to wage growth - BIO | F32: =InpActive!F$259 -> 0.386 | G32: =InpActive!G$259 -> %
E33: =E29 -> Profiled Totex available for wage indexation adjustment - BIO - Real | F33: 0 | G33: £m | H33: 114.7 | I33: 0 | J33: 0 | K33: 22.72954731 | L33: 22.0328926 | M33: 24.14486696 | N33: 22.02525598 | O33: 23.76743714 | P33: 0
E34: Profiled Net totex available for wage adj - BIO - Real | G34: £m | H34: =SUM(J34:P34) -> 44.2742 | J34: =J33 * $F32 -> 0 | K34: 8.773605263 | L34: 8.504696543 | M34: 9.319918646 | N34: 8.50174881 | O34: 9.174230738 | P34: 0
D36: Adjustment factor for wage linked totex
E37: =Time!E$54 -> Forecast Period Flag | F37: =Time!F$54 -> 0 | G37: =Time!G$54 -> flag | H37: =Time!H$54 -> 5 | I37: =Time!I$54 -> 0 | J37: =Time!J$54 -> 0 | K37: =Time!K$54 -> 1 | L37: =Time!L$54 -> 1 | M37: =Time!M$54 -> 1 | N37: =Time!N$54 -> 1 | O37: =Time!O$54 -> 1 | P37: =Time!P$54 -> 0
E38: =E$34 -> Profiled Net totex available for wage adj - BIO - Real | F38: 0 | G38: £m | H38: 44.2742 | I38: 0 | J38: 0 | K38: 8.773605263 | L38: 8.504696543 | M38: 9.319918646 | N38: 8.50174881 | O38: 9.174230738 | P38: 0
E39: ='Cost sharing calculations'!E$26 -> Real adjustment factor for wages | F39: ='Cost sharing calculations'!F$26 -> 0 | G39: ='Cost sharing calculations'!G$26 -> % | H39: ='Cost sharing calculations'!H$26 -> 0 | I39: ='Cost sharing calculations'!I$26 -> 0 | J39: ='Cost sharing calculations'!J$26 -> 0 | K39: ='Cost sharing calculations'!K$26 -> 1.008871737 | L39: ='Cost sharing calculations'!L$26 -> 0.9954600068 | M39: ='Cost sharing calculations'!M$26 -> 0.9770943148 | N39: ='Cost sharing calculations'!N$26 -> 0.9740067415 | O39: ='Cost sharing calculations'!O$26 -> 0.9677837124 | P39: ='Cost sharing calculations'!P$26 -> 0
E40: Profiled adjustment wage related totex - BIO - Real | G40: £m | H40: =SUM(J40:P40) -> 43.58339892 | J40: =IF(J37 = 1, J38 * J39, 0) -> 0 | K40: 8.851442378 | L40: 8.466085278 | M40: 9.106439523 | N40: 8.280760656 | O40: 8.878671082 | P40: 0
D42: Variance to forecast wage linked totex
E43: =E$40 -> Profiled adjustment wage related totex - BIO - Real | F43: 0 | G43: £m | H43: 43.58339892 | I43: 0 | J43: 0 | K43: 8.851442378 | L43: 8.466085278 | M43: 9.106439523 | N43: 8.280760656 | O43: 8.878671082 | P43: 0
E44: =E$34 -> Profiled Net totex available for wage adj - BIO - Real | F44: 0 | G44: £m | H44: 44.2742 | I44: 0 | J44: 0 | K44: 8.773605263 | L44: 8.504696543 | M44: 9.319918646 | N44: 8.50174881 | O44: 9.174230738 | P44: 0
E45: Variance to forecast totex for wage adjustment- BIO | G45: £m | H45: =SUM(J45:P45) -> -0.6908010833 | J45: =J43 - J44 -> 0 | K45: 0.07783711542 | L45: -0.03861126483 | M45: -0.213479123 | N45: -0.2209881546 | O45: -0.2955596563 | P45: 0
E47: =InpActive!E$288 -> Financing cost index | F47: =InpActive!F$288 -> 0 | G47: =InpActive!G$288 -> Index | H47: =InpActive!H$288 -> 0 | I47: =InpActive!I$288 -> 0 | J47: =InpActive!J$288 -> 0 | K47: =InpActive!K$288 -> 4 | L47: =InpActive!L$288 -> 3 | M47: =InpActive!M$288 -> 2 | N47: =InpActive!N$288 -> 1 | O47: =InpActive!O$288 -> 0 | P47: =InpActive!P$288 -> 0
E48: =InpActive!E$293 -> Real WACC CPIH Deflated - BIO | F48: =InpActive!F$293 -> 0.0292 | G48: =InpActive!G$293 -> %
E49: Time value of money factor - BIO | G49: Factor | J49: =(1+$F48) ^ J47 -> 1 | K49: 1.122016155 | L49: 1.090182817 | M49: 1.05925264 | N49: 1.0292 | O49: 1 | P49: 1
D51: Wage totex overfunded/unfunded at PR19
E52: =E$45 -> Variance to forecast totex for wage adjustment- BIO | F52: 0 | G52: £m | H52: -0.6908010833 | I52: 0 | J52: 0 | K52: 0.07783711542 | L52: -0.03861126483 | M52: -0.213479123 | N52: -0.2209881546 | O52: -0.2955596563 | P52: 0
E53: =E49 -> Time value of money factor - BIO | F53: 0 | G53: Factor | H53: 0 | I53: 0 | J53: 1 | K53: 1.122016155 | L53: 1.090182817 | M53: 1.05925264 | N53: 1.0292 | O53: 1 | P53: 1
E54: Variance to forecast totex for wage adjustment - NPV adjusted - BIO | G54: £m | H54: =SUM(J54:P54) -> -0.7038878261 | J54: =J52*J53 -> 0 | K54: 0.08733450099 | L54: -0.04209333746 | M54: -0.2261283247 | N54: -0.2274410087 | O54: -0.2955596563 | P54: 0
E55: Total adjustment for wage related totex - BIO - Real | F55: =H54 -> -0.7038878261 | G55: £m
C58: Performance related pay recovery mechanism adjustment
E60: =InpActive!E$170 -> Performance related pay recovery mechanism adjustment - BIO - Nominal (Neg) | F60: =InpActive!F$170 -> 0 | G60: =InpActive!G$170 -> £m | H60: =InpActive!H$170 -> 0 | I60: =InpActive!I$170 -> 0 | J60: =InpActive!J$170 -> 0 | K60: =InpActive!K$170 -> 0 | L60: =InpActive!L$170 -> 0 | M60: =InpActive!M$170 -> 0 | N60: =InpActive!N$170 -> 0 | O60: =InpActive!O$170 -> 0 | P60: =InpActive!P$170 -> 0
E61: =Index!E$43 -> CPI(H): Fin year average - inflate from base year 2017-18 average - CALC | F61: =Index!F$43 -> 0 | G61: =Index!G$43 -> % | H61: =Index!H$43 -> 0 | I61: =Index!I$43 -> 0 | J61: =Index!J$43 -> 1.038621462 | K61: =Index!K$43 -> 1.04693747 | L61: =Index!L$43 -> 1.085399008 | M61: =Index!M$43 -> 1.180633296 | N61: =Index!N$43 -> 1.246121862 | O61: =Index!O$43 -> 1.283144091 | P61: =Index!P$43 -> 1.313449544
E62: Performance related pay recovery mechanism adjustment - BIO - real | G62: £m | H62: =SUM(K62:O62) -> 0 | J62: =J60 / J61 -> 0 | K62: =K60 / K61 -> 0 | L62: =L60 / L61 -> 0 | M62: 0 | N62: 0 | O62: 0 | P62: 0
E63: Total Performance related pay recovery mechanism adjustment - BIO - real | F63: =H62 -> 0 | G63: £m
C65: CMA exclusions
E67: =InpActive!E$165 -> Actuals for CMA excluded items - BIO - nominal | F67: =InpActive!F$165 -> 0 | G67: =InpActive!G$165 -> £m | H67: =InpActive!H$165 -> 0 | I67: =InpActive!I$165 -> 0 | J67: =InpActive!J$165 -> 0 | K67: =InpActive!K$165 -> 0 | L67: =InpActive!L$165 -> 0 | M67: =InpActive!M$165 -> 0 | N67: =InpActive!N$165 -> 0 | O67: =InpActive!O$165 -> 0 | P67: =InpActive!P$165 -> 0
E68: =Index!E$43 -> CPI(H): Fin year average - inflate from base year 2017-18 average - CALC | F68: =Index!F$43 -> 0 | G68: =Index!G$43 -> % | H68: =Index!H$43 -> 0 | I68: =Index!I$43 -> 0 | J68: =Index!J$43 -> 1.038621462 | K68: =Index!K$43 -> 1.04693747 | L68: =Index!L$43 -> 1.085399008 | M68: =Index!M$43 -> 1.180633296 | N68: =Index!N$43 -> 1.246121862 | O68: =Index!O$43 -> 1.283144091 | P68: =Index!P$43 -> 1.313449544
E69: Actuals for CMA excluded items - BIO - real | G69: £m | J69: =J67 / J68 -> 0 | K69: =K67 / K68 -> 0 | L69: =L67 / L68 -> 0 | M69: 0 | N69: 0 | O69: 0 | P69: 0
E71: =InpActive!E$166 -> Allowance for CMA excluded items - BIO - real | F71: =InpActive!F$166 -> 0 | G71: =InpActive!G$166 -> £m | H71: =InpActive!H$166 -> 0 | I71: =InpActive!I$166 -> 0 | J71: =InpActive!J$166 -> 0 | K71: =InpActive!K$166 -> 0 | L71: =InpActive!L$166 -> 0 | M71: =InpActive!M$166 -> 0 | N71: =InpActive!N$166 -> 0 | O71: =InpActive!O$166 -> 0 | P71: =InpActive!P$166 -> 0
E72: =E69 -> Actuals for CMA excluded items - BIO - real | F72: =F69 -> 0 | G72: £m | H72: 0 | I72: 0 | J72: 0 | K72: =K69 -> 0 | L72: =L69 -> 0 | M72: 0 | N72: 0 | O72: 0 | P72: 0
E73: Variance to allowances for CMA excluded items - BIO | G73: £m | H73: =SUM(J73:P73) -> 0 | J73: =J72-J71 -> 0 | K73: =K72-K71 -> 0 | L73: =L72-L71 -> 0 | M73: 0 | N73: 0 | O73: 0 | P73: 0
E75: =E$73 -> Variance to allowances for CMA excluded items - BIO | F75: =F$73 -> 0 | G75: £m | H75: 0 | I75: 0 | J75: 0 | K75: =K$73 -> 0 | L75: 0 | M75: 0 | N75: 0 | O75: 0 | P75: 0
E76: =E$49 -> Time value of money factor - BIO | F76: =F$49 -> 0 | G76: Factor | H76: 0 | I76: 0 | J76: 1 | K76: 1.122016155 | L76: 1.090182817 | M76: 1.05925264 | N76: 1.0292 | O76: 1 | P76: 1
E77: Time value adjusted variance to allowances for CMA excluded items - BIO - real | G77: £m | H77: =SUM(J77:P77) -> 0 | J77: =J75 * J76 -> 0 | K77: =K75 * K76 -> 0 | L77: 0 | M77: 0 | N77: 0 | O77: 0 | P77: 0
E78: Total variance to allowances for CMA excluded items - BIO - real | F78: =$H77 -> 0 | G78: £m
E80: =E78 -> Total variance to allowances for CMA excluded items - BIO - real | F80: =F78 -> 0 | G80: =G78 -> £m
E81: =InpActive!E167 -> CMA excluded items sharing rate - BIO - real | F81: =InpActive!F167 -> 0 | G81: =InpActive!G167 -> %
E82: Allowable adjustment for CMA excluded items - BIO - Real | F82: =(F80* F81) -> 0 | G82: £m
E84: =E55 -> Total adjustment for wage related totex - BIO - Real | F84: =F55 -> -0.7038878261 | G84: =G55 -> £m
E85: =E82 -> Allowable adjustment for CMA excluded items - BIO - Real | F85: =F82 -> 0 | G85: £m
E86: =E63 -> Total Performance related pay recovery mechanism adjustment - BIO - real | F86: 0 | G86: £m
E87: Total adjustment for cost sharing - BIO - Real | F87: =SUM(F84:F85) + F86 -> -0.7038878261 | G87: £m
E89: =E87 -> Total adjustment for cost sharing - BIO - Real | F89: =F87 -> -0.7038878261 | G89: £m
E90: =InpActive!E162 -> Weighted average PAYG rate - BIO | F90: =InpActive!F162 -> 0.73 | G90: =InpActive!G162 -> %
E91: Cost sharing Revenue adjustment - BIO - Real | F91: =F90 * F89 -> -0.5138381131 | G91: £m
E93: =E87 -> Total adjustment for cost sharing - BIO - Real | F93: =F87 -> -0.7038878261 | G93: =G87 -> £m
E94: =InpActive!E162 -> Weighted average PAYG rate - BIO | F94: =InpActive!F162 -> 0.73 | G94: =InpActive!G162 -> %
E95: Cost sharing RCV adjustment - BIO - Real | F95: =F93 * (1 - F94) -> -0.190049713 | G95: £m
A100: END OF SHEET

Sheet Thames Tideway Tunnel
A1: =RIGHT(CELL("filename", $A$1), LEN(CELL("filename", $A$1)) - SEARCH("]", CELL("filename", $A$1))) -> 
E2: =Time!E$22 -> Model Period BEG | J2: =Time!J$22 -> 2019-04-01 | K2: =Time!K$22 -> 2020-04-01 | L2: =Time!L$22 -> 2021-04-01 | M2: =Time!M$22 -> 2022-04-01 | N2: =Time!N$22 -> 2023-04-01 | O2: =Time!O$22 -> 2024-04-01 | P2: =Time!P$22 -> 2025-04-01
E3: =Time!E$23 -> Model Period END | F3: =Check!F$8 -> 0 | G3: Error chks | J3: =Time!J$23 -> 2020-03-31 | K3: =Time!K$23 -> 2021-03-31 | L3: =Time!L$23 -> 2022-03-31 | M3: =Time!M$23 -> 2023-03-31 | N3: =Time!N$23 -> 2024-03-31 | O3: =Time!O$23 -> 2025-03-31 | P3: =Time!P$23 -> 2026-03-31
E4: =Time!E$59 -> Pre Forecast vs Forecast | J4: =Time!J$59 -> Pre Fcst | K4: =Time!K$59 -> Forecast | L4: =Time!L$59 -> Forecast | M4: =Time!M$59 -> Forecast | N4: =Time!N$59 -> Forecast | O4: =Time!O$59 -> Forecast | P4: =Time!P$59 -> Post-Fcst
E5: =Time!E$101 -> Financial Year Ending | J5: =Time!J$101 -> 2020 | K5: =Time!K$101 -> 2021 | L5: =Time!L$101 -> 2022 | M5: =Time!M$101 -> 2023 | N5: =Time!N$101 -> 2024 | O5: =Time!O$101 -> 2025 | P5: =Time!P$101 -> 2026
E6: =Time!E$11 -> Model column counter | F6: Constant | G6: Unit | H6: Total | J6: =Time!J$11 -> 1 | K6: =Time!K$11 -> 2 | L6: =Time!L$11 -> 3 | M6: =Time!M$11 -> 4 | N6: =Time!N$11 -> 5 | O6: =Time!O$11 -> 6 | P6: =Time!P$11 -> 7
A8: THAMES TIDEWAY TUNNEL
C10: Adjustment For Wage Growth
D12: Profile for totex for wage adjustment
E13: =InpActive!E$177 -> Opex Split Profile - Base costs - TTT | F13: =InpActive!F$177 -> 0 | G13: =InpActive!G$177 -> % | H13: =InpActive!H$177 -> 0 | I13: =InpActive!I$177 -> 0 | J13: =InpActive!J$177 -> 0 | K13: =InpActive!K$177 -> 0 | L13: =InpActive!L$177 -> 0 | M13: =InpActive!M$177 -> 0 | N13: =InpActive!N$177 -> 0 | O13: =InpActive!O$177 -> 0 | P13: =InpActive!P$177 -> 0
E14: =InpActive!E$178 -> Capex Split Profile - Base costs - TTT | F14: =InpActive!F$178 -> 0 | G14: =InpActive!G$178 -> % | H14: =InpActive!H$178 -> 0 | I14: =InpActive!I$178 -> 0 | J14: =InpActive!J$178 -> 0 | K14: =InpActive!K$178 -> 0 | L14: =InpActive!L$178 -> 0 | M14: =InpActive!M$178 -> 0 | N14: =InpActive!N$178 -> 0 | O14: =InpActive!O$178 -> 0 | P14: =InpActive!P$178 -> 0
E15: Totex profile - TTT | G15: % | H15: =SUM(J15:P15) -> 0 | J15: =SUM(J13:J14) -> 0 | K15: 0 | L15: 0 | M15: 0 | N15: 0 | O15: 0 | P15: 0
E16: Totex profile - 5 year percentage - TTT | F16: =H15 -> 0 | G16: %
E18: =E$16 -> Totex profile - 5 year percentage - TTT | F18: =F$16 -> 0 | G18: =G$16 -> %
E19: TTT Totex profile 100% check | F19: =IF(OR($F$18 = 1, F18 = 0), 0, 1) -> 0 | G19: Check
E21: =InpActive!E$175 -> Base Costs - TTT - Real | F21: =InpActive!F$175 -> 0 | G21: =InpActive!G$175 -> £m
E22: =Time!E$54 -> Forecast Period Flag | F22: =Time!F$54 -> 0 | G22: =Time!G$54 -> flag | H22: =Time!H$54 -> 5 | I22: =Time!I$54 -> 0 | J22: =Time!J$54 -> 0 | K22: =Time!K$54 -> 1 | L22: =Time!L$54 -> 1 | M22: =Time!M$54 -> 1 | N22: =Time!N$54 -> 1 | O22: =Time!O$54 -> 1 | P22: =Time!P$54 -> 0
E23: =E$15 -> Totex profile - TTT | F23: 0 | G23: % | H23: 0 | I23: 0 | J23: 0 | K23: 0 | L23: 0 | M23: 0 | N23: 0 | O23: 0 | P23: 0
E24: Profiled Totex available for wage indexation adjustment - TTT - Real | G24: £m | H24: =SUM(J24:P24) -> 0 | J24: =IF(J22 = 1, J23 * $F21, 0) -> 0 | K24: 0 | L24: 0 | M24: 0 | N24: 0 | O24: 0 | P24: 0
D26: Totex applicable for wage adjustment by year
E27: =InpActive!E261 -> Percentage totex linked to wage growth - TTT | F27: =InpActive!F261 -> 0.386 | G27: =InpActive!G261 -> %
E28: =E24 -> Profiled Totex available for wage indexation adjustment - TTT - Real | F28: 0 | G28: £m | H28: 0 | I28: 0 | J28: 0 | K28: 0 | L28: 0 | M28: 0 | N28: 0 | O28: 0 | P28: 0
E29: Profiled Net totex available for wage adj - TTT - Real | G29: £m | H29: =SUM(J29:P29) -> 0 | J29: =J28 * $F27 -> 0 | K29: 0 | L29: 0 | M29: 0 | N29: 0 | O29: 0 | P29: 0
D31: Adjustment factor for wage linked totex
E32: =Time!E$54 -> Forecast Period Flag | F32: =Time!F$54 -> 0 | G32: =Time!G$54 -> flag | H32: =Time!H$54 -> 5 | I32: =Time!I$54 -> 0 | J32: =Time!J$54 -> 0 | K32: =Time!K$54 -> 1 | L32: =Time!L$54 -> 1 | M32: =Time!M$54 -> 1 | N32: =Time!N$54 -> 1 | O32: =Time!O$54 -> 1 | P32: =Time!P$54 -> 0
E33: =E$29 -> Profiled Net totex available for wage adj - TTT - Real | F33: 0 | G33: £m | H33: 0 | I33: 0 | J33: 0 | K33: 0 | L33: 0 | M33: 0 | N33: 0 | O33: 0 | P33: 0
E34: ='Cost sharing calculations'!E26 -> Real adjustment factor for wages | F34: ='Cost sharing calculations'!F26 -> 0 | G34: ='Cost sharing calculations'!G26 -> % | H34: ='Cost sharing calculations'!H26 -> 0 | I34: ='Cost sharing calculations'!I26 -> 0 | J34: ='Cost sharing calculations'!J26 -> 0 | K34: ='Cost sharing calculations'!K26 -> 1.008871737 | L34: ='Cost sharing calculations'!L26 -> 0.9954600068 | M34: ='Cost sharing calculations'!M26 -> 0.9770943148 | N34: ='Cost sharing calculations'!N26 -> 0.9740067415 | O34: ='Cost sharing calculations'!O26 -> 0.9677837124 | P34: ='Cost sharing calculations'!P26 -> 0
E35: Profiled adjustment wage related totex - TTT - Real | G35: £m | H35: =SUM(J35:P35) -> 0 | J35: =IF(J32 = 1, J33 * J34, 0) -> 0 | K35: 0 | L35: 0 | M35: 0 | N35: 0 | O35: 0 | P35: 0
D37: Variance to forecast wage linked totex
E38: =E$35 -> Profiled adjustment wage related totex - TTT - Real | F38: 0 | G38: £m | H38: 0 | I38: 0 | J38: 0 | K38: 0 | L38: 0 | M38: 0 | N38: 0 | O38: 0 | P38: 0
E39: =E$29 -> Profiled Net totex available for wage adj - TTT - Real | F39: 0 | G39: £m | H39: 0 | I39: 0 | J39: 0 | K39: 0 | L39: 0 | M39: 0 | N39: 0 | O39: 0 | P39: 0
E40: Variance to forecast totex for wage adjustment - TTT | G40: £m | H40: =SUM(J40:P40) -> 0 | J40: =J38 - J39 -> 0 | K40: 0 | L40: 0 | M40: 0 | N40: 0 | O40: 0 | P40: 0
D42: Wage totex overfunded/unfunded at PR19
E44: =InpActive!E288 -> Financing cost index | F44: =InpActive!F288 -> 0 | G44: =InpActive!G288 -> Index | H44: =InpActive!H288 -> 0 | I44: =InpActive!I288 -> 0 | J44: =InpActive!J288 -> 0 | K44: =InpActive!K288 -> 4 | L44: =InpActive!L288 -> 3 | M44: =InpActive!M288 -> 2 | N44: =InpActive!N288 -> 1 | O44: =InpActive!O288 -> 0 | P44: =InpActive!P288 -> 0
E45: =InpActive!E294 -> Real WACC CPIH Deflated - TTT | F45: =InpActive!F294 -> 0 | G45: =InpActive!G294 -> %
E46: Time value of money factor - TTT | G46: Factor | J46: =(1+$F45) ^ J44 -> 1 | K46: 1 | L46: 1 | M46: 1 | N46: 1 | O46: 1 | P46: 1
E48: =E$40 -> Variance to forecast totex for wage adjustment - TTT | F48: 0 | G48: £m | H48: 0 | I48: 0 | J48: 0 | K48: 0 | L48: 0 | M48: 0 | N48: 0 | O48: 0 | P48: 0
E49: =E46 -> Time value of money factor - TTT | F49: 0 | G49: Factor | H49: 0 | I49: 0 | J49: 1 | K49: 1 | L49: 1 | M49: 1 | N49: 1 | O49: 1 | P49: 1
E50: Variance to forecast totex for wage adjustment - NPV adjusted - WWN | G50: £m | H50: =SUM(J50:P50) -> 0 | J50: =J48*J49 -> 0 | K50: 0 | L50: 0 | M50: 0 | N50: 0 | O50: 0 | P50: 0
E51: (Under)/Overfunded wage related totex at PR19 - TTT | F51: =H50 * -1 -> 0 | G51: £m
C53: Cost sharing on net totex available for reconciliation
E55: =InpActive!E$184 -> Net totex for cost sharing reconciliation - TTT - nominal | F55: =InpActive!F$184 -> 0 | G55: =InpActive!G$184 -> £m | H55: =InpActive!H$184 -> 0 | I55: =InpActive!I$184 -> 0 | J55: =InpActive!J$184 -> 0 | K55: =InpActive!K$184 -> 0 | L55: =InpActive!L$184 -> 0 | M55: =InpActive!M$184 -> 0 | N55: =InpActive!N$184 -> 0 | O55: =InpActive!O$184 -> 0 | P55: =InpActive!P$184 -> 0
E56: =Index!E$43 -> CPI(H): Fin year average - inflate from base year 2017-18 average - CALC | F56: =Index!F$43 -> 0 | G56: =Index!G$43 -> % | H56: =Index!H$43 -> 0 | I56: =Index!I$43 -> 0 | J56: =Index!J$43 -> 1.038621462 | K56: =Index!K$43 -> 1.04693747 | L56: =Index!L$43 -> 1.085399008 | M56: =Index!M$43 -> 1.180633296 | N56: =Index!N$43 -> 1.246121862 | O56: =Index!O$43 -> 1.283144091 | P56: =Index!P$43 -> 1.313449544
E57: Actual net totex for cost sharing reconciliation - TTT - Real | G57: £m | J57: =J55 / J56 -> 0 | K57: 0 | L57: 0 | M57: 0 | N57: 0 | O57: 0 | P57: 0
E59: =InpActive!E$186 -> Performance related pay recovery mechanism adjustment - TTT - Nominal (Neg) | F59: =InpActive!F$186 -> 0 | G59: =InpActive!G$186 -> £m | H59: =InpActive!H$186 -> 0 | I59: =InpActive!I$186 -> 0 | J59: =InpActive!J$186 -> 0 | K59: =InpActive!K$186 -> 0 | L59: =InpActive!L$186 -> 0 | M59: =InpActive!M$186 -> 0 | N59: =InpActive!N$186 -> 0 | O59: =InpActive!O$186 -> 0 | P59: =InpActive!P$186 -> 0
E60: =Index!E$43 -> CPI(H): Fin year average - inflate from base year 2017-18 average - CALC | F60: =Index!F$43 -> 0 | G60: =Index!G$43 -> % | H60: =Index!H$43 -> 0 | I60: =Index!I$43 -> 0 | J60: =Index!J$43 -> 1.038621462 | K60: =Index!K$43 -> 1.04693747 | L60: =Index!L$43 -> 1.085399008 | M60: =Index!M$43 -> 1.180633296 | N60: =Index!N$43 -> 1.246121862 | O60: =Index!O$43 -> 1.283144091 | P60: =Index!P$43 -> 1.313449544
E61: Performance related pay recovery mechanism adjustment - TTT - real | G61: £m | H61: =SUM(K61:O61) -> 0 | J61: =J59 / J60 -> 0 | K61: =K59 / K60 -> 0 | L61: =L59 / L60 -> 0 | M61: 0 | N61: 0 | O61: 0 | P61: 0
E62: Total Performance related pay recovery mechanism adjustment - TTT - real | F62: =H61 -> 0 | G62: £m
E64: =E$57 -> Actual net totex for cost sharing reconciliation - TTT - Real | F64: 0 | G64: £m | H64: 0 | I64: 0 | J64: 0 | K64: 0 | L64: 0 | M64: 0 | N64: 0 | O64: 0 | P64: 0
E65: =E61 -> Performance related pay recovery mechanism adjustment - TTT - real | F65: 0 | G65: £m | H65: 0 | I65: 0 | J65: 0 | K65: 0 | L65: 0 | M65: 0 | N65: 0 | O65: 0 | P65: 0
E66: =Time!E$54 -> Forecast Period Flag | F66: =Time!F$54 -> 0 | G66: =Time!G$54 -> flag | H66: =Time!H$54 -> 5 | I66: =Time!I$54 -> 0 | J66: =Time!J$54 -> 0 | K66: =Time!K$54 -> 1 | L66: =Time!L$54 -> 1 | M66: =Time!M$54 -> 1 | N66: =Time!N$54 -> 1 | O66: =Time!O$54 -> 1 | P66: =Time!P$54 -> 0
E67: Actual net totex for cost sharing reconciliation - TTT - Real | G67: £m | H67: =SUM(J67:P67) -> 0 | J67: =(J64 + J65) * J66 -> 0 | K67: =(K64 + K65) * K66 -> 0 | L67: 0 | M67: 0 | N67: 0 | O67: 0 | P67: 0
D69: Profile for net totex for cost sharing
E70: =InpActive!E180 -> Opex split profile - Cost sharing - TTT | F70: =InpActive!F180 -> 0 | G70: =InpActive!G180 -> % | H70: =InpActive!H180 -> 0 | I70: =InpActive!I180 -> 0 | J70: =InpActive!J180 -> 0 | K70: =InpActive!K180 -> 0 | L70: =InpActive!L180 -> 0 | M70: =InpActive!M180 -> 0 | N70: =InpActive!N180 -> 0 | O70: =InpActive!O180 -> 0 | P70: =InpActive!P180 -> 0
E71: =InpActive!E181 -> Capex split profile - Cost sharing - TTT | F71: =InpActive!F181 -> 0 | G71: =InpActive!G181 -> % | H71: =InpActive!H181 -> 0 | I71: =InpActive!I181 -> 0 | J71: =InpActive!J181 -> 0 | K71: =InpActive!K181 -> 0 | L71: =InpActive!L181 -> 0 | M71: =InpActive!M181 -> 0 | N71: =InpActive!N181 -> 0 | O71: =InpActive!O181 -> 0 | P71: =InpActive!P181 -> 0
E72: Totex profile - Cost Sharing - TTT | G72: % | H72: =SUM(J72:P72) -> 0 | J72: =SUM(J70:J71) -> 0 | K72: 0 | L72: 0 | M72: 0 | N72: 0 | O72: 0 | P72: 0
E73: Totex profile - Cost Sharing - 5 year percentage - TTT | F73: =$H$72 -> 0 | G73: %
E75: =E$73 -> Totex profile - Cost Sharing - 5 year percentage - TTT | F75: =F$73 -> 0 | G75: =G$73 -> %
E76: TTT Totex profile - Cost Sharing 100% check | F76: =IF(OR(F75 = 1, F75 = 0), 0, 1) -> 0 | G76: Check
E78: =InpActive!E185 -> Net totex available for cost sharing - TTT - Real | F78: =InpActive!F185 -> 0 | G78: =InpActive!G185 -> £m
E79: =E$72 -> Totex profile - Cost Sharing - TTT | F79: 0 | G79: % | H79: 0 | I79: 0 | J79: 0 | K79: 0 | L79: 0 | M79: 0 | N79: 0 | O79: 0 | P79: 0
E80: Net totex available for cost sharing profiled - TTT - Real | G80: £m | H80: =SUM(J80:P80) -> 0 | J80: =J79 * $F78 -> 0 | K80: 0 | L80: 0 | M80: 0 | N80: 0 | O80: 0 | P80: 0
E82: =E$80 -> Net totex available for cost sharing profiled - TTT - Real | F82: 0 | G82: £m | H82: 0 | I82: 0 | J82: 0 | K82: 0 | L82: 0 | M82: 0 | N82: 0 | O82: 0 | P82: 0
E83: =E$40 -> Variance to forecast totex for wage adjustment - TTT | F83: 0 | G83: £m | H83: 0 | I83: 0 | J83: 0 | K83: 0 | L83: 0 | M83: 0 | N83: 0 | O83: 0 | P83: 0
E84: =InpActive!E188 -> Total final WINEP reconciliation - TTT - real | F84: =InpActive!F188 -> 0 | G84: =InpActive!G188 -> £m | H84: =InpActive!H188 -> 0 | I84: =InpActive!I188 -> 0 | J84: =InpActive!J188 -> 0 | K84: =InpActive!K188 -> 0 | L84: =InpActive!L188 -> 0 | M84: =InpActive!M188 -> 0 | N84: =InpActive!N188 -> 0 | O84: =InpActive!O188 -> 0 | P84: =InpActive!P188 -> 0
E85: =E61 -> Performance related pay recovery mechanism adjustment - TTT - real | F85: 0 | G85: £m | H85: 0 | I85: 0 | J85: 0 | K85: 0 | L85: 0 | M85: 0 | N85: 0 | O85: 0 | P85: 0
E86: Net totex available for cost sharing after adjustments profiled - TTT - Real | G86: £m | H86: =SUM(J86:P86) -> 0 | J86: =SUM(J82:J85) -> 0 | K86: =SUM(K82:K85) -> 0 | L86: =SUM(L82:L85) -> 0 | M86: 0 | N86: 0 | O86: 0 | P86: 0
D88: Variance to forecast net totex for cost sharing
E89: =E$67 -> Actual net totex for cost sharing reconciliation - TTT - Real | F89: 0 | G89: £m | H89: 0 | I89: 0 | J89: 0 | K89: 0 | L89: 0 | M89: 0 | N89: 0 | O89: 0 | P89: 0
E90: =E$86 -> Net totex available for cost sharing after adjustments profiled - TTT - Real | F90: 0 | G90: £m | H90: 0 | I90: 0 | J90: 0 | K90: 0 | L90: 0 | M90: 0 | N90: 0 | O90: 0 | P90: 0
E91: Variance to forecast net totex for cost sharing - TTT - Real | G91: £m | H91: =SUM(J91:P91) -> 0 | J91: =J89 - J90 -> 0 | K91: 0 | L91: 0 | M91: 0 | N91: 0 | O91: 0 | P91: 0
D93: Variance to forecast net totex for cost sharing - Time adjusted
E95: =E$91 -> Variance to forecast net totex for cost sharing - TTT - Real | F95: 0 | G95: £m | H95: 0 | I95: 0 | J95: 0 | K95: 0 | L95: 0 | M95: 0 | N95: 0 | O95: 0 | P95: 0
E96: =E$46 -> Time value of money factor - TTT | F96: 0 | G96: Factor | H96: 0 | I96: 0 | J96: 1 | K96: 1 | L96: 1 | M96: 1 | N96: 1 | O96: 1 | P96: 1
E97: Time adjusted variance to forecast net totex for cost sharing - TTT | G97: £m | H97: =SUM(J97:P97) -> 0 | J97: =J95 * J96 -> 0 | K97: 0 | L97: 0 | M97: 0 | N97: 0 | O97: 0 | P97: 0
E98: Total variance to forecast net totex for cost sharing - TTT | F98: =$H97 -> 0 | G98: £m
D100: Under / Overperformance on net totex for cost sharing
E102: =E$98 -> Total variance to forecast net totex for cost sharing - TTT | F102: =F$98 -> 0 | G102: =G$98 -> £m
E103: =InpActive!E$276 -> Outperformance Rate - TTT | F103: =InpActive!F$276 -> 0 | G103: =InpActive!G$276 -> %
E104: =InpActive!E$277 -> Underperformance Rate - TTT | F104: =InpActive!F$277 -> 0 | G104: =InpActive!G$277 -> %
E105: ="Active Sharing Rate - "& INDEX(E103:E104,MATCH(F105,F103:F104,0)) -> Active Sharing Rate - Outperformance Rate - TTT | F105: =IF(F102<0,F103,F104) -> 0 | G105: %
E107: =E$98 -> Total variance to forecast net totex for cost sharing - TTT | F107: =F$98 -> 0 | G107: =G$98 -> £m
E108: =E$105 -> Active Sharing Rate - Outperformance Rate - TTT | F108: =F$105 -> 0 | G108: =G$105 -> %
E109: Active adjustment for cost sharing - Net totex for cost sharing - TTT - Real | F109: =F107 * (1-F108) -> 0 | G109: £m
E111: =E109 -> Active adjustment for cost sharing - Net totex for cost sharing - TTT - Real | F111: =F109 -> 0 | G111: =G109 -> £m
E112: =E51 -> (Under)/Overfunded wage related totex at PR19 - TTT | F112: =F51 -> 0 | G112: =G51 -> £m
E113: =E62 -> Total Performance related pay recovery mechanism adjustment - TTT - real | F113: =F62 -> 0 | G113: £m
E114: Total adjustment for cost sharing after ex ante allowance - TTT - Real | F114: =F111 - F112 + F113 -> 0 | G114: £m
C116: Cost sharing adjustment RCV/Revenue Split
E118: =E$114 -> Total adjustment for cost sharing after ex ante allowance - TTT - Real | F118: =F$114 -> 0 | G118: =G$114 -> £m
E119: =InpActive!E$190 -> Weighted average PAYG rate - TTT | F119: =InpActive!F$190 -> 0 | G119: =InpActive!G$190 -> %
E120: Cost sharing revenue adjustment - TTT - Real | F120: =F118 * $F$119 -> 0 | G120: £m
E122: =E$114 -> Total adjustment for cost sharing after ex ante allowance - TTT - Real | F122: =F$114 -> 0 | G122: =G$114 -> £m
E123: =InpActive!E$190 -> Weighted average PAYG rate - TTT | F123: =InpActive!F$190 -> 0 | G123: =InpActive!G$190 -> %
E124: Cost sharing RCV adjustment - TTT - Real | F124: =F122 * (1 - $F$123) -> 0 | G124: £m
A127: END OF SHEET

Sheet Green Recovery
A1: =RIGHT(CELL("filename", $A$1), LEN(CELL("filename", $A$1)) - SEARCH("]", CELL("filename", $A$1))) -> 
E2: =Time!E$22 -> Model Period BEG | J2: =Time!J$22 -> 2019-04-01 | K2: =Time!K$22 -> 2020-04-01 | L2: =Time!L$22 -> 2021-04-01 | M2: =Time!M$22 -> 2022-04-01 | N2: =Time!N$22 -> 2023-04-01 | O2: =Time!O$22 -> 2024-04-01 | P2: =Time!P$22 -> 2025-04-01
E3: =Time!E$23 -> Model Period END | F3: =Check!F$8 -> 0 | G3: Error chks | J3: =Time!J$23 -> 2020-03-31 | K3: =Time!K$23 -> 2021-03-31 | L3: =Time!L$23 -> 2022-03-31 | M3: =Time!M$23 -> 2023-03-31 | N3: =Time!N$23 -> 2024-03-31 | O3: =Time!O$23 -> 2025-03-31 | P3: =Time!P$23 -> 2026-03-31
E4: =Time!E$59 -> Pre Forecast vs Forecast | J4: =Time!J$59 -> Pre Fcst | K4: =Time!K$59 -> Forecast | L4: =Time!L$59 -> Forecast | M4: =Time!M$59 -> Forecast | N4: =Time!N$59 -> Forecast | O4: =Time!O$59 -> Forecast | P4: =Time!P$59 -> Post-Fcst
E5: =Time!E$101 -> Financial Year Ending | J5: =Time!J$101 -> 2020 | K5: =Time!K$101 -> 2021 | L5: =Time!L$101 -> 2022 | M5: =Time!M$101 -> 2023 | N5: =Time!N$101 -> 2024 | O5: =Time!O$101 -> 2025 | P5: =Time!P$101 -> 2026
E6: =Time!E$11 -> Model column counter | F6: Constant | G6: Unit | H6: Total | J6: =Time!J$11 -> 1 | K6: =Time!K$11 -> 2 | L6: =Time!L$11 -> 3 | M6: =Time!M$11 -> 4 | N6: =Time!N$11 -> 5 | O6: =Time!O$11 -> 6 | P6: =Time!P$11 -> 7
A9: ACTIVE GREEN RECOVERY COST SHARING RATE
C11: Active Sharing Rates -WR/WN
E13: =E37 -> Variance to green recovery expenditure - WR - real | F13: =F37 -> 0 | G13: =G37 -> £m
E14: =E73 -> Variance to green recovery expenditure - WN - real | F14: =F73 -> 0 | G14: =G73 -> £m
E15: =E108 -> Variance to green recovery expenditure - WWN - real | F15: 0 | G15: £m
E16: Total Variance to green recovery expenditure - real | F16: =SUM(F13:F15) -> 0 | G16: £m
E18: =E$16 -> Total Variance to green recovery expenditure - real | F18: =F$16 -> 0 | G18: £m
E19: =InpActive!E$212 -> Green Recovery Outperformance Rate | F19: =InpActive!F$212 -> 0.1 | G19: =InpActive!G$212 -> %
E20: =InpActive!E$213 -> Green Recovery Underperformance Rate | F20: =InpActive!F$213 -> 0.5 | G20: =InpActive!G$213 -> %
E21: ="Active Sharing Rate - "& INDEX(E19:E20,MATCH(F21,F19:F20,0)) -> Active Sharing Rate - Green Recovery Underperformance Rate | F21: =IF(F18<0,F19,F20) -> 0.5 | G21: %
A24: WATER RESOURCES
E26: =InpActive!E$197 -> Actual Green Recovery Expenditure - WR - nominal | F26: =InpActive!F$197 -> 0 | G26: =InpActive!G$197 -> £m | H26: =InpActive!H$197 -> 0 | I26: =InpActive!I$197 -> 0 | J26: =InpActive!J$197 -> 0 | K26: =InpActive!K$197 -> 0 | L26: =InpActive!L$197 -> 0 | M26: =InpActive!M$197 -> 0 | N26: =InpActive!N$197 -> 0 | O26: =InpActive!O$197 -> 0 | P26: =InpActive!P$197 -> 0
E27: =Index!E$43 -> CPI(H): Fin year average - inflate from base year 2017-18 average - CALC | F27: =Index!F$43 -> 0 | G27: =Index!G$43 -> % | H27: =Index!H$43 -> 0 | I27: =Index!I$43 -> 0 | J27: =Index!J$43 -> 1.038621462 | K27: =Index!K$43 -> 1.04693747 | L27: =Index!L$43 -> 1.085399008 | M27: =Index!M$43 -> 1.180633296 | N27: =Index!N$43 -> 1.246121862 | O27: =Index!O$43 -> 1.283144091 | P27: =Index!P$43 -> 1.313449544
E28: Actual Green Recovery Expenditure - WR - real | G28: £m | H28: =SUM(J28:P28) -> 0 | J28: =J26 / J27 -> 0 | K28: =K26 / K27 -> 0 | L28: =L26 / L27 -> 0 | M28: 0 | N28: 0 | O28: 0 | P28: 0
E30: =E28 -> Actual Green Recovery Expenditure - WR - real | F30: =F28 -> 0 | G30: £m | H30: 0 | I30: 0 | J30: 0 | K30: =K28 -> 0 | L30: 0 | M30: 0 | N30: 0 | O30: 0 | P30: 0
E31: =Time!E$54 -> Forecast Period Flag | F31: =Time!F$54 -> 0 | G31: =Time!G$54 -> flag | H31: =Time!H$54 -> 5 | I31: =Time!I$54 -> 0 | J31: =Time!J$54 -> 0 | K31: =Time!K$54 -> 1 | L31: =Time!L$54 -> 1 | M31: =Time!M$54 -> 1 | N31: =Time!N$54 -> 1 | O31: =Time!O$54 -> 1 | P31: =Time!P$54 -> 0
E32: Actual Green Recovery Expenditure for cost sharing - WR - real | G32: £m | H32: =SUM(J32:P32) -> 0 | J32: =J30 * J31 -> 0 | K32: =K30 * K31 -> 0 | L32: 0 | M32: 0 | N32: 0 | O32: 0 | P32: 0
D34: Variance to forecast totex for green recovery expenditure
E35: =E$32 -> Actual Green Recovery Expenditure for cost sharing - WR - real | F35: 0 | G35: £m | H35: 0 | I35: 0 | J35: 0 | K35: 0 | L35: =L$32 -> 0 | M35: 0 | N35: 0 | O35: 0 | P35: 0
E36: =InpActive!E$198 -> Total adjusted cost allowance - WR - real | F36: =InpActive!F$198 -> 0 | G36: =InpActive!G$198 -> £m | H36: =InpActive!H$198 -> 0 | I36: =InpActive!I$198 -> 0 | J36: =InpActive!J$198 -> 0 | K36: =InpActive!K$198 -> 0 | L36: =InpActive!L$198 -> 0 | M36: =InpActive!M$198 -> 0 | N36: =InpActive!N$198 -> 0 | O36: =InpActive!O$198 -> 0 | P36: =InpActive!P$198 -> 0
E37: Variance to green recovery expenditure - WR - real | F37: =H35 - H36 -> 0 | G37: £m | H37: =SUM(J37:P37) -> 0
E39: =E$32 -> Actual Green Recovery Expenditure for cost sharing - WR - real | F39: 0 | G39: £m | H39: 0 | I39: 0 | J39: 0 | K39: 0 | L39: 0 | M39: 0 | N39: 0 | O39: 0 | P39: 0
E40: =E37 -> Variance to green recovery expenditure - WR - real | F40: =F37 -> 0 | G40: =G37 -> £m
E41: Apportioned variance to GRE - WR - real | G41: £m | H41: =SUM(J41:O41) -> 0 | J41: =IF($F$40=0,0, $F$40 * (J39/SUM($K$39:$O$39))) -> 0 | K41: =IF($F$40=0,0, $F$40 * (K39/SUM($K$39:$O$39))) -> 0 | L41: =IF($F$40=0,0, $F$40 * (L39/SUM($K$39:$O$39))) -> 0 | M41: 0 | N41: 0 | O41: 0 | P41: 0
D43: Variance to forecast totex for green recovery expenditure - Time adjusted
E44: =InpActive!E$288 -> Financing cost index | F44: =InpActive!F$288 -> 0 | G44: =InpActive!G$288 -> Index | H44: =InpActive!H$288 -> 0 | I44: =InpActive!I$288 -> 0 | J44: =InpActive!J$288 -> 0 | K44: =InpActive!K$288 -> 4 | L44: =InpActive!L$288 -> 3 | M44: =InpActive!M$288 -> 2 | N44: =InpActive!N$288 -> 1 | O44: =InpActive!O$288 -> 0 | P44: =InpActive!P$288 -> 0
E45: =InpActive!E$290 -> Real WACC CPIH Deflated - WR | F45: =InpActive!F$290 -> 0.0292 | G45: =InpActive!G$290 -> %
E46: Time value of money factor - WR | G46: Factor | J46: =(1+$F45) ^ J44 -> 1 | K46: =(1+$F45) ^ K44 -> 1.122016155 | L46: 1.090182817 | M46: 1.05925264 | N46: 1.0292 | O46: 1 | P46: 1
E48: =E$41 -> Apportioned variance to GRE - WR - real | F48: 0 | G48: £m | H48: 0 | I48: 0 | J48: 0 | K48: 0 | L48: 0 | M48: 0 | N48: 0 | O48: 0 | P48: 0
E49: =E$46 -> Time value of money factor - WR | F49: 0 | G49: Factor | H49: 0 | I49: 0 | J49: 1 | K49: 1.122016155 | L49: 1.090182817 | M49: 1.05925264 | N49: 1.0292 | O49: 1 | P49: 1
E50: Time adjusted variance to green recovery expenditure - WR - real | G50: £m | H50: =SUM(J50:P50) -> 0 | J50: =J48 * J49 -> 0 | K50: =K48 * K49 -> 0 | L50: =L48 * L49 -> 0 | M50: 0 | N50: 0 | O50: 0 | P50: 0
E51: Total variance to green recovery expenditure - WR - real | F51: =$H50 -> 0 | G51: £m
D53: Under / Overperformance on green recovery expenditure
E55: =E$51 -> Total variance to green recovery expenditure - WR - real | F55: =F$51 -> 0 | G55: =G$51 -> £m
E56: =E$21 -> Active Sharing Rate - Green Recovery Underperformance Rate | F56: =F$21 -> 0.5 | G56: %
E57: Active RCV adjustment for cost sharing - Green Recovery Expenditure - WR - Real | F57: =F55 * (1-F56) -> 0 | G57: £m
A60: WATER NETWORK
E62: =InpActive!E$202 -> Actual Green Recovery Expenditure - WN - nominal | F62: =InpActive!F$202 -> 0 | G62: =InpActive!G$202 -> £m | H62: =InpActive!H$202 -> 0 | I62: =InpActive!I$202 -> 0 | J62: =InpActive!J$202 -> 0 | K62: =InpActive!K$202 -> 0 | L62: =InpActive!L$202 -> 0 | M62: =InpActive!M$202 -> 0 | N62: =InpActive!N$202 -> 0 | O62: =InpActive!O$202 -> 0 | P62: =InpActive!P$202 -> 0
E63: =Index!E$43 -> CPI(H): Fin year average - inflate from base year 2017-18 average - CALC | F63: =Index!F$43 -> 0 | G63: =Index!G$43 -> % | H63: =Index!H$43 -> 0 | I63: =Index!I$43 -> 0 | J63: =Index!J$43 -> 1.038621462 | K63: =Index!K$43 -> 1.04693747 | L63: =Index!L$43 -> 1.085399008 | M63: =Index!M$43 -> 1.180633296 | N63: =Index!N$43 -> 1.246121862 | O63: =Index!O$43 -> 1.283144091 | P63: =Index!P$43 -> 1.313449544
E64: Actual Green Recovery Expenditure - WN - real | G64: £m | H64: =SUM(J64:P64) -> 0 | J64: =J62 / J63 -> 0 | K64: =K62 / K63 -> 0 | L64: =L62 / L63 -> 0 | M64: 0 | N64: 0 | O64: 0 | P64: 0
E66: =E64 -> Actual Green Recovery Expenditure - WN - real | F66: =F64 -> 0 | G66: £m | H66: 0 | I66: 0 | J66: 0 | K66: =K64 -> 0 | L66: 0 | M66: 0 | N66: 0 | O66: 0 | P66: 0
E67: =Time!E$54 -> Forecast Period Flag | F67: =Time!F$54 -> 0 | G67: =Time!G$54 -> flag | H67: =Time!H$54 -> 5 | I67: =Time!I$54 -> 0 | J67: =Time!J$54 -> 0 | K67: =Time!K$54 -> 1 | L67: =Time!L$54 -> 1 | M67: =Time!M$54 -> 1 | N67: =Time!N$54 -> 1 | O67: =Time!O$54 -> 1 | P67: =Time!P$54 -> 0
E68: Actual Green Recovery Expenditure for cost sharing - WN - real | G68: £m | H68: =SUM(J68:P68) -> 0 | J68: =J66 * J67 -> 0 | K68: =K66 * K67 -> 0 | L68: 0 | M68: 0 | N68: 0 | O68: 0 | P68: 0
D70: Variance to forecast totex for green recovery expenditure
E71: =E$68 -> Actual Green Recovery Expenditure for cost sharing - WN - real | F71: 0 | G71: £m | H71: 0 | I71: 0 | J71: 0 | K71: 0 | L71: 0 | M71: 0 | N71: 0 | O71: 0 | P71: 0
E72: =InpActive!E$203 -> Total adjusted cost allowance - WN - real | F72: =InpActive!F$203 -> 0 | G72: =InpActive!G$203 -> £m | H72: =InpActive!H$203 -> 0 | I72: =InpActive!I$203 -> 0 | J72: =InpActive!J$203 -> 0 | K72: =InpActive!K$203 -> 0 | L72: =InpActive!L$203 -> 0 | M72: =InpActive!M$203 -> 0 | N72: =InpActive!N$203 -> 0 | O72: =InpActive!O$203 -> 0 | P72: =InpActive!P$203 -> 0
E73: Variance to green recovery expenditure - WN - real | F73: =H71 - H72 -> 0 | G73: £m | H73: =SUM(J73:O73) -> 0
E75: =E$68 -> Actual Green Recovery Expenditure for cost sharing - WN - real | F75: 0 | G75: £m | H75: 0 | I75: 0 | J75: 0 | K75: 0 | L75: 0 | M75: 0 | N75: 0 | O75: 0 | P75: 0
E76: =E73 -> Variance to green recovery expenditure - WN - real | F76: =F73 -> 0 | G76: £m
E77: Apportioned variance to GRE - WN - real | G77: £m | H77: =SUM(J77:O77) -> 0 | J77: =IF($F$76 = 0, 0, $F$76*(J75/SUM($K$75:$O$75))) -> 0 | K77: 0 | L77: 0 | M77: 0 | N77: 0 | O77: 0 | P77: 0
D79: Variance to forecast totex for green recovery expenditure - Time adjusted
E80: =InpActive!E$288 -> Financing cost index | F80: =InpActive!F$288 -> 0 | G80: =InpActive!G$288 -> Index | H80: =InpActive!H$288 -> 0 | I80: =InpActive!I$288 -> 0 | J80: =InpActive!J$288 -> 0 | K80: =InpActive!K$288 -> 4 | L80: =InpActive!L$288 -> 3 | M80: =InpActive!M$288 -> 2 | N80: =InpActive!N$288 -> 1 | O80: =InpActive!O$288 -> 0 | P80: =InpActive!P$288 -> 0
E81: =InpActive!E$291 -> Real WACC CPIH Deflated - WN | F81: =InpActive!F$291 -> 0.0292 | G81: =InpActive!G$291 -> %
E82: Time value of money factor - WN | G82: Factor | J82: =(1+$F81) ^ J80 -> 1 | K82: =(1+$F81) ^ K80 -> 1.122016155 | L82: 1.090182817 | M82: 1.05925264 | N82: 1.0292 | O82: 1 | P82: 1
E84: =E$77 -> Apportioned variance to GRE - WN - real | F84: 0 | G84: £m | H84: 0 | I84: 0 | J84: 0 | K84: 0 | L84: 0 | M84: 0 | N84: 0 | O84: 0 | P84: 0
E85: =E$82 -> Time value of money factor - WN | F85: 0 | G85: Factor | H85: 0 | I85: 0 | J85: 1 | K85: 1.122016155 | L85: 1.090182817 | M85: 1.05925264 | N85: 1.0292 | O85: 1 | P85: 1
E86: Time adjusted variance to green recovery expenditure - WN - real | G86: £m | H86: =SUM(J86:P86) -> 0 | J86: =J84 * J85 -> 0 | K86: =K84 * K85 -> 0 | L86: 0 | M86: =M84 * M85 -> 0 | N86: 0 | O86: 0 | P86: 0
E87: Total variance to green recovery expenditure - WN - real | F87: =$H86 -> 0 | G87: £m
D89: Under / Overperformance on green recovery expenditure
E91: =E$87 -> Total variance to green recovery expenditure - WN - real | F91: =F$87 -> 0 | G91: £m
E92: =E$21 -> Active Sharing Rate - Green Recovery Underperformance Rate | F92: =F$21 -> 0.5 | G92: %
E93: Active RCV adjustment for cost sharing - Green Recovery Expenditure - WN - Real | F93: =F91 * (1-F92) -> 0 | G93: £m
A95: WASTEWATER NETWORK
E97: =InpActive!E$207 -> Actual Green Recovery Expenditure - WWN - nominal | F97: =InpActive!F$207 -> 0 | G97: =InpActive!G$207 -> £m | H97: =InpActive!H$207 -> 0 | I97: =InpActive!I$207 -> 0 | J97: =InpActive!J$207 -> 0 | K97: =InpActive!K$207 -> 0 | L97: =InpActive!L$207 -> 0 | M97: =InpActive!M$207 -> 0 | N97: =InpActive!N$207 -> 0 | O97: =InpActive!O$207 -> 0 | P97: =InpActive!P$207 -> 0
E98: =Index!E$43 -> CPI(H): Fin year average - inflate from base year 2017-18 average - CALC | F98: =Index!F$43 -> 0 | G98: =Index!G$43 -> % | H98: =Index!H$43 -> 0 | I98: =Index!I$43 -> 0 | J98: =Index!J$43 -> 1.038621462 | K98: =Index!K$43 -> 1.04693747 | L98: =Index!L$43 -> 1.085399008 | M98: =Index!M$43 -> 1.180633296 | N98: =Index!N$43 -> 1.246121862 | O98: =Index!O$43 -> 1.283144091 | P98: =Index!P$43 -> 1.313449544
E99: Actual Green Recovery Expenditure - WWN - real | G99: £m | H99: =SUM(J99:P99) -> 0 | J99: =J97 / J98 -> 0 | K99: =K97 / K98 -> 0 | L99: =L97 / L98 -> 0 | M99: 0 | N99: 0 | O99: 0 | P99: 0
E101: =E99 -> Actual Green Recovery Expenditure - WWN - real | F101: =F99 -> 0 | G101: £m | H101: 0 | I101: 0 | J101: 0 | K101: =K99 -> 0 | L101: 0 | M101: 0 | N101: 0 | O101: 0 | P101: 0
E102: =Time!E$54 -> Forecast Period Flag | F102: =Time!F$54 -> 0 | G102: =Time!G$54 -> flag | H102: =Time!H$54 -> 5 | I102: =Time!I$54 -> 0 | J102: =Time!J$54 -> 0 | K102: =Time!K$54 -> 1 | L102: =Time!L$54 -> 1 | M102: =Time!M$54 -> 1 | N102: =Time!N$54 -> 1 | O102: =Time!O$54 -> 1 | P102: =Time!P$54 -> 0
E103: Actual Green Recovery Expenditure for cost sharing - WWN - real | G103: £m | H103: =SUM(J103:P103) -> 0 | J103: =J101 * J102 -> 0 | K103: =K101 * K102 -> 0 | L103: 0 | M103: 0 | N103: 0 | O103: 0 | P103: 0
D105: Variance to forecast totex for green recovery expenditure
E106: =E$103 -> Actual Green Recovery Expenditure for cost sharing - WWN - real | F106: 0 | G106: £m | H106: 0 | I106: 0 | J106: 0 | K106: 0 | L106: 0 | M106: 0 | N106: 0 | O106: 0 | P106: 0
E107: =InpActive!E$208 -> Total adjusted cost allowance - WWN - real | F107: =InpActive!F$208 -> 0 | G107: =InpActive!G$208 -> £m | H107: =InpActive!H$208 -> 0 | I107: =InpActive!I$208 -> 0 | J107: =InpActive!J$208 -> 0 | K107: =InpActive!K$208 -> 0 | L107: =InpActive!L$208 -> 0 | M107: =InpActive!M$208 -> 0 | N107: =InpActive!N$208 -> 0 | O107: =InpActive!O$208 -> 0 | P107: =InpActive!P$208 -> 0
E108: Variance to green recovery expenditure - WWN - real | F108: =H106 - H107 -> 0 | G108: £m
E110: =E$106 -> Actual Green Recovery Expenditure for cost sharing - WWN - real | F110: 0 | G110: £m | H110: 0 | I110: 0 | J110: 0 | K110: 0 | L110: 0 | M110: 0 | N110: 0 | O110: 0 | P110: 0
E111: =E108 -> Variance to green recovery expenditure - WWN - real | F111: =F108 -> 0 | G111: £m
E112: Apportioned variance to GRE - WWN - real | G112: £m | H112: =SUM(J112:O112) -> 0 | J112: =IF($F$111 = 0, 0, $F$111*(J110/SUM($K$110:$O$110))) -> 0 | K112: 0 | L112: 0 | M112: 0 | N112: 0 | O112: 0 | P112: 0
D115: Variance to forecast totex for green recovery expenditure - Time adjusted
E116: =InpActive!E$288 -> Financing cost index | F116: =InpActive!F$288 -> 0 | G116: =InpActive!G$288 -> Index | H116: =InpActive!H$288 -> 0 | I116: =InpActive!I$288 -> 0 | J116: =InpActive!J$288 -> 0 | K116: =InpActive!K$288 -> 4 | L116: =InpActive!L$288 -> 3 | M116: =InpActive!M$288 -> 2 | N116: =InpActive!N$288 -> 1 | O116: =InpActive!O$288 -> 0 | P116: =InpActive!P$288 -> 0
E117: =InpActive!E$292 -> Real WACC CPIH Deflated - WWN | F117: =InpActive!F$292 -> 0.0292 | G117: =InpActive!G$292 -> %
E118: Time value of money factor - WWN | G118: Factor | J118: =(1+$F117) ^ J116 -> 1 | K118: =(1+$F117) ^ K116 -> 1.122016155 | L118: =(1+$F117) ^ L116 -> 1.090182817 | M118: 1.05925264 | N118: 1.0292 | O118: 1 | P118: 1
E120: =E112 -> Apportioned variance to GRE - WWN - real | F120: =F112 -> 0 | G120: £m | H120: 0 | I120: 0 | J120: 0 | K120: =K112 -> 0 | L120: 0 | M120: 0 | N120: 0 | O120: 0 | P120: 0
E121: =E$118 -> Time value of money factor - WWN | F121: 0 | G121: Factor | H121: 0 | I121: 0 | J121: 1 | K121: 1.122016155 | L121: 1.090182817 | M121: 1.05925264 | N121: 1.0292 | O121: 1 | P121: 1
E122: Time adjusted variance to green recovery expenditure - WWN - real | G122: £m | H122: =SUM(J122:P122) -> 0 | J122: =J120 * J121 -> 0 | K122: =K120 * K121 -> 0 | L122: 0 | M122: 0 | N122: 0 | O122: 0 | P122: 0
E123: Total variance to green recovery expenditure - WWN - real | F123: =$H122 -> 0 | G123: £m
D125: Under / Overperformance on green recovery expenditure
E127: =E$123 -> Total variance to green recovery expenditure - WWN - real | F127: =F$123 -> 0 | G127: £m
E128: =E$21 -> Active Sharing Rate - Green Recovery Underperformance Rate | F128: =F$21 -> 0.5 | G128: %
E129: Active RCV adjustment for cost sharing - Green Recovery Expenditure - WWN - Real | F129: =F127 * (1-F128) -> 0 | G129: £m
A131: END OF SHEET

Sheet Outputs-->

Sheet Outputs
A1: =RIGHT(CELL("filename", $A$1), LEN(CELL("filename", $A$1)) - SEARCH("]", CELL("filename", $A$1))) -> 
E2: =Time!E$22 -> Model Period BEG | J2: =Time!J$22 -> 2019-04-01 | K2: =Time!K$22 -> 2020-04-01 | L2: =Time!L$22 -> 2021-04-01 | M2: =Time!M$22 -> 2022-04-01 | N2: =Time!N$22 -> 2023-04-01 | O2: =Time!O$22 -> 2024-04-01 | P2: =Time!P$22 -> 2025-04-01
E3: =Time!E$23 -> Model Period END | F3: =Check!F$8 -> 0 | G3: Error chks | J3: =Time!J$23 -> 2020-03-31 | K3: =Time!K$23 -> 2021-03-31 | L3: =Time!L$23 -> 2022-03-31 | M3: =Time!M$23 -> 2023-03-31 | N3: =Time!N$23 -> 2024-03-31 | O3: =Time!O$23 -> 2025-03-31 | P3: =Time!P$23 -> 2026-03-31
E4: =Time!E$59 -> Pre Forecast vs Forecast | J4: =Time!J$59 -> Pre Fcst | K4: =Time!K$59 -> Forecast | L4: =Time!L$59 -> Forecast | M4: =Time!M$59 -> Forecast | N4: =Time!N$59 -> Forecast | O4: =Time!O$59 -> Forecast | P4: =Time!P$59 -> Post-Fcst
E5: =Time!E$101 -> Financial Year Ending | J5: =Time!J$101 -> 2020 | K5: =Time!K$101 -> 2021 | L5: =Time!L$101 -> 2022 | M5: =Time!M$101 -> 2023 | N5: =Time!N$101 -> 2024 | O5: =Time!O$101 -> 2025 | P5: =Time!P$101 -> 2026
E6: =Time!E$11 -> Model column counter | F6: Constant | G6: Unit | H6: Total | J6: =Time!J$11 -> 1 | K6: =Time!K$11 -> 2 | L6: =Time!L$11 -> 3 | M6: =Time!M$11 -> 4 | N6: =Time!N$11 -> 5 | O6: =Time!O$11 -> 6 | P6: =Time!P$11 -> 7
A8: WATER RESOURCES
B10: Cost sharing
E11: ='Cost sharing calculations'!E$180 -> Total adjustment for cost sharing after ex ante allowance & wage adjustment - WR - Real | F11: ='Cost sharing calculations'!F$180 -> -5.487808198 | G11: ='Cost sharing calculations'!G$180 -> £m
